Workbook

Sheet Water calculator
A44: Versie: | B44: Datum: | D44: Wijzigingen:
A45: 1.1 | B45: 07-03-2025 | D45: Eerste versie
A46: 1.2 | B46: 2025-03-19 | D46: Output-blad aangepast: verbeterpercentage, EP en ingevulde waarden zichtbaar, velden toegevoegd om projectinformatie in te vullen, blad als pdf op te slaan/printen
A47: 1.3 | B47: 2025-05-21 | D47: Output-blad aangepast: Aantal gebouwgebruikers toegevoegd en berekening 'detailed approach' gecorrigeerd.
E304: No
E333: No

Sheet Front end (hidden)
C1: Mandatory data entry | D1: Mandatory data entry - predicted water use
C2: Conditonal data entry
C3: Optional data entry
A6: Heading | B6: Question ID | C6: Conditional criteria | D6: Question | E6: Answers | F6: Data entry permitted | H6: warning
A7: Building details
A8: Building type | B8: 1 | C8: Mandatory | D8: What is the building type? | F8: Selected from building type lookup table
A9: Floor area | B9: 2 | C9: Mandatory | D9: What is the building floor area in m2 | F9: Enter a positive number >=0 to 2dps
A10: Number of occupants | B10: 3 | C10: Mandatory - Predicted water use | D10: What is the estimated number of occupants (during occupied hours) | F10: Enter a positive number >=0 to 2dps
A11: Number of occupied days per year | B11: 4 | C11: Mandatory - Predicted water use | D11: What is the number of days the building is occupied | F11: Enter a positive number >=0 to 2dps
A12: Unregulated water uses
A38: Water compenents present (Regulated)
A39: Water compenents present | B39: 5 | C39: Mandatory | D39: =CONCATENATE("Are there any ",+'lookup tables'!C35,"'s present?") -> Are there any WC''s present? | F39: Select yes or no
A40: Water compenents present | B40: 6 | C40: Mandatory | D40: =CONCATENATE("Are there any ",+'lookup tables'!C36,"'s present?") -> Are there any Urinal with timed flush's present? | F40: Select yes or no
A41: Water compenents present | B41: 7 | C41: Mandatory | D41: Do any the urinals have a timed flush | F41: Select yes or no | H41: WORDT OVERGESLAGEN
A42: Water compenents present | B42: 8 | C42: Mandatory | D42: Do any the urinals have a sensor controlled flush | F42: Select yes or no
A43: Water compenents present | B43: 9 | C43: Mandatory | D43: Are any of the urinals waterless | F43: Select yes or no
A44: Water compenents present | B44: 10 | C44: Mandatory | D44: =CONCATENATE("Are there any ",+'lookup tables'!C39,"'s present?") -> Are there any Wash hand basin tap's present? | F44: Select yes or no
A45: Water compenents present | B45: 11 | C45: Mandatory | D45: =CONCATENATE("Are there any ",+'lookup tables'!C40,"'s present?") -> Are there any Shower's present? | F45: Select yes or no
A46: Water compenents present | B46: 12 | C46: Mandatory | D46: =CONCATENATE("Are there any ",+'lookup tables'!C41,"'s present?") -> Are there any Bath's present? | F46: Select yes or no
A47: Water compenents present | B47: 13 | C47: Mandatory | D47: =CONCATENATE("Are there any ",+'lookup tables'!C42,"'s present?") -> Are there any Kitchen taps: kitchenette's present? | F47: Select yes or no
A48: Water compenents present | B48: 14 | C48: Mandatory | D48: =CONCATENATE("Are there any ",+'lookup tables'!C43,"'s present?") -> Are there any Domestic sized washing machines's present? | F48: Select yes or no
A49: Water compenents present | B49: 15 | C49: Mandatory | D49: =CONCATENATE("Are there any ",+'lookup tables'!C44,"'s present?") -> Are there any Domestic sized dishwashers's present? | F49: Select yes or no
A50: Water compenents present | B50: 16 | C50: only display question if commercial scale food preparation area is selected | D50: =CONCATENATE("Are there any ",+'lookup tables'!C45,"'s present?") -> Are there any Kitchen taps: restaurant (pre-rinse nozzles only)'s present? | F50: Select yes or no
A51: Water compenents present | B51: 17 | C51: only display question if commercial scale food preparation area is selected | D51: =CONCATENATE("Are there any ",+'lookup tables'!C46,"'s present?") -> Are there any Waste disposal unit (commercial kitchens only)'s present? | F51: Select yes or no
A52: Water compenents present | B52: 18 | C52: only display question if commercial scale food preparation area is selected | D52: =CONCATENATE("Are there any ",+'lookup tables'!C47,"'s present?") -> Are there any Commercial sized dishwashers's present? | F52: Select yes or no
A53: Water compenents present | B53: 19 | C53: only display question if answer to commercial scale washing machines are selected | D53: =CONCATENATE("Are there any ",+'lookup tables'!C48,"'s present?") -> Are there any Commercial or industrial sized washing machines's present? | F53: Select yes or no
A54: Checkpoint | C54: All previous questions need to be answered before proceeding to then next question | D54: if check point condition is not met display "Please complete questions above to proceed"
A55: Checkpoint | C55: If the answer to all water consumption present questions is no - fiilter out credits - otherwise proceed to water component types question
A56: Number of water component types
A57: Number of water component types | B57: 16 | C57: =CONCATENATE("Only display if the answer to Are ",+'lookup tables'!C35,"s present? Is Yes") -> Only display if the answer to Are WC's present? Is Yes | D57: =CONCATENATE("How many different types of ",+'lookup tables'!C35,"s are installed?") -> How many different types of WC's are installed? | F57: Enter whole number between 1 and 8
A58: Number of water component types | B58: 17 | C58: =CONCATENATE("Only display if the answer to Are ",+'lookup tables'!C36," present? Is Yes") -> Only display if the answer to Are Urinal with timed flush present? Is Yes | D58: =CONCATENATE("How many different types of ",+'lookup tables'!C36,"s are installed?") -> How many different types of Urinal with timed flushs are installed? | F58: Enter whole number between 1 and 8
A59: Number of water component types | B59: 18 | C59: =CONCATENATE("Only display if the answer to Are ",+'lookup tables'!C37," present? Is Yes") -> Only display if the answer to Are Urinal with automatic sensor flush present? Is Yes | D59: =CONCATENATE("How many different types of ",+'lookup tables'!C37,"s are installed?") -> How many different types of Urinal with automatic sensor flushs are installed? | F59: Enter whole number between 1 and 8
A60: Number of water component types | B60: 19 | C60: =CONCATENATE("Only display if the answer to Are ",+'lookup tables'!C39,"s present? Is Yes") -> Only display if the answer to Are Wash hand basin taps present? Is Yes | D60: =CONCATENATE("How many different types of ",+'lookup tables'!C39,"s are installed?") -> How many different types of Wash hand basin taps are installed? | F60: Enter whole number between 1 and 8
A61: Number of water component types | B61: 20 | C61: =CONCATENATE("Only display if the answer to Are ",+'lookup tables'!C40,"s present? Is Yes") -> Only display if the answer to Are Showers present? Is Yes | D61: =CONCATENATE("How many different types of ",+'lookup tables'!C40,"s are installed?") -> How many different types of Showers are installed? | F61: Enter whole number between 1 and 8
A62: Number of water component types | B62: 21 | C62: =CONCATENATE("Only display if the answer to Are ",+'lookup tables'!C41,"s present? Is Yes") -> Only display if the answer to Are Baths present? Is Yes | D62: =CONCATENATE("How many different types of ",+'lookup tables'!C41,"s are installed?") -> How many different types of Baths are installed? | F62: Enter whole number between 1 and 8
A63: Number of water component types | B63: 22 | C63: =CONCATENATE("Only display if the answer to Are ",+'lookup tables'!C42," present? Is Yes") -> Only display if the answer to Are Kitchen taps: kitchenette present? Is Yes | D63: =CONCATENATE("How many different types of ",+'lookup tables'!C42," are installed?") -> How many different types of Kitchen taps: kitchenette are installed? | F63: Enter whole number between 1 and 8
A64: Number of water component types | B64: 23 | C64: =CONCATENATE("Only display if the answer to Are ",+'lookup tables'!C43,"s present? Is Yes") -> Only display if the answer to Are Domestic sized washing machiness present? Is Yes | D64: =CONCATENATE("How many different types of ",+'lookup tables'!C43," are installed?") -> How many different types of Domestic sized washing machines are installed? | F64: Enter whole number between 1 and 8
A65: Number of water component types | B65: 24 | C65: =CONCATENATE("Only display if the answer to Are ",+'lookup tables'!C44," present? Is Yes") -> Only display if the answer to Are Domestic sized dishwashers present? Is Yes | D65: =CONCATENATE("How many different types of ",+'lookup tables'!C44," are installed?") -> How many different types of Domestic sized dishwashers are installed? | F65: Enter whole number between 1 and 8
A66: Number of water component types | B66: 25 | C66: =CONCATENATE("Only display if the answer to Are ",+'lookup tables'!C45," present? Is Yes") -> Only display if the answer to Are Kitchen taps: restaurant (pre-rinse nozzles only) present? Is Yes | D66: =CONCATENATE("How many different types of ",+'lookup tables'!C45," are installed?") -> How many different types of Kitchen taps: restaurant (pre-rinse nozzles only) are installed? | F66: Enter whole number between 1 and 8
A67: Number of water component types | B67: 26 | C67: =CONCATENATE("Only display if the answer to Are ",+'lookup tables'!C46," present? Is Yes") -> Only display if the answer to Are Waste disposal unit (commercial kitchens only) present? Is Yes | D67: =CONCATENATE("How many different types of ",+'lookup tables'!C46," are installed?") -> How many different types of Waste disposal unit (commercial kitchens only) are installed? | F67: Enter whole number between 1 and 8
A68: Number of water component types | B68: 27 | C68: =CONCATENATE("Only display if the answer to Are ",+'lookup tables'!C47," present? Is Yes") -> Only display if the answer to Are Commercial sized dishwashers present? Is Yes | D68: =CONCATENATE("How many different types of ",+'lookup tables'!C47," are installed?") -> How many different types of Commercial sized dishwashers are installed? | F68: Enter whole number between 1 and 8
A69: Number of water component types | B69: 28 | C69: =CONCATENATE("Only display if the answer to Are ",+'lookup tables'!C48," present? Is Yes") -> Only display if the answer to Are Commercial or industrial sized washing machines present? Is Yes | D69: =CONCATENATE("How many different types of ",+'lookup tables'!C48," are installed?") -> How many different types of Commercial or industrial sized washing machines are installed? | F69: Enter whole number between 1 and 8
A70: Components details
A71: Component details WCs
A72: Component details WCs | B72: 29 | C72: =CONCATENATE("Only display if the answer to ",D$57, "is >=1") -> Only display if the answer to How many different types of WC's are installed?is >=1 | D72: =CONCATENATE("Enter number of Type 1 ",+'lookup tables'!C$35,"s installed") -> Enter number of Type 1 WC's installed | F72: Enter an integer >=1
A73: Component details WCs | B73: 30 | C73: =CONCATENATE("Only display if the answer to ",D$57, "is >=1") -> Only display if the answer to How many different types of WC's are installed?is >=1 | D73: Enter full flush volume of Type 1 component in litres | F73: Enter a positive number >=0 to 2dps | H73: if value = 0
A74: Component details WCs | C74: =+C73 -> Only display if the answer to How many different types of WC's are installed?is >=1 | D74: Enter reduced flush volume of Type 1 component in litres | F74: =+F73 -> Enter a positive number >=0 to 2dps
A75: Component details WCs | B75: 31 | C75: =CONCATENATE("Only display if the answer to ",D$57, "is >=2") -> Only display if the answer to How many different types of WC's are installed?is >=2 | D75: =CONCATENATE("Enter number of Type 2 ",+'lookup tables'!C$35,"s installed") -> Enter number of Type 2 WC's installed | F75: Enter an integer >=1
A76: Component details WCs | B76: 32 | C76: =CONCATENATE("Only display if the answer to ",D$57, "is >=2") -> Only display if the answer to How many different types of WC's are installed?is >=2 | D76: Enter full flush volume of Type 2 component in litres | F76: Enter a positive number to 2dps
A77: Component details WCs | C77: =+C76 -> Only display if the answer to How many different types of WC's are installed?is >=2 | D77: Enter reduced flush volume of Type 2 component in litres | F77: =+F76 -> Enter a positive number to 2dps
A78: Component details WCs | B78: 33 | C78: =CONCATENATE("Only display if the answer to ",D$57, "is >=3") -> Only display if the answer to How many different types of WC's are installed?is >=3 | D78: =CONCATENATE("Enter number of Type 3 ",+'lookup tables'!C$35,"s installed") -> Enter number of Type 3 WC's installed | F78: Enter an integer >=1
A79: Component details WCs | B79: 34 | C79: =CONCATENATE("Only display if the answer to ",D$57, "is >=3") -> Only display if the answer to How many different types of WC's are installed?is >=3 | D79: Enter full flush volume of Type 3 component in litres | F79: Enter a positive number to 2dps
A80: Component details WCs | C80: =+C79 -> Only display if the answer to How many different types of WC's are installed?is >=3 | D80: Enter reduced flush volume of Type 3 component in litres | F80: =+F79 -> Enter a positive number to 2dps
A81: Component details WCs | B81: 35 | C81: =CONCATENATE("Only display if the answer to ",D$57, "is >=4") -> Only display if the answer to How many different types of WC's are installed?is >=4 | D81: =CONCATENATE("Enter number of Type 4 ",+'lookup tables'!C$35,"s installed") -> Enter number of Type 4 WC's installed | F81: Enter an integer >=1
A82: Component details WCs | B82: 36 | C82: =CONCATENATE("Only display if the answer to ",D$57, "is >=4") -> Only display if the answer to How many different types of WC's are installed?is >=4 | D82: Enter full flush volume of Type 4 component in litres | F82: Enter a positive number to 2dps
A83: Component details WCs | C83: =+C82 -> Only display if the answer to How many different types of WC's are installed?is >=4 | D83: Enter reduced flush volume of Type 4 component in litres | F83: =+F82 -> Enter a positive number to 2dps
A84: Component details WCs | B84: 37 | C84: =CONCATENATE("Only display if the answer to ",D$57, "is >=5") -> Only display if the answer to How many different types of WC's are installed?is >=5 | D84: =CONCATENATE("Enter number of Type 5 ",+'lookup tables'!C$35,"s installed") -> Enter number of Type 5 WC's installed | F84: Enter an integer >=1
A85: Component details WCs | B85: 38 | C85: =CONCATENATE("Only display if the answer to ",D$57, "is >=5") -> Only display if the answer to How many different types of WC's are installed?is >=5 | D85: Enter full flush volume of Type 5 component in litres | F85: Enter a positive number to 2dps
A86: Component details WCs | C86: =+C85 -> Only display if the answer to How many different types of WC's are installed?is >=5 | D86: Enter reduced flush volume of Type 5 component in litres | F86: =+F85 -> Enter a positive number to 2dps
A87: Component details WCs | B87: 39 | C87: =CONCATENATE("Only display if the answer to ",D$57, "is >=6") -> Only display if the answer to How many different types of WC's are installed?is >=6 | D87: =CONCATENATE("Enter number of Type 6 ",+'lookup tables'!C$35,"s installed") -> Enter number of Type 6 WC's installed | F87: Enter an integer >=1
A88: Component details WCs | B88: 40 | C88: =CONCATENATE("Only display if the answer to ",D$57, "is >=6") -> Only display if the answer to How many different types of WC's are installed?is >=6 | D88: Enter full flush volume of Type 6 component in litres | F88: Enter a positive number to 2dps
A89: Component details WCs | C89: =+C88 -> Only display if the answer to How many different types of WC's are installed?is >=6 | D89: Enter reduced flush volume of Type 6 component in litres | F89: =+F88 -> Enter a positive number to 2dps
A90: Component details WCs | B90: 41 | C90: =CONCATENATE("Only display if the answer to ",D$57, "is >=7") -> Only display if the answer to How many different types of WC's are installed?is >=7 | D90: =CONCATENATE("Enter number of Type 7 ",+'lookup tables'!C$35,"s installed") -> Enter number of Type 7 WC's installed | F90: Enter an integer >=1
A91: Component details WCs | B91: 42 | C91: =CONCATENATE("Only display if the answer to ",D$57, "is >=7") -> Only display if the answer to How many different types of WC's are installed?is >=7 | D91: Enter full flush volume of Type 7 component in litres | F91: Enter a positive number to 2dps
A92: Component details WCs | C92: =+C91 -> Only display if the answer to How many different types of WC's are installed?is >=7 | D92: Enter reduced flush volume of Type 7 component in litres | F92: =+F91 -> Enter a positive number to 2dps
A93: Component details WCs | B93: 43 | C93: =CONCATENATE("Only display if the answer to ",D$57, "is >=8") -> Only display if the answer to How many different types of WC's are installed?is >=8 | D93: =CONCATENATE("Enter number of Type 8 ",+'lookup tables'!C$35,"s installed") -> Enter number of Type 8 WC's installed | F93: Enter an integer >=1
A94: Component details WCs | B94: 44 | C94: =CONCATENATE("Only display if the answer to ",D$57, "is >=8") -> Only display if the answer to How many different types of WC's are installed?is >=8 | D94: Enter full flush volume of Type 8 component in litres | F94: Enter a positive number to 2dps
C95: =+C94 -> Only display if the answer to How many different types of WC's are installed?is >=8 | D95: Enter reduced flush volume of Type 8 component in litres | F95: =+F94 -> Enter a positive number to 2dps
A96: Component details timed flush urinals
A97: Component details timed flush urinals | B97: 45 | C97: =CONCATENATE("Only display if the answer to ",D$58, "is >=1") -> Only display if the answer to How many different types of Urinal with timed flushs are installed?is >=1 | D97: =CONCATENATE("Enter number of Type 1 ",+'lookup tables'!C$36,"s installed") -> Enter number of Type 1 Urinal with timed flushs installed | F97: Enter an integer >=1
A98: Component details timed flush urinals | B98: 46 | C98: =CONCATENATE("Only display if the answer to ",D$58, "is >=1") -> Only display if the answer to How many different types of Urinal with timed flushs are installed?is >=1 | D98: Enter average flush volume of Type 1 component in litres per bowl per hour | F98: Enter a positive number to 2dps
A99: Component details timed flush urinals | B99: 47 | C99: =CONCATENATE("Only display if the answer to ",D$58, "is >=2") -> Only display if the answer to How many different types of Urinal with timed flushs are installed?is >=2 | D99: =CONCATENATE("Enter number of Type 2 ",+'lookup tables'!C$36,"s installed") -> Enter number of Type 2 Urinal with timed flushs installed | F99: Enter an integer >=1
A100: Component details timed flush urinals | B100: 48 | C100: =CONCATENATE("Only display if the answer to ",D$58, "is >=2") -> Only display if the answer to How many different types of Urinal with timed flushs are installed?is >=2 | D100: Enter average flush volume of Type 2 component in litres per bowl per hour | F100: Enter a positive number to 2dps
A101: Component details timed flush urinals | B101: 49 | C101: =CONCATENATE("Only display if the answer to ",D$58, "is >=3") -> Only display if the answer to How many different types of Urinal with timed flushs are installed?is >=3 | D101: =CONCATENATE("Enter number of Type 3 ",+'lookup tables'!C$36,"s installed") -> Enter number of Type 3 Urinal with timed flushs installed | F101: Enter an integer >=1
A102: Component details timed flush urinals | B102: 50 | C102: =CONCATENATE("Only display if the answer to ",D$58, "is >=3") -> Only display if the answer to How many different types of Urinal with timed flushs are installed?is >=3 | D102: Enter average flush volume of Type 3 component in litres per bowl per hour | F102: Enter a positive number to 2dps
A103: Component details timed flush urinals | B103: 51 | C103: =CONCATENATE("Only display if the answer to ",D$58, "is >=4") -> Only display if the answer to How many different types of Urinal with timed flushs are installed?is >=4 | D103: =CONCATENATE("Enter number of Type 4 ",+'lookup tables'!C$36,"s installed") -> Enter number of Type 4 Urinal with timed flushs installed | F103: Enter an integer >=1
A104: Component details timed flush urinals | B104: 52 | C104: =CONCATENATE("Only display if the answer to ",D$58, "is >=4") -> Only display if the answer to How many different types of Urinal with timed flushs are installed?is >=4 | D104: Enter average flush volume of Type 4 component in litres per bowl per hour | F104: Enter a positive number to 2dps
A105: Component details timed flush urinals | B105: 53 | C105: =CONCATENATE("Only display if the answer to ",D$58, "is >=5") -> Only display if the answer to How many different types of Urinal with timed flushs are installed?is >=5 | D105: =CONCATENATE("Enter number of Type 5 ",+'lookup tables'!C$36,"s installed") -> Enter number of Type 5 Urinal with timed flushs installed | F105: Enter an integer >=1
A106: Component details timed flush urinals | B106: 54 | C106: =CONCATENATE("Only display if the answer to ",D$58, "is >=5") -> Only display if the answer to How many different types of Urinal with timed flushs are installed?is >=5 | D106: Enter average flush volume of Type 5 component in litres per bowl per hour | F106: Enter a positive number to 2dps
A107: Component details timed flush urinals | B107: 55 | C107: =CONCATENATE("Only display if the answer to ",D$58, "is >=6") -> Only display if the answer to How many different types of Urinal with timed flushs are installed?is >=6 | D107: =CONCATENATE("Enter number of Type 6 ",+'lookup tables'!C$36,"s installed") -> Enter number of Type 6 Urinal with timed flushs installed | F107: Enter an integer >=1
A108: Component details timed flush urinals | B108: 56 | C108: =CONCATENATE("Only display if the answer to ",D$58, "is >=6") -> Only display if the answer to How many different types of Urinal with timed flushs are installed?is >=6 | D108: Enter average flush volume of Type 6 component in litres per bowl per hour | F108: Enter a positive number to 2dps
A109: Component details timed flush urinals | B109: 57 | C109: =CONCATENATE("Only display if the answer to ",D$58, "is >=7") -> Only display if the answer to How many different types of Urinal with timed flushs are installed?is >=7 | D109: =CONCATENATE("Enter number of Type 7 ",+'lookup tables'!C$36,"s installed") -> Enter number of Type 7 Urinal with timed flushs installed | F109: Enter an integer >=1
A110: Component details timed flush urinals | B110: 58 | C110: =CONCATENATE("Only display if the answer to ",D$58, "is >=7") -> Only display if the answer to How many different types of Urinal with timed flushs are installed?is >=7 | D110: Enter average flush volume of Type 7 component in litres per bowl per hour | F110: Enter a positive number to 2dps
A111: Component details timed flush urinals | B111: 59 | C111: =CONCATENATE("Only display if the answer to ",D$58, "is >=8") -> Only display if the answer to How many different types of Urinal with timed flushs are installed?is >=8 | D111: =CONCATENATE("Enter number of Type 8 ",+'lookup tables'!C$36,"s installed") -> Enter number of Type 8 Urinal with timed flushs installed | F111: Enter an integer >=1
A112: Component details timed flush urinals | B112: 60 | C112: =CONCATENATE("Only display if the answer to ",D$58, "is >=8") -> Only display if the answer to How many different types of Urinal with timed flushs are installed?is >=8 | D112: Enter average flush volume of Type 8 component in litres per bowl per hour | F112: Enter a positive number to 2dps
A113: Component details sensor flush urinals
A114: Component details sensor flush urinals | B114: 61 | C114: =CONCATENATE("Only display if the answer to ",D$59, "is >=1") -> Only display if the answer to How many different types of Urinal with automatic sensor flushs are installed?is >=1 | D114: =CONCATENATE("Enter number of Type 1 ",+'lookup tables'!C$37,"s installed") -> Enter number of Type 1 Urinal with automatic sensor flushs installed | F114: Enter an integer >=1
A115: Component details sensor flush urinals | B115: 62 | C115: =CONCATENATE("Only display if the answer to ",D$59, "is >=1") -> Only display if the answer to How many different types of Urinal with automatic sensor flushs are installed?is >=1 | D115: Enter average flush volume of Type 1 component in litres | F115: Enter a positive number to 2dps
A116: Component details sensor flush urinals | B116: 63 | C116: =CONCATENATE("Only display if the answer to ",D$59, "is >=2") -> Only display if the answer to How many different types of Urinal with automatic sensor flushs are installed?is >=2 | D116: =CONCATENATE("Enter number of Type 2 ",+'lookup tables'!C$37,"s installed") -> Enter number of Type 2 Urinal with automatic sensor flushs installed | F116: Enter an integer >=1
A117: Component details sensor flush urinals | B117: 64 | C117: =CONCATENATE("Only display if the answer to ",D$59, "is >=2") -> Only display if the answer to How many different types of Urinal with automatic sensor flushs are installed?is >=2 | D117: Enter average flush volume of Type 2 component in litres | F117: Enter a positive number to 2dps
A118: Component details sensor flush urinals | B118: 65 | C118: =CONCATENATE("Only display if the answer to ",D$59, "is >=3") -> Only display if the answer to How many different types of Urinal with automatic sensor flushs are installed?is >=3 | D118: =CONCATENATE("Enter number of Type 3 ",+'lookup tables'!C$37,"s installed") -> Enter number of Type 3 Urinal with automatic sensor flushs installed | F118: Enter an integer >=1
A119: Component details sensor flush urinals | B119: 66 | C119: =CONCATENATE("Only display if the answer to ",D$59, "is >=3") -> Only display if the answer to How many different types of Urinal with automatic sensor flushs are installed?is >=3 | D119: Enter average flush volume of Type 3 component in litres | F119: Enter a positive number to 2dps
A120: Component details sensor flush urinals | B120: 67 | C120: =CONCATENATE("Only display if the answer to ",D$59, "is >=4") -> Only display if the answer to How many different types of Urinal with automatic sensor flushs are installed?is >=4 | D120: =CONCATENATE("Enter number of Type 4 ",+'lookup tables'!C$37,"s installed") -> Enter number of Type 4 Urinal with automatic sensor flushs installed | F120: Enter an integer >=1
A121: Component details sensor flush urinals | B121: 68 | C121: =CONCATENATE("Only display if the answer to ",D$59, "is >=4") -> Only display if the answer to How many different types of Urinal with automatic sensor flushs are installed?is >=4 | D121: Enter average flush volume of Type 4 component in litres | F121: Enter a positive number to 2dps
A122: Component details sensor flush urinals | B122: 69 | C122: =CONCATENATE("Only display if the answer to ",D$59, "is >=5") -> Only display if the answer to How many different types of Urinal with automatic sensor flushs are installed?is >=5 | D122: =CONCATENATE("Enter number of Type 5 ",+'lookup tables'!C$37,"s installed") -> Enter number of Type 5 Urinal with automatic sensor flushs installed | F122: Enter an integer >=1
A123: Component details sensor flush urinals | B123: 70 | C123: =CONCATENATE("Only display if the answer to ",D$59, "is >=5") -> Only display if the answer to How many different types of Urinal with automatic sensor flushs are installed?is >=5 | D123: Enter average flush volume of Type 5 component in litres | F123: Enter a positive number to 2dps
A124: Component details sensor flush urinals | B124: 71 | C124: =CONCATENATE("Only display if the answer to ",D$59, "is >=6") -> Only display if the answer to How many different types of Urinal with automatic sensor flushs are installed?is >=6 | D124: =CONCATENATE("Enter number of Type 6 ",+'lookup tables'!C$37,"s installed") -> Enter number of Type 6 Urinal with automatic sensor flushs installed | F124: Enter an integer >=1
A125: Component details sensor flush urinals | B125: 72 | C125: =CONCATENATE("Only display if the answer to ",D$59, "is >=6") -> Only display if the answer to How many different types of Urinal with automatic sensor flushs are installed?is >=6 | D125: Enter average flush volume of Type 6 component in litres | F125: Enter a positive number to 2dps
A126: Component details sensor flush urinals | B126: 73 | C126: =CONCATENATE("Only display if the answer to ",D$59, "is >=7") -> Only display if the answer to How many different types of Urinal with automatic sensor flushs are installed?is >=7 | D126: =CONCATENATE("Enter number of Type 7 ",+'lookup tables'!C$37,"s installed") -> Enter number of Type 7 Urinal with automatic sensor flushs installed | F126: Enter an integer >=1
A127: Component details sensor flush urinals | B127: 74 | C127: =CONCATENATE("Only display if the answer to ",D$59, "is >=7") -> Only display if the answer to How many different types of Urinal with automatic sensor flushs are installed?is >=7 | D127: Enter average flush volume of Type 7 component in litres | F127: Enter a positive number to 2dps
A128: Component details sensor flush urinals | B128: 75 | C128: =CONCATENATE("Only display if the answer to ",D$59, "is >=8") -> Only display if the answer to How many different types of Urinal with automatic sensor flushs are installed?is >=8 | D128: =CONCATENATE("Enter number of Type 8 ",+'lookup tables'!C$37,"s installed") -> Enter number of Type 8 Urinal with automatic sensor flushs installed | F128: Enter an integer >=1
A129: Component details sensor flush urinals | B129: 76 | C129: =CONCATENATE("Only display if the answer to ",D$59, "is >=8") -> Only display if the answer to How many different types of Urinal with automatic sensor flushs are installed?is >=8 | D129: Enter average flush volume of Type 8 component in litres | F129: Enter a positive number to 2dps
A130: Component details waterless urinals
A131: Component details waterless urinals | B131: 44 | C131: =CONCATENATE("Only display if the answer to ",+D43, " is Yes") -> Only display if the answer to Are any of the urinals waterless is Yes | D131: =CONCATENATE("Enter number of ",+'lookup tables'!C38," installed") -> Enter number of Waterless urinals installed | F131: Enter an integer >=1
A132: Component details Wash hand basin taps
A133: Component details Wash hand basin taps | B133: 60 | C133: =CONCATENATE("Only display if the answer to ",D$60, "is >=1") -> Only display if the answer to How many different types of Wash hand basin taps are installed?is >=1 | D133: =CONCATENATE("Enter number of Type 1 ",+'lookup tables'!C$39,"s installed") -> Enter number of Type 1 Wash hand basin taps installed | F133: Enter an integer >=1
A134: Component details Wash hand basin taps | B134: 61 | C134: =CONCATENATE("Only display if the answer to ",D$60, "is >=1") -> Only display if the answer to How many different types of Wash hand basin taps are installed?is >=1 | D134: Enter flow rate of Type 1 component in litres per minute | F134: Enter a positive number to 2dps
A135: Component details Wash hand basin taps | B135: 62 | C135: =CONCATENATE("Only display if the answer to ",D$60, "is >=2") -> Only display if the answer to How many different types of Wash hand basin taps are installed?is >=2 | D135: =CONCATENATE("Enter number of Type 2 ",+'lookup tables'!C$39,"s installed") -> Enter number of Type 2 Wash hand basin taps installed | F135: Enter an integer >=1
A136: Component details Wash hand basin taps | B136: 63 | C136: =CONCATENATE("Only display if the answer to ",D$60, "is >=2") -> Only display if the answer to How many different types of Wash hand basin taps are installed?is >=2 | D136: Enter flow rate of Type 2 component in litres per minute | F136: Enter a positive number to 2dps
A137: Component details Wash hand basin taps | B137: 64 | C137: =CONCATENATE("Only display if the answer to ",D$60, "is >=3") -> Only display if the answer to How many different types of Wash hand basin taps are installed?is >=3 | D137: =CONCATENATE("Enter number of Type 3 ",+'lookup tables'!C$39,"s installed") -> Enter number of Type 3 Wash hand basin taps installed | F137: Enter an integer >=1
A138: Component details Wash hand basin taps | B138: 65 | C138: =CONCATENATE("Only display if the answer to ",D$60, "is >=3") -> Only display if the answer to How many different types of Wash hand basin taps are installed?is >=3 | D138: Enter flow rate of Type 3 component in litres per minute | F138: Enter a positive number to 2dps
A139: Component details Wash hand basin taps | B139: 66 | C139: =CONCATENATE("Only display if the answer to ",D$60, "is >=4") -> Only display if the answer to How many different types of Wash hand basin taps are installed?is >=4 | D139: =CONCATENATE("Enter number of Type 4 ",+'lookup tables'!C$39,"s installed") -> Enter number of Type 4 Wash hand basin taps installed | F139: Enter an integer >=1
A140: Component details Wash hand basin taps | B140: 67 | C140: =CONCATENATE("Only display if the answer to ",D$60, "is >=4") -> Only display if the answer to How many different types of Wash hand basin taps are installed?is >=4 | D140: Enter flow rate of Type 4 component in litres per minute | F140: Enter a positive number to 2dps
A141: Component details Wash hand basin taps | B141: 68 | C141: =CONCATENATE("Only display if the answer to ",D$60, "is >=5") -> Only display if the answer to How many different types of Wash hand basin taps are installed?is >=5 | D141: =CONCATENATE("Enter number of Type 5 ",+'lookup tables'!C$39,"s installed") -> Enter number of Type 5 Wash hand basin taps installed | F141: Enter an integer >=1
A142: Component details Wash hand basin taps | B142: 69 | C142: =CONCATENATE("Only display if the answer to ",D$60, "is >=5") -> Only display if the answer to How many different types of Wash hand basin taps are installed?is >=5 | D142: Enter flow rate of Type 5 component in litres per minute | F142: Enter a positive number to 2dps
A143: Component details Wash hand basin taps | B143: 70 | C143: =CONCATENATE("Only display if the answer to ",D$60, "is >=6") -> Only display if the answer to How many different types of Wash hand basin taps are installed?is >=6 | D143: =CONCATENATE("Enter number of Type 6 ",+'lookup tables'!C$39,"s installed") -> Enter number of Type 6 Wash hand basin taps installed | F143: Enter an integer >=1
A144: Component details Wash hand basin taps | B144: 71 | C144: =CONCATENATE("Only display if the answer to ",D$60, "is >=6") -> Only display if the answer to How many different types of Wash hand basin taps are installed?is >=6 | D144: Enter flow rate of Type 6 component in litres per minute | F144: Enter a positive number to 2dps
A145: Component details Wash hand basin taps | B145: 72 | C145: =CONCATENATE("Only display if the answer to ",D$60, "is >=7") -> Only display if the answer to How many different types of Wash hand basin taps are installed?is >=7 | D145: =CONCATENATE("Enter number of Type 7 ",+'lookup tables'!C$39,"s installed") -> Enter number of Type 7 Wash hand basin taps installed | F145: Enter an integer >=1
A146: Component details Wash hand basin taps | B146: 73 | C146: =CONCATENATE("Only display if the answer to ",D$60, "is >=7") -> Only display if the answer to How many different types of Wash hand basin taps are installed?is >=7 | D146: Enter flow rate of Type 7 component in litres per minute | F146: Enter a positive number to 2dps
A147: Component details Wash hand basin taps | B147: 74 | C147: =CONCATENATE("Only display if the answer to ",D$60, "is >=8") -> Only display if the answer to How many different types of Wash hand basin taps are installed?is >=8 | D147: =CONCATENATE("Enter number of Type 8 ",+'lookup tables'!C$39,"s installed") -> Enter number of Type 8 Wash hand basin taps installed | F147: Enter an integer >=1
A148: Component details Wash hand basin taps | B148: 75 | C148: =CONCATENATE("Only display if the answer to ",D$60, "is >=8") -> Only display if the answer to How many different types of Wash hand basin taps are installed?is >=8 | D148: Enter flow rate of Type 8 component in litres per minute | F148: Enter a positive number to 2dps
A149: Component details Showers
A150: Component details Showers | B150: 76 | C150: =CONCATENATE("Only display if the answer to ",D$61, "is >=1") -> Only display if the answer to How many different types of Showers are installed?is >=1 | D150: =CONCATENATE("Enter number of Type 1 ",+'lookup tables'!C$40,"s installed") -> Enter number of Type 1 Showers installed | F150: Enter an integer >=1
A151: Component details Showers | B151: 77 | C151: =CONCATENATE("Only display if the answer to ",D$61, "is >=1") -> Only display if the answer to How many different types of Showers are installed?is >=1 | D151: Enter flow rate of Type 1 component in litres per minute | F151: Enter a positive number to 2dps
A152: Component details Showers | B152: 78 | C152: =CONCATENATE("Only display if the answer to ",D$61, "is >=2") -> Only display if the answer to How many different types of Showers are installed?is >=2 | D152: =CONCATENATE("Enter number of Type 2 ",+'lookup tables'!C$40,"s installed") -> Enter number of Type 2 Showers installed | F152: Enter an integer >=1
A153: Component details Showers | B153: 79 | C153: =CONCATENATE("Only display if the answer to ",D$61, "is >=2") -> Only display if the answer to How many different types of Showers are installed?is >=2 | D153: Enter flow rate of Type 2 component in litres per minute | F153: Enter a positive number to 2dps
A154: Component details Showers | B154: 80 | C154: =CONCATENATE("Only display if the answer to ",D$61, "is >=3") -> Only display if the answer to How many different types of Showers are installed?is >=3 | D154: =CONCATENATE("Enter number of Type 3 ",+'lookup tables'!C$40,"s installed") -> Enter number of Type 3 Showers installed | F154: Enter an integer >=1
A155: Component details Showers | B155: 81 | C155: =CONCATENATE("Only display if the answer to ",D$61, "is >=3") -> Only display if the answer to How many different types of Showers are installed?is >=3 | D155: Enter flow rate of Type 3 component in litres per minute | F155: Enter a positive number to 2dps
A156: Component details Showers | B156: 82 | C156: =CONCATENATE("Only display if the answer to ",D$61, "is >=4") -> Only display if the answer to How many different types of Showers are installed?is >=4 | D156: =CONCATENATE("Enter number of Type 4 ",+'lookup tables'!C$40,"s installed") -> Enter number of Type 4 Showers installed | F156: Enter an integer >=1
A157: Component details Showers | B157: 83 | C157: =CONCATENATE("Only display if the answer to ",D$61, "is >=4") -> Only display if the answer to How many different types of Showers are installed?is >=4 | D157: Enter flow rate of Type 4 component in litres per minute | F157: Enter a positive number to 2dps
A158: Component details Showers | B158: 84 | C158: =CONCATENATE("Only display if the answer to ",D$61, "is >=5") -> Only display if the answer to How many different types of Showers are installed?is >=5 | D158: =CONCATENATE("Enter number of Type 5 ",+'lookup tables'!C$40,"s installed") -> Enter number of Type 5 Showers installed | F158: Enter an integer >=1
A159: Component details Showers | B159: 85 | C159: =CONCATENATE("Only display if the answer to ",D$61, "is >=5") -> Only display if the answer to How many different types of Showers are installed?is >=5 | D159: Enter flow rate of Type 5 component in litres per minute | F159: Enter a positive number to 2dps
A160: Component details Showers | B160: 86 | C160: =CONCATENATE("Only display if the answer to ",D$61, "is >=6") -> Only display if the answer to How many different types of Showers are installed?is >=6 | D160: =CONCATENATE("Enter number of Type 6 ",+'lookup tables'!C$40,"s installed") -> Enter number of Type 6 Showers installed | F160: Enter an integer >=1
A161: Component details Showers | B161: 87 | C161: =CONCATENATE("Only display if the answer to ",D$61, "is >=6") -> Only display if the answer to How many different types of Showers are installed?is >=6 | D161: Enter flow rate of Type 6 component in litres per minute | F161: Enter a positive number to 2dps
A162: Component details Showers | B162: 88 | C162: =CONCATENATE("Only display if the answer to ",D$61, "is >=7") -> Only display if the answer to How many different types of Showers are installed?is >=7 | D162: =CONCATENATE("Enter number of Type 7 ",+'lookup tables'!C$40,"s installed") -> Enter number of Type 7 Showers installed | F162: Enter an integer >=1
A163: Component details Showers | B163: 89 | C163: =CONCATENATE("Only display if the answer to ",D$61, "is >=7") -> Only display if the answer to How many different types of Showers are installed?is >=7 | D163: Enter flow rate of Type 7 component in litres per minute | F163: Enter a positive number to 2dps
A164: Component details Showers | B164: 90 | C164: =CONCATENATE("Only display if the answer to ",D$61, "is >=8") -> Only display if the answer to How many different types of Showers are installed?is >=8 | D164: =CONCATENATE("Enter number of Type 8 ",+'lookup tables'!C$40,"s installed") -> Enter number of Type 8 Showers installed | F164: Enter an integer >=1
A165: Component details Showers | B165: 91 | C165: =CONCATENATE("Only display if the answer to ",D$61, "is >=8") -> Only display if the answer to How many different types of Showers are installed?is >=8 | D165: Enter flow rate of Type 8 component in litres per minute | F165: Enter a positive number to 2dps
A166: Component details Baths
A167: Component details Baths | B167: 92 | C167: =CONCATENATE("Only display if the answer to ",D$62, "is >=1") -> Only display if the answer to How many different types of Baths are installed?is >=1 | D167: =CONCATENATE("Enter number of Type 1 ",+'lookup tables'!C$41,"s installed") -> Enter number of Type 1 Baths installed | F167: Enter an integer >=1
A168: Component details Baths | B168: 93 | C168: =CONCATENATE("Only display if the answer to ",D$62, "is >=1") -> Only display if the answer to How many different types of Baths are installed?is >=1 | D168: Enter average flush flow rate of Type 1 component in litres | F168: Enter a positive number to 2dps
A169: Component details Baths | B169: 94 | C169: =CONCATENATE("Only display if the answer to ",D$62, "is >=2") -> Only display if the answer to How many different types of Baths are installed?is >=2 | D169: =CONCATENATE("Enter number of Type 2 ",+'lookup tables'!C$41,"s installed") -> Enter number of Type 2 Baths installed | F169: Enter an integer >=1
A170: Component details Baths | B170: 95 | C170: =CONCATENATE("Only display if the answer to ",D$62, "is >=2") -> Only display if the answer to How many different types of Baths are installed?is >=2 | D170: Enter average flush flow rate of Type 2 component in litres | F170: Enter a positive number to 2dps
A171: Component details Baths | B171: 96 | C171: =CONCATENATE("Only display if the answer to ",D$62, "is >=3") -> Only display if the answer to How many different types of Baths are installed?is >=3 | D171: =CONCATENATE("Enter number of Type 3 ",+'lookup tables'!C$41,"s installed") -> Enter number of Type 3 Baths installed | F171: Enter an integer >=1
A172: Component details Baths | B172: 97 | C172: =CONCATENATE("Only display if the answer to ",D$62, "is >=3") -> Only display if the answer to How many different types of Baths are installed?is >=3 | D172: Enter average flush flow rate of Type 3 component in litres | F172: Enter a positive number to 2dps
A173: Component details Baths | B173: 98 | C173: =CONCATENATE("Only display if the answer to ",D$62, "is >=4") -> Only display if the answer to How many different types of Baths are installed?is >=4 | D173: =CONCATENATE("Enter number of Type 4 ",+'lookup tables'!C$41,"s installed") -> Enter number of Type 4 Baths installed | F173: Enter an integer >=1
A174: Component details Baths | B174: 99 | C174: =CONCATENATE("Only display if the answer to ",D$62, "is >=4") -> Only display if the answer to How many different types of Baths are installed?is >=4 | D174: Enter average flush flow rate of Type 4 component in litres | F174: Enter a positive number to 2dps
A175: Component details Baths | B175: 100 | C175: =CONCATENATE("Only display if the answer to ",D$62, "is >=5") -> Only display if the answer to How many different types of Baths are installed?is >=5 | D175: =CONCATENATE("Enter number of Type 5 ",+'lookup tables'!C$41,"s installed") -> Enter number of Type 5 Baths installed | F175: Enter an integer >=1
A176: Component details Baths | B176: 101 | C176: =CONCATENATE("Only display if the answer to ",D$62, "is >=5") -> Only display if the answer to How many different types of Baths are installed?is >=5 | D176: Enter average flush flow rate of Type 5 component in litres | F176: Enter a positive number to 2dps
A177: Component details Baths | B177: 102 | C177: =CONCATENATE("Only display if the answer to ",D$62, "is >=6") -> Only display if the answer to How many different types of Baths are installed?is >=6 | D177: =CONCATENATE("Enter number of Type 6 ",+'lookup tables'!C$41,"s installed") -> Enter number of Type 6 Baths installed | F177: Enter an integer >=1
A178: Component details Baths | B178: 103 | C178: =CONCATENATE("Only display if the answer to ",D$62, "is >=6") -> Only display if the answer to How many different types of Baths are installed?is >=6 | D178: Enter average flush flow rate of Type 6 component in litres | F178: Enter a positive number to 2dps
A179: Component details Baths | B179: 104 | C179: =CONCATENATE("Only display if the answer to ",D$62, "is >=7") -> Only display if the answer to How many different types of Baths are installed?is >=7 | D179: =CONCATENATE("Enter number of Type 7 ",+'lookup tables'!C$41,"s installed") -> Enter number of Type 7 Baths installed | F179: Enter an integer >=1
A180: Component details Baths | B180: 105 | C180: =CONCATENATE("Only display if the answer to ",D$62, "is >=7") -> Only display if the answer to How many different types of Baths are installed?is >=7 | D180: Enter average flush flow rate of Type 7 component in litres | F180: Enter a positive number to 2dps
A181: Component details Baths | B181: 106 | C181: =CONCATENATE("Only display if the answer to ",D$62, "is >=8") -> Only display if the answer to How many different types of Baths are installed?is >=8 | D181: =CONCATENATE("Enter number of Type 8 ",+'lookup tables'!C$41,"s installed") -> Enter number of Type 8 Baths installed | F181: Enter an integer >=1
A182: Component details Baths | B182: 107 | C182: =CONCATENATE("Only display if the answer to ",D$62, "is >=8") -> Only display if the answer to How many different types of Baths are installed?is >=8 | D182: Enter average flush flow rate of Type 8 component in litres | F182: Enter a positive number to 2dps
A183: Component details Kitchen taps: kitchenette
A184: Component details Kitchen taps: kitchenette | B184: 108 | C184: =CONCATENATE("Only display if the answer to ",D$63, "is >=1") -> Only display if the answer to How many different types of Kitchen taps: kitchenette are installed?is >=1 | D184: =CONCATENATE("Enter number of Type 1 ",+'lookup tables'!C$42,"s installed") -> Enter number of Type 1 Kitchen taps: kitchenettes installed | F184: Enter an integer >=1
A185: Component details Kitchen taps: kitchenette | B185: 109 | C185: =CONCATENATE("Only display if the answer to ",D$63, "is >=1") -> Only display if the answer to How many different types of Kitchen taps: kitchenette are installed?is >=1 | D185: Enter flow rate of Type 1 component in litres per minute | F185: Enter a positive number to 2dps
A186: Component details Kitchen taps: kitchenette | B186: 110 | C186: =CONCATENATE("Only display if the answer to ",D$63, "is >=2") -> Only display if the answer to How many different types of Kitchen taps: kitchenette are installed?is >=2 | D186: =CONCATENATE("Enter number of Type 2 ",+'lookup tables'!C$42,"s installed") -> Enter number of Type 2 Kitchen taps: kitchenettes installed | F186: Enter an integer >=1
A187: Component details Kitchen taps: kitchenette | B187: 111 | C187: =CONCATENATE("Only display if the answer to ",D$63, "is >=2") -> Only display if the answer to How many different types of Kitchen taps: kitchenette are installed?is >=2 | D187: Enter flow rate of Type 2 component in litres per minute | F187: Enter a positive number to 2dps
A188: Component details Kitchen taps: kitchenette | B188: 112 | C188: =CONCATENATE("Only display if the answer to ",D$63, "is >=3") -> Only display if the answer to How many different types of Kitchen taps: kitchenette are installed?is >=3 | D188: =CONCATENATE("Enter number of Type 3 ",+'lookup tables'!C$42,"s installed") -> Enter number of Type 3 Kitchen taps: kitchenettes installed | F188: Enter an integer >=1
A189: Component details Kitchen taps: kitchenette | B189: 113 | C189: =CONCATENATE("Only display if the answer to ",D$63, "is >=3") -> Only display if the answer to How many different types of Kitchen taps: kitchenette are installed?is >=3 | D189: Enter flow rate of Type 3 component in litres per minute | F189: Enter a positive number to 2dps
A190: Component details Kitchen taps: kitchenette | B190: 114 | C190: =CONCATENATE("Only display if the answer to ",D$63, "is >=4") -> Only display if the answer to How many different types of Kitchen taps: kitchenette are installed?is >=4 | D190: =CONCATENATE("Enter number of Type 4 ",+'lookup tables'!C$42,"s installed") -> Enter number of Type 4 Kitchen taps: kitchenettes installed | F190: Enter an integer >=1
A191: Component details Kitchen taps: kitchenette | B191: 115 | C191: =CONCATENATE("Only display if the answer to ",D$63, "is >=4") -> Only display if the answer to How many different types of Kitchen taps: kitchenette are installed?is >=4 | D191: Enter flow rate of Type 4 component in litres per minute | F191: Enter a positive number to 2dps
A192: Component details Kitchen taps: kitchenette | B192: 116 | C192: =CONCATENATE("Only display if the answer to ",D$63, "is >=5") -> Only display if the answer to How many different types of Kitchen taps: kitchenette are installed?is >=5 | D192: =CONCATENATE("Enter number of Type 5 ",+'lookup tables'!C$42,"s installed") -> Enter number of Type 5 Kitchen taps: kitchenettes installed | F192: Enter an integer >=1
A193: Component details Kitchen taps: kitchenette | B193: 117 | C193: =CONCATENATE("Only display if the answer to ",D$63, "is >=5") -> Only display if the answer to How many different types of Kitchen taps: kitchenette are installed?is >=5 | D193: Enter flow rate of Type 5 component in litres per minute | F193: Enter a positive number to 2dps
A194: Component details Kitchen taps: kitchenette | B194: 118 | C194: =CONCATENATE("Only display if the answer to ",D$63, "is >=6") -> Only display if the answer to How many different types of Kitchen taps: kitchenette are installed?is >=6 | D194: =CONCATENATE("Enter number of Type 6 ",+'lookup tables'!C$42,"s installed") -> Enter number of Type 6 Kitchen taps: kitchenettes installed | F194: Enter an integer >=1
A195: Component details Kitchen taps: kitchenette | B195: 119 | C195: =CONCATENATE("Only display if the answer to ",D$63, "is >=6") -> Only display if the answer to How many different types of Kitchen taps: kitchenette are installed?is >=6 | D195: Enter flow rate of Type 6 component in litres per minute | F195: Enter a positive number to 2dps
A196: Component details Kitchen taps: kitchenette | B196: 120 | C196: =CONCATENATE("Only display if the answer to ",D$63, "is >=7") -> Only display if the answer to How many different types of Kitchen taps: kitchenette are installed?is >=7 | D196: =CONCATENATE("Enter number of Type 7 ",+'lookup tables'!C$42,"s installed") -> Enter number of Type 7 Kitchen taps: kitchenettes installed | F196: Enter an integer >=1
A197: Component details Kitchen taps: kitchenette | B197: 121 | C197: =CONCATENATE("Only display if the answer to ",D$63, "is >=7") -> Only display if the answer to How many different types of Kitchen taps: kitchenette are installed?is >=7 | D197: Enter flow rate of Type 7 component in litres per minute | F197: Enter a positive number to 2dps
A198: Component details Kitchen taps: kitchenette | B198: 122 | C198: =CONCATENATE("Only display if the answer to ",D$63, "is >=8") -> Only display if the answer to How many different types of Kitchen taps: kitchenette are installed?is >=8 | D198: =CONCATENATE("Enter number of Type 8 ",+'lookup tables'!C$42,"s installed") -> Enter number of Type 8 Kitchen taps: kitchenettes installed | F198: Enter an integer >=1
A199: Component details Kitchen taps: kitchenette | B199: 123 | C199: =CONCATENATE("Only display if the answer to ",D$63, "is >=8") -> Only display if the answer to How many different types of Kitchen taps: kitchenette are installed?is >=8 | D199: Enter flow rate of Type 8 component in litres per minute | F199: Enter a positive number to 2dps
A200: Component details Domestic sized washing machines
A201: Component details Domestic sized washing machines | B201: 124 | C201: =CONCATENATE("Only display if the answer to ",D$64, "is >=1") -> Only display if the answer to How many different types of Domestic sized washing machines are installed?is >=1 | D201: =CONCATENATE("Enter number of Type 1 ",+'lookup tables'!C$43,"s installed") -> Enter number of Type 1 Domestic sized washing machiness installed | F201: Enter an integer >=1
A202: Component details Domestic sized washing machines | B202: 125 | C202: =CONCATENATE("Only display if the answer to ",D$64, "is >=1") -> Only display if the answer to How many different types of Domestic sized washing machines are installed?is >=1 | D202: Enter flow rate of Type 1 component in litres per cycle | F202: Enter a positive number to 2dps
A203: Component details Domestic sized washing machines | B203: 126 | C203: =CONCATENATE("Only display if the answer to ",D$64, "is >=2") -> Only display if the answer to How many different types of Domestic sized washing machines are installed?is >=2 | D203: =CONCATENATE("Enter number of Type 2 ",+'lookup tables'!C$43,"s installed") -> Enter number of Type 2 Domestic sized washing machiness installed | F203: Enter an integer >=1
A204: Component details Domestic sized washing machines | B204: 127 | C204: =CONCATENATE("Only display if the answer to ",D$64, "is >=2") -> Only display if the answer to How many different types of Domestic sized washing machines are installed?is >=2 | D204: Enter flow rate of Type 2 component in litres per cycle | F204: Enter a positive number to 2dps
A205: Component details Domestic sized washing machines | B205: 128 | C205: =CONCATENATE("Only display if the answer to ",D$64, "is >=3") -> Only display if the answer to How many different types of Domestic sized washing machines are installed?is >=3 | D205: =CONCATENATE("Enter number of Type 3 ",+'lookup tables'!C$43,"s installed") -> Enter number of Type 3 Domestic sized washing machiness installed | F205: Enter an integer >=1
A206: Component details Domestic sized washing machines | B206: 129 | C206: =CONCATENATE("Only display if the answer to ",D$64, "is >=3") -> Only display if the answer to How many different types of Domestic sized washing machines are installed?is >=3 | D206: Enter flow rate of Type 3 component in litres per cycle | F206: Enter a positive number to 2dps
A207: Component details Domestic sized washing machines | B207: 130 | C207: =CONCATENATE("Only display if the answer to ",D$64, "is >=4") -> Only display if the answer to How many different types of Domestic sized washing machines are installed?is >=4 | D207: =CONCATENATE("Enter number of Type 4 ",+'lookup tables'!C$43,"s installed") -> Enter number of Type 4 Domestic sized washing machiness installed | F207: Enter an integer >=1
A208: Component details Domestic sized washing machines | B208: 131 | C208: =CONCATENATE("Only display if the answer to ",D$64, "is >=4") -> Only display if the answer to How many different types of Domestic sized washing machines are installed?is >=4 | D208: Enter flow rate of Type 4 component in litres per cycle | F208: Enter a positive number to 2dps
A209: Component details Domestic sized washing machines | B209: 132 | C209: =CONCATENATE("Only display if the answer to ",D$64, "is >=5") -> Only display if the answer to How many different types of Domestic sized washing machines are installed?is >=5 | D209: =CONCATENATE("Enter number of Type 5 ",+'lookup tables'!C$43,"s installed") -> Enter number of Type 5 Domestic sized washing machiness installed | F209: Enter an integer >=1
A210: Component details Domestic sized washing machines | B210: 133 | C210: =CONCATENATE("Only display if the answer to ",D$64, "is >=5") -> Only display if the answer to How many different types of Domestic sized washing machines are installed?is >=5 | D210: Enter flow rate of Type 5 component in litres per cycle | F210: Enter a positive number to 2dps
A211: Component details Domestic sized washing machines | B211: 134 | C211: =CONCATENATE("Only display if the answer to ",D$64, "is >=6") -> Only display if the answer to How many different types of Domestic sized washing machines are installed?is >=6 | D211: =CONCATENATE("Enter number of Type 6 ",+'lookup tables'!C$43,"s installed") -> Enter number of Type 6 Domestic sized washing machiness installed | F211: Enter an integer >=1
A212: Component details Domestic sized washing machines | B212: 135 | C212: =CONCATENATE("Only display if the answer to ",D$64, "is >=6") -> Only display if the answer to How many different types of Domestic sized washing machines are installed?is >=6 | D212: Enter flow rate of Type 6 component in litres per cycle | F212: Enter a positive number to 2dps
A213: Component details Domestic sized washing machines | B213: 136 | C213: =CONCATENATE("Only display if the answer to ",D$64, "is >=7") -> Only display if the answer to How many different types of Domestic sized washing machines are installed?is >=7 | D213: =CONCATENATE("Enter number of Type 7 ",+'lookup tables'!C$43,"s installed") -> Enter number of Type 7 Domestic sized washing machiness installed | F213: Enter an integer >=1
A214: Component details Domestic sized washing machines | B214: 137 | C214: =CONCATENATE("Only display if the answer to ",D$64, "is >=7") -> Only display if the answer to How many different types of Domestic sized washing machines are installed?is >=7 | D214: Enter flow rate of Type 7 component in litres per cycle | F214: Enter a positive number to 2dps
A215: Component details Domestic sized washing machines | B215: 138 | C215: =CONCATENATE("Only display if the answer to ",D$64, "is >=8") -> Only display if the answer to How many different types of Domestic sized washing machines are installed?is >=8 | D215: =CONCATENATE("Enter number of Type 8 ",+'lookup tables'!C$43,"s installed") -> Enter number of Type 8 Domestic sized washing machiness installed | F215: Enter an integer >=1
A216: Component details Domestic sized washing machines | B216: 139 | C216: =CONCATENATE("Only display if the answer to ",D$64, "is >=8") -> Only display if the answer to How many different types of Domestic sized washing machines are installed?is >=8 | D216: Enter flow rate of Type 8 component in litres per cycle | F216: Enter a positive number to 2dps
A217: Component details Domestic sized dishwasher
A218: Component details Domestic sized dishwasher | B218: 140 | C218: =CONCATENATE("Only display if the answer to ",D$65, "is >=1") -> Only display if the answer to How many different types of Domestic sized dishwashers are installed?is >=1 | D218: =CONCATENATE("Enter number of Type 1 ",+'lookup tables'!C$44,"s installed") -> Enter number of Type 1 Domestic sized dishwasherss installed | F218: Enter an integer >=1
A219: Component details Domestic sized dishwasher | B219: 141 | C219: =CONCATENATE("Only display if the answer to ",D$65, "is >=1") -> Only display if the answer to How many different types of Domestic sized dishwashers are installed?is >=1 | D219: Enter flow rate of Type 1 component in litres per cycle | F219: Enter a positive number to 2dps
A220: Component details Domestic sized dishwasher | B220: 142 | C220: =CONCATENATE("Only display if the answer to ",D$65, "is >=2") -> Only display if the answer to How many different types of Domestic sized dishwashers are installed?is >=2 | D220: =CONCATENATE("Enter number of Type 2 ",+'lookup tables'!C$44,"s installed") -> Enter number of Type 2 Domestic sized dishwasherss installed | F220: Enter an integer >=1
A221: Component details Domestic sized dishwasher | B221: 143 | C221: =CONCATENATE("Only display if the answer to ",D$65, "is >=2") -> Only display if the answer to How many different types of Domestic sized dishwashers are installed?is >=2 | D221: Enter flow rate of Type 2 component in litres per cycle | F221: Enter a positive number to 2dps
A222: Component details Domestic sized dishwasher | B222: 144 | C222: =CONCATENATE("Only display if the answer to ",D$65, "is >=3") -> Only display if the answer to How many different types of Domestic sized dishwashers are installed?is >=3 | D222: =CONCATENATE("Enter number of Type 3 ",+'lookup tables'!C$44,"s installed") -> Enter number of Type 3 Domestic sized dishwasherss installed | F222: Enter an integer >=1
A223: Component details Domestic sized dishwasher | B223: 145 | C223: =CONCATENATE("Only display if the answer to ",D$65, "is >=3") -> Only display if the answer to How many different types of Domestic sized dishwashers are installed?is >=3 | D223: Enter flow rate of Type 3 component in litres per cycle | F223: Enter a positive number to 2dps
A224: Component details Domestic sized dishwasher | B224: 146 | C224: =CONCATENATE("Only display if the answer to ",D$65, "is >=4") -> Only display if the answer to How many different types of Domestic sized dishwashers are installed?is >=4 | D224: =CONCATENATE("Enter number of Type 4 ",+'lookup tables'!C$44,"s installed") -> Enter number of Type 4 Domestic sized dishwasherss installed | F224: Enter an integer >=1
A225: Component details Domestic sized dishwasher | B225: 147 | C225: =CONCATENATE("Only display if the answer to ",D$65, "is >=4") -> Only display if the answer to How many different types of Domestic sized dishwashers are installed?is >=4 | D225: Enter flow rate of Type 4 component in litres per cycle | F225: Enter a positive number to 2dps
A226: Component details Domestic sized dishwasher | B226: 148 | C226: =CONCATENATE("Only display if the answer to ",D$65, "is >=5") -> Only display if the answer to How many different types of Domestic sized dishwashers are installed?is >=5 | D226: =CONCATENATE("Enter number of Type 5 ",+'lookup tables'!C$44,"s installed") -> Enter number of Type 5 Domestic sized dishwasherss installed | F226: Enter an integer >=1
A227: Component details Domestic sized dishwasher | B227: 149 | C227: =CONCATENATE("Only display if the answer to ",D$65, "is >=5") -> Only display if the answer to How many different types of Domestic sized dishwashers are installed?is >=5 | D227: Enter flow rate of Type 5 component in litres per cycle | F227: Enter a positive number to 2dps
... 131 more rows

Sheet calculation (hidden)
D3: BASELINE | E3: From user data entry | F3: Baseline values * adjustment factor | H3: takes account of alternative options (WC/urinal and shower/bath) and also typical % bath fill and tap full volume | I3: from building type lookup | J3: from building type lookup (for total building or food prepar | K3: from building type lookup | L3: volume* factor*uses per day (div occupant density for fixed uses | M3: lt per person*occupancy density*m2 (Total or food preparation as approprite) | N3: lt/m2*1,000/ occupied days per year | O3: m3/m2/year*m2
E4: number of items | F4: Average water use ltrs | G4: Unit | H4: Adjustment factor | I4: Use per day | J4: occupancy density | K4: occupied days per year | L4: lt per person per day | M4: lt/m2 per day | N4: m3/m2 per year | O4: m3/year
A5: uses per person per day | B5: people related usage | D5: WC | E5: =+E22 -> 0 | F5: =+'lookup tables'!D35*H5 -> 6 | G5: per use | H5: =+H22 -> 1 | I5: =VLOOKUP('Front end'!E$8,'lookup tables'!$C$7:$O$30,6,FALSE) ->  | J5: =J55 ->  | K5: =+'Front end'!$E$11 -> 0 | L5: =+F5*I5 ->  | M5: =+J5*L5 ->  | N5: =+M5/1000*K5 ->  | O5: =+N5*'Front end'!E$9 -> 
A6: uses per person per day | B6: people related usage | D6: Urinals | E6: =+E23+E24+E25 -> 0 | F6: =+'Activity database from wat 01'!C113*H6 -> 7.5 | G6: per hour | H6: 1 | I6: =VLOOKUP('Front end'!E$8,'lookup tables'!$C$7:$O$30,5,FALSE) ->  | J6: =J56 ->  | K6: =+'Front end'!$E$11 -> 0 | L6: =+F6*I6/(J6*'Front end'!$E$9) ->  | M6: =+J6*L6 ->  | O6: =+N6*'Front end'!E$9 -> 
A7: uses per person per day | B7: people related usage | D7: Wash hand basin tap | E7: =+E26 -> 0 | F7: =+'Activity database from wat 01'!C110*H7 -> 0 | G7: per use | H7: =+H24 -> 0 | I7: =VLOOKUP('Front end'!E$8,'lookup tables'!$C$7:$O$30,8,FALSE) ->  | K7: =+'Front end'!$E$11 -> 0 | L7: =+F7*I7 ->  | O7: =+N7*'Front end'!E$9 -> 
A8: uses per person per day | B8: people related usage | D8: Shower | E8: 0 | F8: =+'Activity database from wat 01'!C111*calculation!H8 -> 0 | G8: per use | H8: 0 | I8: =VLOOKUP('Front end'!E$8,'lookup tables'!$C$7:$O$30,9,FALSE) ->  | K8: =+'Front end'!$E$11 -> 0 | O8: =+N8*'Front end'!E$9 -> 
A9: uses per person per day | B9: people related usage | D9: Bath | E9: 0 | F9: =+'Activity database from wat 01'!C112*calculation!H9 -> 0 | G9: per use | H9: 0 | I9: =VLOOKUP('Front end'!E$8,'lookup tables'!$C$7:$O$30,10,FALSE) ->  | K9: =+'Front end'!$E$11 -> 0 | O9: =+N9*'Front end'!E$9 -> 
A10: uses per person per day | B10: people related usage | D10: Kitchen taps: kitchenette | E10: 0 | F10: =+'Activity database from wat 01'!C117*calculation!H10 -> 10 | G10: per use | H10: 1 | I10: =VLOOKUP('Front end'!E$8,'lookup tables'!$C$7:$O$30,11,FALSE) ->  | K10: =+'Front end'!$E$11 -> 0 | O10: =+N10*'Front end'!E$9 -> 
A11: uses per person per day | B11: people related usage | D11: Domestic sized washing machines per cycle | E11: 0 | F11: =+'Activity database from wat 01'!C120*calculation!H11 -> 36 | G11: per use | H11: =+H28 -> 0.4 | I11: =VLOOKUP('Front end'!E$8,'lookup tables'!$C$7:$O$30,12,FALSE) ->  | K11: =+'Front end'!$E$11 -> 0 | O11: =+N11*'Front end'!E$9 -> 
A12: uses per person per day | B12: people related usage | D12: Domestic sized dishwashers per cycle | E12: 0 | F12: =+'Activity database from wat 01'!C119*calculation!H12 -> 0 | G12: per use | H12: 0 | I12: =VLOOKUP('Front end'!E$8,'lookup tables'!$C$7:$O$30,13,FALSE) ->  | K12: =+'Front end'!$E$11 -> 0 | O12: =+N12*'Front end'!E$9 -> 
A13: uses per day | B13: fixed usage | D13: Kitchen taps: restaurant (pre-rinse nozzles only) | E13: 0 | F13: =+'Activity database from wat 01'!C118*calculation!H13 -> 0 | G13: per minute | H13: 0 | I13: =VLOOKUP('Front end'!E$8,'lookup tables'!$C$7:$T$30,14,FALSE) ->  | K13: =+'Front end'!$E$11 -> 0 | L13: =+F13*I13/(J13*'Front end'!$E$9) ->  | O13: =+N13*'Front end'!E$9 -> 
A14: uses per day | B14: fixed usage | D14: Waste disposal unit (commercial kitchens only) | E14: 0 | F14: =+'Activity database from wat 01'!C121*calculation!H14 -> 0 | G14: per minute | H14: 0 | I14: =VLOOKUP('Front end'!E$8,'lookup tables'!$C$7:$T$30,15,FALSE) ->  | K14: =+'Front end'!$E$11 -> 0 | L14: =+F14*I14/(J14*'Front end'!$E$9) ->  | O14: =+N14*'Front end'!E$9 -> 
A15: uses per day | B15: fixed usage | D15: Commercial sized dishwashers per rack | E15: 0 | F15: =+'Activity database from wat 01'!C122*calculation!H15 -> 0 | G15: per rack | H15: 0 | I15: =VLOOKUP('Front end'!E$8,'lookup tables'!$C$7:$T$30,16,FALSE) ->  | K15: =+'Front end'!$E$11 -> 0 | L15: =+F15*I15/(J15*'Front end'!$E$9) ->  | O15: =+N15*'Front end'!E$9 -> 
A16: uses per day | B16: fixed usage | D16: Commercial or industrial sized washing machines per kg | E16: 0 | F16: =+F35 -> 0 | G16: per kg | H16: 0 | I16: =VLOOKUP('Front end'!E$8,'lookup tables'!$C$7:$T$30,17,FALSE) ->  | K16: =+'Front end'!$E$11 -> 0 | L16: =+F16*I16/(J16*'Front end'!$E$9) ->  | O16: =+N16*'Front end'!E$9 -> 
L17: =SUM(L3:L16) ->  | M17: =SUM(M3:M16) ->  | N17: =SUM(N3:N16) ->  | O17: =SUM(O3:O16) -> 
D20: BUILDING Standard occupancy | E20: From user data entry | F20: From user data entry * adjustment factor | H20: takes account of alternative options (WC/urinal and shower/bath) and also typical % bath fill and tap full volume | I20: from building type lookup | J20: from building type lookup (for total building or food prepar | K20: from building type lookup | L20: volume* factor*uses per day (div occupant density for fixed uses | M20: lt per person*occupancy density*m2 | N20: lt/m2*1,000/ occupied days per year | O20: m3/m2/year*m2 | Q20: Number of each type of component | Y20: Water consumption for each type of componets (litres per X) | AG20: Black water and Grey water recovery rate
E21: number of items | F21: Average water use ltrs | G21: Unit | H21: Adjustment factor | I21: Use per day | J21: occupancy density | K21: occupied days per year | L21: lt per person per day | M21: lt/m2 per day | N21: m3/m2 per year | O21: m3/year | Q21: Type 1 | R21: Type 2 | S21: Type 3 | T21: Type 4 | U21: Type 5 | V21: Type 6 | W21: Type 7 | X21: Type 8 | Y21: Type 1 | Z21: Type 2 | AA21: Type 3 | AB21: Type 4 | AC21: Type 5 | AD21: Type 6 | AE21: Type 7 | AF21: Type 8
A22: uses per person per day | B22: people related usage | D22: WC | E22: =SUM(Q22:X22) -> 0 | F22: =IF(E22=0,0,(SUMPRODUCT(Q22:X22,Y22:AF22)/E22)*H22) -> 0 | G22: per use | H22: =IF(SUM(E23:E25)=0,1,+Assumptions!A3) -> 1 | I22: =VLOOKUP('Front end'!E$8,'lookup tables'!$C$7:$O$30,6,FALSE) ->  | J22: =J5 ->  | K22: =VLOOKUP('Front end'!E$8,'lookup tables'!$C$7:$G$30,4,FALSE) ->  | L22: =+F22*I22 ->  | M22: =+J22*L22 ->  | N22: =+M22/1000*K22 ->  | O22: =+N22*'Front end'!E$9 ->  | Q22: =+'Front end'!E72 -> 0 | R22: =+'Front end'!E75 -> 0 | S22: =+'Front end'!E78 -> 0 | T22: =+'Front end'!E81 -> 0 | U22: =+'Front end'!E84 -> 0 | V22: =+'Front end'!E87 -> 0 | W22: =+'Front end'!E90 -> 0 | X22: =+'Front end'!E93 -> 0 | Y22: =(+'Front end'!$E73*1+'Front end'!$E74*3)/4 -> 0 | Z22: =(+'Front end'!$E76*1+'Front end'!$E77*3)/4 -> 0 | AA22: =(+'Front end'!$E79*1+'Front end'!$E80*3)/4 -> 0 | AB22: =(+'Front end'!$E82*1+'Front end'!$E83*3)/4 -> 0 | AC22: =(+'Front end'!$E85*1+'Front end'!$E86*3)/4 -> 0 | AD22: =(+'Front end'!$E88*1+'Front end'!$E89*3)/4 -> 0 | AE22: =(+'Front end'!$E91*1+'Front end'!$E92*3)/4 -> 0 | AF22: =(+'Front end'!$E94*1+'Front end'!$E95*3)/4 -> 0 | AG22: =+'Front end'!E306*Assumptions!A$8/100 -> 0
A23: uses per person per day | B23: people related usage | D23: Urinal timed flush | E23: 0 | F23: 0 | G23: per hour | H23: =IF(E23=0,0,E23/SUM(E23:E25)) -> 0 | I23: =VLOOKUP('Front end'!E$8,'lookup tables'!$C$7:$O$30,5,FALSE) ->  | J23: =J6 ->  | K23: =VLOOKUP('Front end'!E$8,'lookup tables'!$C$7:$G$30,4,FALSE) ->  | L23: =+F23*I23/(J23*'Front end'!$E$9) ->  | M23: =+J23*L23 ->  | O23: =+N23*'Front end'!E$9 ->  | Q23: =+'Front end'!E97 -> 0 | R23: =+'Front end'!E99 -> 0 | S23: =+'Front end'!E101 -> 0 | T23: =+'Front end'!E103 -> 0 | U23: =+'Front end'!E105 -> 0 | V23: =+'Front end'!E107 -> 0 | W23: =+'Front end'!E109 -> 0 | X23: =+'Front end'!E111 -> 0 | Y23: =+'Front end'!E98 -> 0 | Z23: =+'Front end'!E100 -> 0 | AA23: =+'Front end'!E102 -> 0 | AB23: =+'Front end'!E104 -> 0 | AC23: =+'Front end'!E106 -> 0 | AD23: =+'Front end'!E108 -> 0 | AE23: =+'Front end'!E110 -> 0 | AF23: =+'Front end'!E112 -> 0 | AG23: =+'Front end'!E308/100*Assumptions!A8 -> 0
A24: uses per person per day | B24: people related usage | D24: Urinal automatic sensor flush | E24: 0 | F24: 0 | G24: per use | H24: =IF(E24=0,0,E24/SUM(E23:E25)) -> 0 | I24: =VLOOKUP('Front end'!E$8,'lookup tables'!$C$7:$O$30,7,FALSE) ->  | K24: =VLOOKUP('Front end'!E$8,'lookup tables'!$C$7:$G$30,4,FALSE) ->  | L24: =+F24*I24 ->  | O24: =+N24*'Front end'!E$9 ->  | Q24: =+'Front end'!E114 -> 0 | R24: =+'Front end'!E116 -> 0 | S24: =+'Front end'!E118 -> 0 | T24: =+'Front end'!E120 -> 0 | U24: =+'Front end'!E122 -> 0 | V24: =+'Front end'!E124 -> 0 | W24: =+'Front end'!E126 -> 0 | X24: =+'Front end'!E128 -> 0 | Y24: =+'Front end'!E115 -> 0 | Z24: =+'Front end'!E117 -> 0 | AA24: =+'Front end'!E119 -> 0 | AB24: =+'Front end'!E121 -> 0 | AC24: =+'Front end'!E123 -> 0 | AD24: =+'Front end'!E125 -> 0 | AE24: =+'Front end'!E127 -> 0 | AF24: =+'Front end'!E129 -> 0 | AG24: =+'Front end'!E310*Assumptions!A$8/100 -> 0
A25: uses per person per day | B25: people related usage | D25: Urinal waterless | E25: 0 | F25: 0 | G25: per use | H25: =IF(E25=0,0,E25/SUM(E23:E25)) -> 0 | I25: =VLOOKUP('Front end'!E$8,'lookup tables'!$C$7:$O$30,7,FALSE) ->  | K25: =VLOOKUP('Front end'!E$8,'lookup tables'!$C$7:$G$30,4,FALSE) ->  | O25: =+N25*'Front end'!E$9 ->  | Q25: =+'Front end'!E131 -> 0 | Y25: 0
A26: uses per person per day | B26: people related usage | D26: Wash hand basin tap | E26: 0 | F26: 0 | G26: per use | H26: =IF('Front end'!E44="yes",1,0)*Assumptions!A6 -> 0 | I26: =VLOOKUP('Front end'!E$8,'lookup tables'!$C$7:$O$30,8,FALSE) ->  | K26: =VLOOKUP('Front end'!E$8,'lookup tables'!$C$7:$G$30,4,FALSE) ->  | O26: =+N26*'Front end'!E$9 ->  | Q26: =+'Front end'!E133 -> 0 | R26: =+'Front end'!E135 -> 0 | S26: =+'Front end'!E137 -> 0 | T26: =+'Front end'!E139 -> 0 | U26: =+'Front end'!E141 -> 0 | V26: =+'Front end'!E143 -> 0 | W26: =+'Front end'!E145 -> 0 | X26: =+'Front end'!E147 -> 0 | Y26: =+'Front end'!E134 -> 0 | Z26: =+'Front end'!E136 -> 0 | AA26: =+'Front end'!E138 -> 0 | AB26: =+'Front end'!E140 -> 0 | AC26: =+'Front end'!E142 -> 0 | AD26: =+'Front end'!E144 -> 0 | AE26: =+'Front end'!E146 -> 0 | AF26: =+'Front end'!E148 -> 0 | AG26: =+'Front end'!E314*Assumptions!A$7/100 -> 0
A27: uses per person per day | B27: people related usage | D27: Shower | E27: 0 | F27: 0 | G27: per use | H27: =IF(AND('Front end'!E45="yes",'Front end'!E46="yes"),+Assumptions!A4,1) -> 1 | I27: =VLOOKUP('Front end'!E$8,'lookup tables'!$C$7:$O$30,9,FALSE) ->  | K27: =VLOOKUP('Front end'!E$8,'lookup tables'!$C$7:$G$30,4,FALSE) ->  | O27: =+N27*'Front end'!E$9 ->  | Q27: =+'Front end'!E150 -> 0 | R27: =+'Front end'!E152 -> 0 | S27: =+'Front end'!E154 -> 0 | T27: =+'Front end'!E156 -> 0 | U27: =+'Front end'!E158 -> 0 | V27: =+'Front end'!E160 -> 0 | W27: =+'Front end'!E162 -> 0 | X27: =+'Front end'!E164 -> 0 | Y27: =+'Front end'!E151 -> 0 | Z27: =+'Front end'!E153 -> 0 | AA27: =+'Front end'!E155 -> 0 | AB27: =+'Front end'!E157 -> 0 | AC27: =+'Front end'!E159 -> 0 | AD27: =+'Front end'!E161 -> 0 | AE27: =+'Front end'!E163 -> 0 | AF27: =+'Front end'!E165 -> 0 | AG27: =+'Front end'!E316*Assumptions!A$7/100 -> 0
A28: uses per person per day | B28: people related usage | D28: Bath | E28: 0 | F28: 0 | G28: per use | H28: =IF(AND('Front end'!E45="yes",'Front end'!E46="yes"),1-+Assumptions!A4,1)*+Assumptions!A5 -> 0.4 | I28: =VLOOKUP('Front end'!E$8,'lookup tables'!$C$7:$O$30,10,FALSE) ->  | K28: =VLOOKUP('Front end'!E$8,'lookup tables'!$C$7:$G$30,4,FALSE) ->  | O28: =+N28*'Front end'!E$9 ->  | Q28: =+'Front end'!E167 -> 0 | R28: =+'Front end'!E169 -> 0 | S28: =+'Front end'!E171 -> 0 | T28: =+'Front end'!E173 -> 0 | U28: =+'Front end'!E175 -> 0 | V28: =+'Front end'!E177 -> 0 | W28: =+'Front end'!E179 -> 0 | X28: =+'Front end'!E181 -> 0 | Y28: =+'Front end'!E168 -> 0 | Z28: =+'Front end'!E170 -> 0 | AA28: =+'Front end'!E172 -> 0 | AB28: =+'Front end'!E174 -> 0 | AC28: =+'Front end'!E176 -> 0 | AD28: =+'Front end'!E178 -> 0 | AE28: =+'Front end'!E180 -> 0 | AF28: =+'Front end'!E182 -> 0 | AG28: =+'Front end'!E318*Assumptions!A$7/100 -> 0
A29: uses per person per day | B29: people related usage | D29: Kitchen taps: kitchenette | E29: 0 | F29: 0 | G29: per use | H29: =IF('Front end'!E47="yes",1,0)*Assumptions!A6 -> 0 | I29: =VLOOKUP('Front end'!E$8,'lookup tables'!$C$7:$O$30,11,FALSE) ->  | K29: =VLOOKUP('Front end'!E$8,'lookup tables'!$C$7:$G$30,4,FALSE) ->  | O29: =+N29*'Front end'!E$9 ->  | Q29: =+'Front end'!E184 -> 0 | R29: =+'Front end'!E186 -> 0 | S29: =+'Front end'!E188 -> 0 | T29: =+'Front end'!E190 -> 0 | U29: =+'Front end'!E192 -> 0 | V29: =+'Front end'!E194 -> 0 | W29: =+'Front end'!E196 -> 0 | X29: =+'Front end'!E198 -> 0 | Y29: =+'Front end'!E185 -> 0 | Z29: =+'Front end'!E187 -> 0 | AA29: =+'Front end'!E189 -> 0 | AB29: =+'Front end'!E191 -> 0 | AC29: =+'Front end'!E193 -> 0 | AD29: =+'Front end'!E195 -> 0 | AE29: =+'Front end'!E197 -> 0 | AF29: =+'Front end'!E199 -> 0 | AG29: =+'Front end'!E320*Assumptions!A$7/100 -> 0
A30: uses per person per day | B30: people related usage | D30: Domestic sized washing machines per cycle | E30: 0 | F30: 0 | G30: per use | H30: =IF('Front end'!E48="yes",1,0) -> 0 | I30: =VLOOKUP('Front end'!E$8,'lookup tables'!$C$7:$O$30,12,FALSE) ->  | K30: =VLOOKUP('Front end'!E$8,'lookup tables'!$C$7:$G$30,4,FALSE) ->  | O30: =+N30*'Front end'!E$9 ->  | Q30: =+'Front end'!E201 -> 0 | R30: =+'Front end'!E203 -> 0 | S30: =+'Front end'!E205 -> 0 | T30: =+'Front end'!E207 -> 0 | U30: =+'Front end'!E209 -> 0 | V30: =+'Front end'!E211 -> 0 | W30: =+'Front end'!E213 -> 0 | X30: =+'Front end'!E215 -> 0 | Y30: =+'Front end'!E202 -> 0 | Z30: =+'Front end'!E204 -> 0 | AA30: =+'Front end'!E206 -> 0 | AB30: =+'Front end'!E208 -> 0 | AC30: =+'Front end'!E210 -> 0 | AD30: =+'Front end'!E212 -> 0 | AE30: =+'Front end'!E214 -> 0 | AF30: =+'Front end'!E216 -> 0 | AG30: =+'Front end'!E322*Assumptions!A$7/100 -> 0
A31: uses per person per day | B31: people related usage | D31: Domestic sized dishwashers per cycle | E31: 0 | F31: 0 | G31: per use | H31: =IF('Front end'!E49="yes",1,0) -> 0 | I31: =VLOOKUP('Front end'!E$8,'lookup tables'!$C$7:$O$30,13,FALSE) ->  | K31: =VLOOKUP('Front end'!E$8,'lookup tables'!$C$7:$G$30,4,FALSE) ->  | O31: =+N31*'Front end'!E$9 ->  | Q31: =+'Front end'!E218 -> 0 | R31: =+'Front end'!E220 -> 0 | S31: =+'Front end'!E222 -> 0 | T31: =+'Front end'!E224 -> 0 | U31: =+'Front end'!E226 -> 0 | V31: =+'Front end'!E228 -> 0 | W31: =+'Front end'!E230 -> 0 | X31: =+'Front end'!E232 -> 0 | Y31: =+'Front end'!E219 -> 0 | Z31: =+'Front end'!E221 -> 0 | AA31: =+'Front end'!E223 -> 0 | AB31: =+'Front end'!E225 -> 0 | AC31: =+'Front end'!E227 -> 0 | AD31: =+'Front end'!E229 -> 0 | AE31: =+'Front end'!E231 -> 0 | AF31: =+'Front end'!E233 -> 0 | AG31: =+'Front end'!E324*Assumptions!A$7/100 -> 0
A32: uses per day | B32: fixed usage | D32: Kitchen taps: restaurant (pre-rinse nozzles only) | E32: 0 | F32: 0 | G32: per minute | H32: =IF('Front end'!E50="yes",1,0) -> 0 | I32: =VLOOKUP('Front end'!E$8,'lookup tables'!$C$7:$T$30,14,FALSE) ->  | K32: =VLOOKUP('Front end'!E$8,'lookup tables'!$C$7:$G$30,4,FALSE) ->  | L32: =+F32*I32/(J32*'Front end'!$E$9) ->  | O32: =+N32*'Front end'!E$9 ->  | Q32: =+'Front end'!E235 -> 0 | R32: =+'Front end'!E237 -> 0 | S32: =+'Front end'!E239 -> 0 | T32: =+'Front end'!E241 -> 0 | U32: =+'Front end'!E243 -> 0 | V32: =+'Front end'!E245 -> 0 | W32: =+'Front end'!E247 -> 0 | X32: =+'Front end'!E249 -> 0 | Y32: =+'Front end'!E236 -> 0 | Z32: =+'Front end'!E238 -> 0 | AA32: =+'Front end'!E240 -> 0 | AB32: =+'Front end'!E242 -> 0 | AC32: =+'Front end'!E244 -> 0 | AD32: =+'Front end'!E246 -> 0 | AE32: =+'Front end'!E248 -> 0 | AF32: =+'Front end'!E250 -> 0 | AG32: =+'Front end'!E326*Assumptions!A$7/100 -> 0
A33: uses per day | B33: fixed usage | D33: Waste disposal unit (commercial kitchens only) | E33: 0 | F33: 0 | G33: per minute | H33: =IF('Front end'!E51="yes",1,0) -> 0 | I33: =VLOOKUP('Front end'!E$8,'lookup tables'!$C$7:$T$30,15,FALSE) ->  | K33: =VLOOKUP('Front end'!E$8,'lookup tables'!$C$7:$G$30,4,FALSE) ->  | L33: =+F33*I33/(J33*'Front end'!$E$9) ->  | O33: =+N33*'Front end'!E$9 ->  | Q33: =+'Front end'!E252 -> 0 | R33: =+'Front end'!E254 -> 0 | S33: =+'Front end'!E256 -> 0 | T33: =+'Front end'!E258 -> 0 | U33: =+'Front end'!E260 -> 0 | V33: =+'Front end'!E262 -> 0 | W33: =+'Front end'!E264 -> 0 | X33: =+'Front end'!E266 -> 0 | Y33: =+'Front end'!E253 -> 0 | Z33: =+'Front end'!E255 -> 0 | AA33: =+'Front end'!E257 -> 0 | AB33: =+'Front end'!E259 -> 0 | AC33: =+'Front end'!E261 -> 0 | AD33: =+'Front end'!E263 -> 0 | AE33: =+'Front end'!E265 -> 0 | AF33: =+'Front end'!E267 -> 0 | AG33: =+'Front end'!E328*Assumptions!A$7/100 -> 0
A34: uses per day | B34: fixed usage | D34: Commercial sized dishwashers per rack | E34: 0 | F34: 0 | G34: per rack | H34: =IF('Front end'!E52="yes",1,0) -> 0 | I34: =VLOOKUP('Front end'!E$8,'lookup tables'!$C$7:$T$30,16,FALSE) ->  | J34: =J5 ->  | K34: =VLOOKUP('Front end'!E$8,'lookup tables'!$C$7:$G$30,4,FALSE) ->  | L34: =+F34*I34/(J34*'Front end'!$E$9) ->  | Q34: =+'Front end'!E269 -> 0 | R34: =+'Front end'!E271 -> 0 | S34: =+'Front end'!E273 -> 0 | T34: =+'Front end'!E275 -> 0 | U34: =+'Front end'!E277 -> 0 | V34: =+'Front end'!E279 -> 0 | W34: =+'Front end'!E281 -> 0 | X34: =+'Front end'!E283 -> 0 | Y34: =+'Front end'!E270 -> 0 | Z34: =+'Front end'!E272 -> 0 | AA34: =+'Front end'!E274 -> 0 | AB34: =+'Front end'!E276 -> 0 | AC34: =+'Front end'!E278 -> 0 | AD34: =+'Front end'!E280 -> 0 | AE34: =+'Front end'!E282 -> 0 | AF34: =+'Front end'!E284 -> 0 | AG34: =+'Front end'!E330*Assumptions!A$7/100 -> 0
A35: uses per day | B35: fixed usage | D35: Commercial or industrial sized washing machines per kg | E35: 0 | F35: 0 | G35: per kg | H35: =IF('Front end'!E53="yes",1,0) -> 0 | I35: =VLOOKUP('Front end'!E$8,'lookup tables'!$C$7:$T$30,17,FALSE) ->  | J35: =J5 ->  | K35: =VLOOKUP('Front end'!E$8,'lookup tables'!$C$7:$G$30,4,FALSE) ->  | L35: =+F35*I35/(J35*'Front end'!$E$9) ->  | Q35: =+'Front end'!E286 -> 0 | R35: =+'Front end'!E288 -> 0 | S35: =+'Front end'!E290 -> 0 | T35: =+'Front end'!E292 -> 0 | U35: =+'Front end'!E294 -> 0 | V35: =+'Front end'!E296 -> 0 | W35: =+'Front end'!E298 -> 0 | X35: =+'Front end'!E300 -> 0 | Y35: =+'Front end'!E287 -> 0 | Z35: =+'Front end'!E289 -> 0 | AA35: =+'Front end'!E291 -> 0 | AB35: =+'Front end'!E293 -> 0 | AC35: =+'Front end'!E295 -> 0 | AD35: =+'Front end'!E297 -> 0 | AE35: =+'Front end'!E299 -> 0 | AF35: =+'Front end'!E301 -> 0 | AG35: =+'Front end'!E360*Assumptions!A$7/100 -> 0
D36: Total water use | L36: =SUM(L22:L35) ->  | M36: =SUM(M22:M35) ->  | N36: =SUM(N22:N35) ->  | O36: =SUM(O22:O35) -> 
D37: Rainwater available | L37: =+M37/J35 ->  | M37: =IF('Front end'!E335='lookup tables'!$A$7,((+'Front end'!E$336*'Front end'!E$337*'Front end'!E$338/100*'Front end'!E$339/100)/365)/'Front end'!$E$9,'Front end'!E$340/365/'Front end'!$E$9) ->  | N37: =+M37/1000*365 ->  | O37: =+N37*'Front end'!E9 -> 
D38: Grey and blackwater available | L38: =SUMPRODUCT(L22:L35,$AG$22:$AG$35) ->  | M38: =SUMPRODUCT(M22:M35,$AG$22:$AG$35) ->  | O38: =SUMPRODUCT(O22:O35,$AG$22:$AG$35) -> 
D39: Recycled water use | L39: =+'Front end'!$E$349/100*calculation!L22+'Front end'!$E$351/100*calculation!L23+'Front end'!$E$353*calculation!L24/100 ->  | M39: =+'Front end'!$E349/100*calculation!M22+'Front end'!$E351/100*calculation!M23+'Front end'!$E353*calculation!M24/100 ->  | N39: =+'Front end'!$E349/100*calculation!N22+'Front end'!$E351/100*calculation!N23+'Front end'!$E353*calculation!N24/100 ->  | O39: =+'Front end'!$E349/100*calculation!O22+'Front end'!$E351/100*calculation!O23+'Front end'!$E353*calculation!O24/100 -> 
D40: Non-network water use | L40: =+M40/J35 ->  | M40: =+N40/1000*365 ->  | N40: =+O40/'Front end'!E9 ->  | O40: =+'Front end'!E345 -> 0
D41: Network water use | L41: =+L36-(L40+L39) ->  | M41: =+M36-M40+M39 -> 
D42: Water disposed of via sewage network | L42: =+L36-L39 ->  | M42: =+M36-M39 -> 
D45: EUT requirements
D46: wash hand basin taps and kitchen taps have a maximum water flow of 6 litres/min;
D47: showers have a maximum water flow of 8 litres/min;
D48: (c) WCs, including suites, bowls and flushing cisterns, have a full flush volume of a maximum of 6 litres and a maximum average flush volume of 3,5 litres;
D49: (d) urinals use a maximum of 2 litres/bowl/hour. Flushing urinals have a maximum full flush volume of 1 litre.
D53: BUILDING Actual occupancy | E53: From user data entry | F53: From user data entry * adjustment factor | H53: takes account of alternative options (WC/urinal and shower/bath) and also typical % bath fill and tap full volume | I53: from building type lookup | J53: from building type lookup (for total building or food prepar | K53: from building type lookup | L53: volume* factor*uses per day (div occupant density for fixed uses | M53: lt per person*occupancy density*m2 | N53: lt/m2*1,000/ occupied days per year | O53: m3/m2/year*m2 | Q53: Number of each type of component | Y53: Water consumption for each type of componets (litres per X) | AG53: Black water and Grey water recovery rate
E54: number of items | F54: Average water use ltrs | G54: Unit | H54: Adjustment factor | I54: Use per day | J54: occupancy density | K54: occupied days per year | L54: lt per person per day | M54: lt/m2 per day | N54: m3/m2 per year | O54: m3/year | Q54: Type 1 | R54: Type 2 | S54: Type 3 | T54: Type 4 | U54: Type 5 | V54: Type 6 | W54: Type 7 | X54: Type 8 | Y54: Type 1 | Z54: Type 2 | AA54: Type 3 | AB54: Type 4 | AC54: Type 5 | AD54: Type 6 | AE54: Type 7 | AF54: Type 8
A55: uses per person per day | B55: people related usage | D55: WC | E55: =SUM(Q55:X55) -> 0 | F55: =IF(E55=0,0,(SUMPRODUCT(Q55:X55,Y55:AF55)/E55)*H55) -> 0 | G55: per use | H55: =+H22 -> 1 | I55: =VLOOKUP('Front end'!E$8,'lookup tables'!$C$7:$O$30,6,FALSE) ->  | J55: =+'Front end'!E10/'Front end'!E9 ->  | K55: =+'Front end'!E11 -> 0 | L55: =+F55*I55 ->  | M55: =+J55*L55 ->  | N55: =+M55/1000*K55 ->  | O55: =+N55*'Front end'!E$9 ->  | Q55: =+Q22 -> 0 | R55: =+R22 -> 0 | S55: 0 | T55: 0 | U55: 0 | V55: 0 | W55: 0 | X55: 0 | Y55: 0 | Z55: 0 | AA55: 0 | AB55: 0 | AC55: 0 | AD55: 0 | AE55: 0 | AF55: 0 | AG55: =+AG22 -> 0
A56: uses per person per day | B56: people related usage | D56: Urinal timed flush | E56: 0 | F56: =IF(E56=0,0,(SUMPRODUCT(Q56:X56,Y56:AF56)/E56)*H56) -> 0 | G56: per hour | H56: =+H23 -> 0 | I56: =VLOOKUP('Front end'!E$8,'lookup tables'!$C$7:$O$30,5,FALSE) ->  | J56: =+J55 ->  | K56: =+K55 -> 0 | L56: =+F56*I56/(J56*'Front end'!$E$9) ->  | M56: =+J56*L56 ->  | O56: =+N56*'Front end'!E$9 ->  | Q56: =+Q23 -> 0 | R56: 0 | S56: 0 | T56: 0 | U56: 0 | V56: 0 | W56: 0 | X56: 0 | Y56: 0 | Z56: 0 | AA56: 0 | AB56: 0 | AC56: 0 | AD56: 0 | AE56: 0 | AF56: 0 | AG56: 0
A57: uses per person per day | B57: people related usage | D57: Urinal automatic sensor flush | E57: 0 | F57: 0 | G57: per use | H57: 0 | I57: =VLOOKUP('Front end'!E$8,'lookup tables'!$C$7:$O$30,7,FALSE) ->  | J57: =+J56 ->  | K57: =+K56 -> 0 | L57: =+F57*I57 ->  | O57: =+N57*'Front end'!E$9 ->  | Q57: =+Q24 -> 0 | R57: 0 | S57: 0 | T57: 0 | U57: 0 | V57: 0 | W57: 0 | X57: 0 | Y57: 0 | Z57: 0 | AA57: 0 | AB57: 0 | AC57: 0 | AD57: 0 | AE57: 0 | AF57: 0 | AG57: 0
A58: uses per person per day | B58: people related usage | D58: Urinal waterless | E58: 0 | F58: 0 | G58: per use | H58: 0 | I58: =VLOOKUP('Front end'!E$8,'lookup tables'!$C$7:$O$30,7,FALSE) ->  | K58: 0 | O58: =+N58*'Front end'!E$9 ->  | Q58: =+Q25 -> 0 | R58: 0 | S58: 0 | T58: 0 | U58: 0 | V58: 0 | W58: 0 | X58: 0 | Y58: 0 | Z58: 0 | AA58: 0 | AB58: 0 | AC58: 0 | AD58: 0 | AE58: 0 | AF58: 0
A59: uses per person per day | B59: people related usage | D59: Wash hand basin tap | E59: 0 | F59: 0 | G59: per use | H59: 0 | I59: =VLOOKUP('Front end'!E$8,'lookup tables'!$C$7:$O$30,8,FALSE) ->  | K59: 0 | O59: =+N59*'Front end'!E$9 ->  | Q59: =+Q26 -> 0 | R59: 0 | S59: 0 | T59: 0 | U59: 0 | V59: 0 | W59: 0 | X59: 0 | Y59: 0 | Z59: 0 | AA59: 0 | AB59: 0 | AC59: 0 | AD59: 0 | AE59: 0 | AF59: 0 | AG59: 0
A60: uses per person per day | B60: people related usage | D60: Shower | E60: 0 | F60: 0 | G60: per use | H60: 1 | I60: =VLOOKUP('Front end'!E$8,'lookup tables'!$C$7:$O$30,9,FALSE) ->  | K60: 0 | O60: =+N60*'Front end'!E$9 ->  | Q60: =+Q27 -> 0 | R60: 0 | S60: 0 | T60: 0 | U60: 0 | V60: 0 | W60: 0 | X60: 0 | Y60: 0 | Z60: 0 | AA60: 0 | AB60: 0 | AC60: 0 | AD60: 0 | AE60: 0 | AF60: 0 | AG60: 0
A61: uses per person per day | B61: people related usage | D61: Bath | E61: 0 | F61: 0 | G61: per use | H61: 0.4 | I61: =VLOOKUP('Front end'!E$8,'lookup tables'!$C$7:$O$30,10,FALSE) ->  | K61: 0 | O61: =+N61*'Front end'!E$9 ->  | Q61: =+Q28 -> 0 | R61: 0 | S61: 0 | T61: 0 | U61: 0 | V61: 0 | W61: 0 | X61: 0 | Y61: 0 | Z61: 0 | AA61: 0 | AB61: 0 | AC61: 0 | AD61: 0 | AE61: 0 | AF61: 0 | AG61: 0
A62: uses per person per day | B62: people related usage | D62: Kitchen taps: kitchenette | E62: 0 | F62: 0 | G62: per use | H62: 0 | I62: =VLOOKUP('Front end'!E$8,'lookup tables'!$C$7:$O$30,11,FALSE) ->  | K62: 0 | O62: =+N62*'Front end'!E$9 ->  | Q62: =+Q29 -> 0 | R62: 0 | S62: 0 | T62: 0 | U62: 0 | V62: 0 | W62: 0 | X62: 0 | Y62: 0 | Z62: 0 | AA62: 0 | AB62: 0 | AC62: 0 | AD62: 0 | AE62: 0 | AF62: 0 | AG62: 0
A63: uses per person per day | B63: people related usage | D63: Domestic sized washing machines per cycle | E63: 0 | F63: 0 | G63: per use | H63: 0 | I63: =VLOOKUP('Front end'!E$8,'lookup tables'!$C$7:$O$30,12,FALSE) ->  | K63: 0 | O63: =+N63*'Front end'!E$9 ->  | Q63: =+Q30 -> 0 | R63: 0 | S63: 0 | T63: 0 | U63: 0 | V63: 0 | W63: 0 | X63: 0 | Y63: 0 | Z63: 0 | AA63: 0 | AB63: 0 | AC63: 0 | AD63: 0 | AE63: 0 | AF63: 0 | AG63: 0
A64: uses per person per day | B64: people related usage | D64: Domestic sized dishwashers per cycle | E64: 0 | F64: 0 | G64: per use | H64: 0 | I64: =VLOOKUP('Front end'!E$8,'lookup tables'!$C$7:$O$30,13,FALSE) ->  | K64: 0 | O64: =+N64*'Front end'!E$9 ->  | Q64: =+Q31 -> 0 | R64: 0 | S64: 0 | T64: 0 | U64: 0 | V64: 0 | W64: 0 | X64: 0 | Y64: 0 | Z64: 0 | AA64: 0 | AB64: 0 | AC64: 0 | AD64: 0 | AE64: 0 | AF64: 0 | AG64: 0
A65: uses per day | B65: fixed usage | D65: Kitchen taps: restaurant (pre-rinse nozzles only) | E65: 0 | F65: 0 | G65: per minute | H65: 0 | I65: =VLOOKUP('Front end'!E$8,'lookup tables'!$C$7:$T$30,14,FALSE) ->  | K65: 0 | L65: =+F65*I65/(J65*'Front end'!$E$9) ->  | O65: =+N65*'Front end'!E$9 ->  | Q65: =+Q32 -> 0 | R65: 0 | S65: 0 | T65: 0 | U65: 0 | V65: 0 | W65: 0 | X65: 0 | Y65: 0 | Z65: 0 | AA65: 0 | AB65: 0 | AC65: 0 | AD65: 0 | AE65: 0 | AF65: 0 | AG65: 0
A66: uses per day | B66: fixed usage | D66: Waste disposal unit (commercial kitchens only) | E66: 0 | F66: 0 | G66: per minute | H66: 0 | I66: =VLOOKUP('Front end'!E$8,'lookup tables'!$C$7:$T$30,15,FALSE) ->  | K66: 0 | L66: =+F66*I66/(J66*'Front end'!$E$9) ->  | O66: =+N66*'Front end'!E$9 ->  | Q66: =+Q33 -> 0 | R66: 0 | S66: 0 | T66: 0 | U66: 0 | V66: 0 | W66: 0 | X66: 0 | Y66: 0 | Z66: 0 | AA66: 0 | AB66: 0 | AC66: 0 | AD66: 0 | AE66: 0 | AF66: 0 | AG66: 0
A67: uses per day | B67: fixed usage | D67: Commercial sized dishwashers per rack | E67: 0 | F67: 0 | G67: per rack | H67: 0 | I67: =VLOOKUP('Front end'!E$8,'lookup tables'!$C$7:$T$30,16,FALSE) ->  | K67: 0 | L67: =+F67*I67/(J67*'Front end'!$E$9) ->  | O67: =+N67*'Front end'!E$9 ->  | Q67: =+Q34 -> 0 | R67: 0 | S67: 0 | T67: 0 | U67: 0 | V67: 0 | W67: 0 | X67: 0 | Y67: 0 | Z67: 0 | AA67: 0 | AB67: 0 | AC67: 0 | AD67: 0 | AE67: 0 | AF67: 0 | AG67: 0
A68: uses per day | B68: fixed usage | D68: Commercial or industrial sized washing machines per kg | E68: 0 | F68: 0 | G68: per kg | H68: 0 | I68: =VLOOKUP('Front end'!E$8,'lookup tables'!$C$7:$T$30,17,FALSE) ->  | K68: 0 | L68: =+F68*I68/(J68*'Front end'!$E$9) ->  | O68: =+N68*'Front end'!E$9 ->  | Q68: =+Q35 -> 0 | R68: 0 | S68: 0 | T68: 0 | U68: 0 | V68: 0 | W68: 0 | X68: 0 | Y68: 0 | Z68: 0 | AA68: 0 | AB68: 0 | AC68: 0 | AD68: 0 | AE68: 0 | AF68: 0 | AG68: 0
D69: Total water use | L69: =SUM(L55:L68) ->  | M69: =SUM(M55:M68) ->  | N69: =SUM(N55:N68) ->  | O69: =SUM(O55:O68) -> 
D70: Rainwater available | L70: =+M70/J68 ->  | M70: =IF('Front end'!E335='lookup tables'!$A$7,((+'Front end'!E$336*'Front end'!E$337*'Front end'!E$338/100*'Front end'!E$339/100)/365)/'Front end'!$E$9,'Front end'!E$340/365/'Front end'!$E$9) ->  | N70: =+M70/1000*365 ->  | O70: =+N70*'Front end'!E69 -> 
D71: Grey and blackwater available | L71: =SUMPRODUCT(L55:L68,$AG$22:$AG$35) ->  | M71: =SUMPRODUCT(M55:M68,$AG$22:$AG$35) ->  | O71: =SUMPRODUCT(O55:O68,$AG$55:$AG$68) -> 
D72: Recycled water use | L72: =+'Front end'!$E$349/100*calculation!L55+'Front end'!$E$351/100*calculation!L56+'Front end'!$E$353*calculation!L57/100 ->  | M72: =+'Front end'!$E382/100*calculation!M55+'Front end'!$E384/100*calculation!M56+'Front end'!$E386*calculation!M57/100 ->  | N72: =+'Front end'!$E382/100*calculation!N55+'Front end'!$E384/100*calculation!N56+'Front end'!$E386*calculation!N57/100 ->  | O72: =+'Front end'!$E382/100*calculation!O55+'Front end'!$E384/100*calculation!O56+'Front end'!$E386*calculation!O57/100 -> 
D73: Non-network water use | L73: =+M73/J68 ->  | M73: =+N73/1000*N73 ->  | N73: =+O73/'Front end'!E9 ->  | O73: =+'Front end'!E345 -> 0
D74: Network water use | L74: =+L69-(L73+L72) ->  | M74: =+M69-M73+M72 ->  | N74: =+N69-N73+N72 ->  | O74: =+O69-O73+O72 -> 
D75: Water disposed of via sewage network | L75: =+L69-L72 ->  | M75: =+M69-M72 -> 

Sheet lookup tables (hidden)
D1: From Wat 01 activity database
D2: New Assumption
D3: Derived from Wat 01 activity database
G4: usage per person per day | H4: usage per person per day | I4: usage per person per day | J4: usage per person per day | K4: usage per person per day | L4: usage minutes per person per day | M4: usage per person per day | N4: usage per person per day | O4: usage per person per day | P4: per minute | Q4: per minute | R4: usage per person per day
A5: water storage capacity calculation | B5: Yes/No | C5: Building type lookup | D5: Occupant density (people per m2 per year) | E5: Occupant density (food prepartion area | F5: Number of days | G5: occupancy hours per day | H5: WC | I5: Urinal | J5: Wash hand basin tap | K5: Shower | L5: Bath | M5: Kitchen taps: kitchenette | N5: Domestic sized washing machines | O5: Domestic sized dishwashers | P5: Kitchen taps: restaurant (pre-rinse nozzles only) | Q5: Waste disposal unit (commercial kitchens only) | R5: Commercial sized dishwashers | S5: Commercial or industrial sized washing machines
H6: uses per day | I6: uses per day | J6: uses per day | K6: uses per day | L6: uses per day | M6: uses per day | N6: uses per day | O6: uses per day | P6: per day (fixed use) | Q6: per day (fixed use) | R6: per day (fixed use) | S6: per day (fixed use)
A7: BS EN 16941-1:2018 'basic approach' | B7: Yes | C7: Retail | D7: 0.03725892857 | E7: 0.03725892857 | F7: =+'Activity database from wat 01'!D34 -> 362 | G7: =+'Activity database from wat 01'!E34 -> 13 | H7: =+'Activity database from wat 01'!K34 -> 0.8518405184 | I7: =+'Activity database from wat 01'!L34 -> 0.7047949779 | J7: =+'Activity database from wat 01'!M34 -> 0.8518405184 | K7: =+'Activity database from wat 01'!N34 -> 0.00048600486 | L7: =+K7 -> 0.00048600486 | M7: =+'Activity database from wat 01'!R46 -> 0.016200162 | N7: =+'Activity database from wat 01'!U46 -> 0.0006480064801 | O7: 0.0006480064801 | P7: =+'Activity database from wat 01'!AI47 -> 60 | Q7: =+'Activity database from wat 01'!AM47 -> 30 | R7: 20 | S7: 3
A8: BS EN 16941-1:2018 'detailed approach' | B8: No | C8: Retail services | D8: =+D7 -> 0.03725892857 | E8: =+E7 -> 0.03725892857 | F8: =+'Activity database from wat 01'!D37 -> 304 | G8: =+'Activity database from wat 01'!E37 -> 8 | H8: =+H7 -> 0.8518405184 | I8: =+I7 -> 0.7047949779 | J8: 0.8518405184 | K8: 0.00048600486 | L8: 0.00048600486 | M8: 0.016200162 | N8: 0.0006480064801 | O8: 0.0006480064801 | P8: =+P7 -> 60 | Q8: =+Q7 -> 30 | R8: 20 | S8: 3
C9: Restaurant and Cafes/Drinking Establishments and Hot Food takeaways | D9: 0.06637916667 | E9: 0.06637916667 | F9: =+F8 -> 304 | G9: =+G8 -> 8 | H9: =+H10 -> 4 | I9: =+I10 -> 3 | J9: 4 | K9: 0.03 | L9: 0.03 | M9: 1 | N9: 0.04 | O9: 0.04 | P9: =+P8 -> 60 | Q9: =+Q8 -> 30 | R9: =+R8 -> 20 | S9: 3
C10: Office | D10: 0.04265659722 | E10: 0.04265659722 | F10: =+'Activity database from wat 01'!D4 -> 253 | G10: =+'Activity database from wat 01'!E10 -> 10 | H10: 4 | I10: 3 | J10: 4 | K10: 0.03 | L10: =+K10 -> 0.03 | M10: 1 | N10: =1/25 -> 0.04 | O10: 0.04 | P10: 60 | Q10: 30 | R10: 20 | S10: 3
C11: Industrial | D11: 0.01490957992 | E11: 0.01490957992 | F11: =+F10 -> 253 | G11: =+G10 -> 10 | H11: 4 | I11: 3 | J11: 4 | K11: 0.03 | L11: =+K11 -> 0.03 | M11: 1 | N11: =1/25 -> 0.04 | O11: 0.04 | P11: 60 | Q11: 30 | R11: 20 | S11: 3
C12: Warehouse | D12: 0.007478446844 | E12: 0.007478446844 | F12: =+F7 -> 362 | G12: =+G7 -> 13 | H12: 4 | I12: 3 | J12: 4 | K12: 0.03 | L12: =+K12 -> 0.03 | M12: 1 | N12: =1/25 -> 0.04 | O12: 0.04 | P12: 60 | Q12: 30 | R12: 20 | S12: 3
C13: Hotel | D13: 0.04659437604 | E13: 0.04659437604 | F13: =+F7 -> 362 | G13: 24 | H13: =+H12 -> 4 | I13: =+I12 -> 3 | J13: 4 | K13: 1 | L13: 1 | M13: 1 | P13: 60 | Q13: 30 | R13: 20 | S13: 3
C14: Hospital | D14: 0.09224166667 | E14: 0.09224166667 | F14: 365 | G14: 24 | H14: =+H15 -> 7 | P14: 60 | Q14: 30 | R14: 20 | S14: 3
C15: Care Home | D15: 0.05526015061 | E15: 0.05526015061 | F15: 365 | G15: 24 | H15: 7 | I15: 6 | J15: 7 | K15: 0.5 | L15: 0.5 | M15: 1 | N15: 0.3 | O15: 0.3 | P15: 60 | Q15: 30 | R15: 20 | S15: 3
C16: Residential schools | D16: 0.05274230753 | E16: 0.05274230753 | F16: =+'Activity database from wat 01'!D17 -> 195 | G16: 24 | H16: =+H15 -> 7 | I16: =+I15 -> 6 | J16: 7 | K16: 0.5 | L16: 0.5 | M16: 1 | N16: 0.3 | O16: 0.3 | P16: 60 | Q16: 30 | R16: 20 | S16: 3
C17: Universities and colleges | D17: 0.05481359992 | E17: 0.05481359992 | F17: =+'Activity database from wat 01'!D18 -> 195 | G17: =+G7 -> 13 | H17: =+H16 -> 7 | I17: 6 | J17: 7 | K17: 0.5 | L17: 0.5 | M17: 1 | N17: 0.3 | O17: 0.3 | P17: 60 | Q17: 30 | R17: 20 | S17: 3
C18: Secure Residential Institutions | D18: 0.05481359992 | E18: 0.05481359992 | F18: 365 | G18: 24 | H18: 7 | I18: 6 | J18: 7 | K18: 0.5 | L18: 0.5 | M18: 1 | N18: 0.3 | O18: 0.3 | P18: 60 | Q18: 30 | R18: 20 | S18: 3
C19: Community/Day Centre | D19: 0.04396354167 | E19: 0.04396354167 | F19: =+F10 -> 253 | G19: =+G8 -> 8 | H19: =+H10 -> 4 | I19: =+I10 -> 3 | J19: 4 | K19: 0.03 | L19: 0.03 | M19: 1 | N19: 0.04 | O19: 0.04 | P19: 60 | Q19: 30 | R19: 20 | S19: 3
C20: Crown and County Courts | D20: 0.04764826389 | E20: 0.04764826389 | F20: =+F10 -> 253 | G20: =+G8 -> 8 | H20: =+H11 -> 4 | I20: 3 | J20: 4 | K20: 0.03 | L20: 0.03 | M20: 1 | N20: 0.04 | O20: 0.04 | P20: 60 | Q20: 30 | R20: 20 | S20: 3
C21: Non-residential school | D21: 0.104155571 | E21: 0.104155571 | F21: =+F17 -> 195 | G21: =+'Activity database from wat 01'!E17 -> 10 | H21: 4 | I21: 3 | J21: 4 | K21: 0.03 | L21: 0.03 | M21: 1 | N21: 0.04 | O21: 0.04 | P21: 60 | Q21: 30 | R21: 20 | S21: 3
C22: Libraries Museums and Galleries | D22: 0.04692989595 | E22: 0.04692989595 | F22: =+F10 -> 253 | G22: =+G8 -> 8 | H22: =+H7 -> 0.8518405184 | I22: =+I7 -> 0.7047949779 | J22: 0.8518405184 | K22: 0.00048600486 | L22: 0.00048600486 | M22: 0.016200162 | N22: 0.0006480064801 | O22: 0.0006480064801 | P22: 60 | Q22: 30 | R22: 20 | S22: 3
C23: Primary Health Care Building | D23: 0.04216666667 | E23: 0.04216666667 | F23: =+F10 -> 253 | G23: =+G10 -> 10 | H23: =+H8 -> 0.8518405184 | I23: 0.7047949779 | J23: 0.8518405184 | K23: 0.00048600486 | L23: 0.00048600486 | M23: 0.016200162 | N23: 0.0006480064801 | O23: 0.0006480064801 | P23: 60 | Q23: 30 | R23: 20 | S23: 3
C24: Swimming pool/Ice rink | D24: 0.04745472813 | E24: 0.04745472813 | F24: =+F7 -> 362 | G24: =+G7 -> 13 | H24: 4 | I24: 3 | J24: 4 | K24: 0.03 | L24: 0.03 | M24: 1 | N24: 0.04 | O24: 0.04 | P24: 60 | Q24: 30 | R24: 20 | S24: 3
C25: Dry sports centre | D25: 0.03958921557 | E25: 0.03958921557 | F25: =+F24 -> 362 | G25: =+G7 -> 13 | H25: 4 | I25: 3 | J25: 4 | K25: 0.03 | L25: 0.03 | M25: 1 | N25: 0.04 | O25: 0.04 | P25: 60 | Q25: 30 | R25: 20 | S25: 3
C26: Nightclub | D26: 0.05964230402 | E26: 0.05964230402 | F26: =+F10 -> 253 | G26: =+G8 -> 8 | H26: 4 | I26: 3 | J26: 4 | K26: 0.03 | L26: 0.03 | M26: 1 | N26: 0.04 | O26: 0.04 | P26: 60 | Q26: 30 | R26: 20 | S26: 3
C27: Theatre | D27: 0.0603436929 | E27: 0.0603436929 | F27: =+F10 -> 253 | G27: =+G26 -> 8 | H27: 7 | I27: 6 | J27: 7 | K27: 0.5 | L27: 0.5 | M27: 1 | N27: 0.3 | O27: 0.3 | P27: 60 | Q27: 30 | R27: 20 | S27: 3
C28: Emergency services | D28: 0.04884834393 | E28: 0.04884834393 | F28: 365 | G28: 24 | H28: =+H15 -> 7 | I28: =+I15 -> 6 | J28: 7 | K28: 0.5 | L28: 0.5 | M28: 1 | N28: 0.3 | O28: 0.3 | P28: 60 | Q28: 30 | R28: 20 | S28: 3
C29: Passenger terminals | D29: 0.08532853285 | E29: 0.08532853285 | F29: 362 | G29: 24 | H29: =+H8 -> 0.8518405184 | I29: =+I8 -> 0.7047949779 | J29: 0.8518405184 | K29: 0.00048600486 | L29: 0.00048600486 | M29: 0.016200162 | N29: 0.0006480064801 | O29: 0.0006480064801 | P29: 60 | Q29: 30 | R29: 20 | S29: 3
C30: Residential- homes | D30: =3/50 -> 0.06 | E30: =3/50 -> 0.06 | F30: 365 | G30: 24 | H30: 7 | I30: 6 | J30: 7 | K30: 0.5 | L30: 0.5 | M30: 1 | N30: 0.3 | O30: 0.3 | P30: 60 | Q30: 30 | R30: 20 | S30: 3
C31: food preparation area
D33: Baseline | E33: EUT
B34: Max flush volume | C34: WC full flush volume | E34: 6
B35: Effective flush volume (litres) | C35: WC' | D35: ='Activity database from wat 01'!C107 -> 6 | E35: 3.5
B36: Volume (litres/bowl/hour) | C36: Urinal with timed flush | D36: =AVERAGE('Activity database from wat 01'!C113:C114) -> 8.75 | E36: 2
B37: Effective flush volume (litres) | C37: Urinal with automatic sensor flush | E37: 1
C38: Waterless urinals
B39: Volume (litres/min) | C39: Wash hand basin tap | D39: =+'Activity database from wat 01'!C110 -> 10 | E39: 6
B40: Volume (litres/min) | C40: Shower | D40: =+'Activity database from wat 01'!C111 -> 12 | E40: 8
B41: Volume (litres) | C41: Bath | D41: =+'Activity database from wat 01'!C112 -> 200
B42: Volume (litres/min) | C42: Kitchen taps: kitchenette | D42: =+'Activity database from wat 01'!C117 -> 10 | E42: 6
B43: Volume (litres/min) | C43: Domestic sized washing machines | D43: =+'Activity database from wat 01'!C120 -> 90
B44: Volume (litres/cycle) | C44: Domestic sized dishwashers | D44: =+'Activity database from wat 01'!C119 -> 17
B45: Volume (litres/use) | C45: Kitchen taps: restaurant (pre-rinse nozzles only) | D45: =+'Activity database from wat 01'!C118 -> 10.3
B46: Volume (litres/min) | C46: Waste disposal unit (commercial kitchens only) | D46: =+'Activity database from wat 01'!C121 -> 17
B47: Volume (litres/rack) | C47: Commercial sized dishwashers | D47: =+'Activity database from wat 01'!C122 -> 8
B48: Volume (litres/kg) | C48: Commercial or industrial sized washing machines | D48: =+'Activity database from wat 01'!C123 -> 14
B49: % of WC/urinal flushing demand (generated by same level microcomponent specification) met by specified grey/rainwater system
B52: % improvement | C52: Number of credits | F52: % improvement | G52: Number of credits
B53: 0.75 | C53: 5 | F53: 0 | G53: 0
B54: 0.6 | C54: 4 | F54: 0.15 | G54: 1
B55: 0.45 | C55: 3 | F55: 0.3 | G55: 2
B56: 0.3 | C56: 2 | F56: 0.45 | G56: 3
B57: 0.15 | C57: 1 | F57: 0.6 | G57: 4
B58: 0 | C58: 0 | F58: 0.75 | G58: 5
B61: water supply | C61: 0.1766845466 | D61: kgCO2e/m3
B62: water treatment | C62: 0.2013182917 | D62: kgCO2e/m3
B66: m3 to lts | C66: 1000

Sheet Output (hidden)
A1: ='Water calculator'!A44 -> Versie: | B1: BREEAM-NL Nieuwbouw en Renovatie Utiliteit v6.1.1 - WAT 01 - Watercalculator
A2: ='Water calculator'!A47 -> 1.3
B4: Projectnaam:
B5: Registratienummer:
B6: Opdrachtgever:
B7: BREEAM-NL Expert
B8: BREEAM-NL Assessor
L10: Percentage verbetering: | M10: =_xlfn.IFS(M11="EP behaald","EP-Score",M11=" "," ") -> 
B11: Aantal BREEAM-NL punten in te vullen in de Assessmenttool | K11: =VLOOKUP((1-calculation!L74/calculation!L17),'lookup tables'!F53:G58,2,TRUE) ->  | L11: =1-calculation!L74/calculation!L17 ->  | M11: =IF(L11>=85%,"EP behaald"," ") -> 
B12: All WCs have a maximum flush volume of 6 litres | K12: =IF(AND(+'Front end'!E73<=+'lookup tables'!E34,+'Front end'!E76<=+'lookup tables'!E34,+'Front end'!E79<=++'lookup tables'!E34,+'Front end'!E82<=+'lookup tables'!E34,+'Front end'!E85<=+'lookup tables'!E34,+'Front end'!E88<=+'lookup tables'!E34,+'Front end'!E91<=+'lookup tables'!E34,+'Front end'!E94<=++'lookup tables'!E34),"Yes","No") -> Yes
B13: All WCs have an average flush volume of 3.5 litres or less | K13: =IF(AND(+'Front end'!E74<=+'lookup tables'!E35,+'Front end'!E77<=+'lookup tables'!E35,+'Front end'!E80<=++'lookup tables'!E35,+'Front end'!E83<=+'lookup tables'!E35,+'Front end'!E86<=+'lookup tables'!E35,+'Front end'!E89<=+'lookup tables'!E35,+'Front end'!E92<=+'lookup tables'!E35,+'Front end'!E95<=++'lookup tables'!E35),"Yes","No") -> Yes
B14: All urinals with timed flush use a maximum of 2 litres per bowl per hour | K14: =IF(AND(+'Front end'!E98<=+'lookup tables'!E36,+'Front end'!E100<=+'lookup tables'!E36,+'Front end'!E102<=++'lookup tables'!E36,+'Front end'!E104<=+'lookup tables'!E36,+'Front end'!E106<=+'lookup tables'!E36,+'Front end'!E108<=+'lookup tables'!E36,+'Front end'!E110<=+'lookup tables'!E36,+'Front end'!E112<=++'lookup tables'!E36),"Yes","No") -> Yes
B15: All fllushing urinals have a maximum full flush volume of 1 litre | K15: =IF(AND(+'Front end'!E115<=+'lookup tables'!E37,+'Front end'!E117<=+'lookup tables'!E37,+'Front end'!E119<=++'lookup tables'!E37,+'Front end'!E121<=+'lookup tables'!E37,+'Front end'!E123<=+'lookup tables'!E37,+'Front end'!E125<=+'lookup tables'!E37,+'Front end'!E127<=+'lookup tables'!E37,+'Front end'!E129<=++'lookup tables'!E37),"Yes","No") -> Yes
B16: All showers have a maximum water flow of 8 litres per minute | K16: =IF(AND(+'Front end'!E151<=+'lookup tables'!E40,+'Front end'!E153<=+'lookup tables'!E40,+'Front end'!E155<=++'lookup tables'!E40,+'Front end'!E157<=+'lookup tables'!E40,+'Front end'!E159<=+'lookup tables'!E40,+'Front end'!E161<=+'lookup tables'!E40,+'Front end'!E163<=+'lookup tables'!E40,+'Front end'!E165<=++'lookup tables'!E40),"Yes","No") -> Yes
B17: All wash hand basin taps have a maximum water flow of 6 litres per minute | K17: =IF(AND(+'Front end'!E134<=+'lookup tables'!E39,+'Front end'!E136<=+'lookup tables'!E39,+'Front end'!E138<=++'lookup tables'!E39,+'Front end'!E140<=+'lookup tables'!E39,+'Front end'!E142<=+'lookup tables'!E39,+'Front end'!E144<=+'lookup tables'!E39,+'Front end'!E146<=+'lookup tables'!E39,+'Front end'!E148<=++'lookup tables'!E39),"Yes","No") -> Yes
B18: All kitchen taps have a maximum water flow of 6 litres per minute | K18: =IF(AND(+'Front end'!E185<=+'lookup tables'!E42,+'Front end'!E187<=+'lookup tables'!E42,+'Front end'!E189<=++'lookup tables'!E42,+'Front end'!E191<=+'lookup tables'!E42,+'Front end'!E193<=+'lookup tables'!E42,+'Front end'!E195<=+'lookup tables'!E42,+'Front end'!E197<=+'lookup tables'!E42,+'Front end'!E199<=++'lookup tables'!E42),"Yes","No") -> Yes
B21: EUT water using component requirements met? | K21: =IF(AND(Output!K12="yes",Output!K13="Yes",Output!K14="Yes",Output!K15="Yes"),"Yes","No") -> Yes
B24: Voorziening: | C24: Ingevulde waterverbruik: | L24: Aantal gebouwgebruikers | N24: ='Front end'!E10 -> 0
C25: Type 1 | D25: Type 2 | E25: Type 3 | F25: Type 4 | G25: Type 5 | H25: Type 6 | I25: Type 7 | J25: Type 8
B26: WC full flush, litres | C26: ='Front end'!E73 -> 0 | D26: ='Front end'!E76 -> 0 | E26: ='Front end'!E79 -> 0 | F26: ='Front end'!E82 -> 0 | G26: ='Front end'!E85 -> 0 | H26: ='Front end'!E88 -> 0 | I26: ='Front end'!E91 -> 0 | J26: ='Front end'!E94 -> 0
B27: WC reduced flush, litres | C27: ='Front end'!E74 -> 0 | D27: ='Front end'!E77 -> 0 | E27: ='Front end'!E80 -> 0 | F27: ='Front end'!E83 -> 0 | G27: ='Front end'!E86 -> 0 | H27: ='Front end'!E89 -> 0 | I27: ='Front end'!E92 -> 0 | J27: ='Front end'!E95 -> 0
B28: Urinal litre/hour | C28: ='Front end'!E98 -> 0 | D28: ='Front end'!E100 -> 0 | E28: ='Front end'!E102 -> 0 | F28: ='Front end'!E104 -> 0 | G28: ='Front end'!E106 -> 0 | H28: ='Front end'!E108 -> 0 | I28: ='Front end'!E110 -> 0 | J28: ='Front end'!E112 -> 0
B29: Urinal litres/flush | C29: ='Front end'!E115 -> 0 | D29: ='Front end'!E117 -> 0 | E29: ='Front end'!E119 -> 0 | F29: ='Front end'!E121 -> 0 | G29: ='Front end'!E123 -> 0 | H29: ='Front end'!E125 -> 0 | I29: ='Front end'!E127 -> 0 | J29: ='Front end'!E129 -> 0
B30: Urinals, waterless, amount | C30: ='Front end'!E131 -> 0 | D30: (totaal aantal aanwezige waterloze urinoirs)
B31: Wash hand basin tap, litres/min. | C31: ='Front end'!E134 -> 0 | D31: ='Front end'!E136 -> 0 | E31: ='Front end'!E138 -> 0 | F31: ='Front end'!E140 -> 0 | G31: ='Front end'!E142 -> 0 | H31: ='Front end'!E144 -> 0 | I31: ='Front end'!E146 -> 0 | J31: ='Front end'!E148 -> 0
B32: Showers, litres/min. | C32: ='Front end'!E151 -> 0 | D32: ='Front end'!E153 -> 0 | E32: ='Front end'!E155 -> 0 | F32: ='Front end'!E157 -> 0 | G32: ='Front end'!E159 -> 0 | H32: ='Front end'!E161 -> 0 | I32: ='Front end'!E163 -> 0 | J32: ='Front end'!E165 -> 0
B33: Baths, litres | C33: ='Front end'!E168 -> 0 | D33: ='Front end'!E170 -> 0 | E33: ='Front end'!E172 -> 0 | F33: ='Front end'!E174 -> 0 | G33: ='Front end'!E176 -> 0 | H33: ='Front end'!E178 -> 0 | I33: ='Front end'!E180 -> 0 | J33: ='Front end'!E182 -> 0
B34: Kitchen taps, litres/min. | C34: ='Front end'!E185 -> 0 | D34: ='Front end'!E187 -> 0 | E34: ='Front end'!E189 -> 0 | F34: ='Front end'!E191 -> 0 | G34: ='Front end'!E193 -> 0 | H34: ='Front end'!E195 -> 0 | I34: ='Front end'!E197 -> 0 | J34: ='Front end'!E199 -> 0
B35: Domestic washing machine l/cycle | C35: ='Front end'!E202 -> 0 | D35: ='Front end'!E204 -> 0 | E35: ='Front end'!E206 -> 0 | F35: ='Front end'!E208 -> 0 | G35: ='Front end'!E210 -> 0 | H35: ='Front end'!E212 -> 0 | I35: ='Front end'!E214 -> 0 | J35: ='Front end'!E216 -> 0
B36: Domestic dishwashers, l/cycle | C36: ='Front end'!E219 -> 0 | D36: ='Front end'!E221 -> 0 | E36: ='Front end'!E223 -> 0 | F36: ='Front end'!E225 -> 0 | G36: ='Front end'!E227 -> 0 | H36: ='Front end'!E229 -> 0 | I36: ='Front end'!E231 -> 0 | J36: ='Front end'!E233 -> 0
B37: Restaurant kitchen taps, l/min | C37: ='Front end'!E236 -> 0 | D37: ='Front end'!E238 -> 0 | E37: ='Front end'!E240 -> 0 | F37: ='Front end'!E242 -> 0 | G37: ='Front end'!E244 -> 0 | H37: ='Front end'!E246 -> 0 | I37: ='Front end'!E248 -> 0 | J37: ='Front end'!E250 -> 0
B38: Waste disposal unit, litres/min | C38: ='Front end'!E253 -> 0 | D38: ='Front end'!E255 -> 0 | E38: ='Front end'!E257 -> 0 | F38: ='Front end'!E259 -> 0 | G38: ='Front end'!E261 -> 0 | H38: ='Front end'!E263 -> 0 | I38: ='Front end'!E265 -> 0 | J38: ='Front end'!E267 -> 0
B39: Commercial dishwasher, litres/rack | C39: ='Front end'!E270 -> 0 | D39: ='Front end'!E272 -> 0 | E39: ='Front end'!E274 -> 0 | F39: ='Front end'!E276 -> 0 | G39: ='Front end'!E278 -> 0 | H39: ='Front end'!E280 -> 0 | I39: ='Front end'!E282 -> 0 | J39: ='Front end'!E284 -> 0
B40: Comm/industr washing machine l/kg | C40: ='Front end'!E287 -> 0 | D40: ='Front end'!E289 -> 0 | E40: ='Front end'!E291 -> 0 | F40: ='Front end'!E293 -> 0 | G40: ='Front end'!E295 -> 0 | H40: ='Front end'!E297 -> 0 | I40: ='Front end'!E299 -> 0 | J40: ='Front end'!E301 -> 0
B41: ='Front end'!D304 -> Does the building collect any grey water or black water? | F41: =IF('Front end'!E304=" "," ",'Front end'!E304) -> No
B42: ='Front end'!D333 -> Does the building have any rainwater collection? | F42: =IF('Front end'!E333=" "," ",'Front end'!E333) -> No
B43: ='Front end'!D348 -> Is recycled water used for WC flushing? | F43: =IF('Front end'!E348=" "," ",'Front end'!E348) -> No
B44: ='Front end'!D350 -> Is recycled water used for urinals with timed flushing? | F44: =IF('Front end'!E350="","",'Front end'!E350) -> 
B45: Is recycled water used for urinals with sensor/button flush? | F45: =IF('Front end'!E352="","",'Front end'!E352) -> 
B48: Water using component/other water sources | K48: =+calculation!L21 -> lt per person per day | L48: =+calculation!M21 -> lt/m2 per day | M48: =+calculation!N21 -> m3/m2 per year | N48: =+calculation!O21 -> m3/year
B49: WC & urinals | K49: =+calculation!L55+calculation!L56+calculation!L57+calculation!L58 ->  | L49: =+calculation!M55+calculation!M56+calculation!M57+calculation!M58 ->  | M49: =+calculation!N55+calculation!N56+calculation!N57+calculation!N58 ->  | N49: =+calculation!O55+calculation!O56+calculation!O57+calculation!O58 -> 
B50: Wash hand basin tap | K50: =+calculation!L59 ->  | L50: =+calculation!M59 ->  | M50: =+calculation!N59 ->  | N50: =+calculation!O59 -> 
B51: Shower/bath | K51: =+calculation!L60+calculation!L61 ->  | L51: =+calculation!M60+calculation!M61 ->  | M51: =+calculation!N60+calculation!N61 ->  | N51: =+calculation!O60+calculation!O61 -> 
B52: Kitchen taps: kitchenette | K52: =+calculation!L62 ->  | L52: =+calculation!M62 ->  | M52: =+calculation!N62 ->  | N52: =+calculation!O62 -> 
B53: Domestic sized washing machine | K53: =+calculation!L63 ->  | L53: =+calculation!M63 ->  | M53: =+calculation!N63 ->  | N53: =+calculation!O63 -> 
B54: Domestic sized dishwasher | K54: =+calculation!L64 ->  | L54: =+calculation!M64 ->  | M54: =+calculation!N64 ->  | N54: =+calculation!O64 -> 
B55: Commercial kitchen | K55: =+calculation!L65+calculation!L66+calculation!L67 ->  | L55: =+calculation!M65+calculation!M66+calculation!M67 ->  | M55: =+calculation!N65+calculation!N66+calculation!N67 ->  | N55: =+calculation!O65+calculation!O66+calculation!O67 -> 
B56: Commercial washing | K56: =+calculation!L68 ->  | L56: =+calculation!M68 ->  | M56: =+calculation!N68 ->  | N56: =+calculation!O68 -> 
B57: =+calculation!D36 -> Total water use | K57: =+calculation!L69 ->  | L57: =+calculation!M69 ->  | M57: =+calculation!N69 ->  | N57: =+calculation!O69 -> 
C58: =+calculation!D37 -> Rainwater available | K58: =+calculation!L37 ->  | L58: =+calculation!M37 ->  | M58: =+calculation!N37 ->  | N58: =+calculation!O37 -> 
C59: =+calculation!D38 -> Grey and blackwater available | K59: =+calculation!L38 ->  | L59: =+calculation!M38 ->  | M59: =+calculation!N38 ->  | N59: =+calculation!O38 ->  | O59: =+O57-O58 -> 0
B60: =+calculation!D39 -> Recycled water use | K60: =+calculation!L72 ->  | L60: =+calculation!M72 ->  | M60: =+calculation!N72 ->  | N60: =+calculation!O72 -> 
B61: =+calculation!D40 -> Non-network water use | K61: =+calculation!L73 ->  | L61: =+calculation!M73 ->  | M61: =+calculation!N73 ->  | N61: =+calculation!O73 -> 0
B62: =+calculation!D41 -> Network water use | K62: =+calculation!L74 ->  | L62: =+calculation!M74 ->  | M62: =+calculation!N74 ->  | N62: =+calculation!O74 -> 
B63: =+calculation!D42 -> Water disposed of via sewage network | K63: =+calculation!L75 ->  | L63: =+calculation!M75 ->  | M63: =+calculation!N75 ->  | N63: =+calculation!O75 -> 
B64: Carbon impact kgCO2e | K64: =+K62*'lookup tables'!$C61/'lookup tables'!C66+Output!K63*'lookup tables'!$C62/'lookup tables'!C66 ->  | L64: =+L62*'lookup tables'!$C61/'lookup tables'!C66+Output!L63*'lookup tables'!$C62/'lookup tables'!C66 ->  | M64: =+M62*'lookup tables'!$C61+Output!M63*'lookup tables'!$C62 ->  | N64: =+N62*'lookup tables'!$C61+Output!N63*'lookup tables'!$C62 -> 

Sheet Assumptions (hidden)
A3: =0.5*6/7 -> 0.4285714286 | B3: assume urinals get used in preference to toilets 45% of the time (50% male & a ratio of 7:1 urine:stool) | G3: https://www.medicalnewstoday.com/articles/321461
A4: 0.78 | B4: preference for showers over baths where both are installed | F4: https://www.independent.co.uk/life-style/health-and-families/health-news/shower-bath-choice-victorian-plumbing-survey-results-a8845946.html
A5: 0.4 | B5: typical fill of max bath capacity
A6: =+'Activity database from wat 01'!AR37 -> 0.677 | B6: typical % of full flow rate for taps
A7: 0.95 | B7: percentage recovery grey water
A8: 0.8 | B8: percentage recovery black water
B12: References
B13: https://www.south-staffs-water.co.uk/media/1509/waterusebusiness.pdf
B14: https://www.waterwise.org.uk/wp-content/uploads/2018/02/CIRIA-2006_Water-Key-Performance-Indicators-and-Benchmarks-for-Offices-and-Hotels.pdf
B15: https://powerhousedynamics.com/resources/white-papers/water-water-everywhere-and-10-ways-restaurants-stem-flow/#:~:text=While%20there%20are%20studies%20that,gallons%20per%20seat%20per%20day.
B16: https://www.statista.com/statistics/656780/water-consumption-in-cafes-and-restaurants-united-kingdom-uk/
B17: https://www.ashland.or.us/SIB/files/AWE_Commercial_Kitchens_Guide.pdf
B18: https://sustain.ubc.ca/sites/default/files/2018-48%20Water%20benchmarking%20study%20-%20Restaurants%20%26%20microbreweries%20in%20the%20City%20of%20Vancouver_Sirikan.pdf
B19: https://www.mdpi.com/2073-4441/14/23/3828
B20: https://sustainablebuild.co.uk/grey-and-black-water-recycling-design/
B21: https://aquacell.com.au/commercial-water-recycling-systems/blackwater/
B22: https://www.designingbuildings.co.uk/wiki/Black_water_recycling#:~:text=Treatment%20is%20generally%20by%20a,Green%20Age%2C%20Recycling%20Domestic%20Sewage.
B23: https://jla.com/laundry-equipment/washing-machines/smart-wash/?_gl=1*ty1kz0*_up*MQ..&gclid=CjwKCAjwsKqoBhBPEiwALrrqiCVPF7o3Oea1vnL_3cX4YgmImwL8njiBLRKCORZXk4-sF3WDU5RyxBoC77AQAvD_BwE
A24: 0.25*full+0.75*reduced | B24: https://kb.breeam.com/us/knowledgebase/effective-flush-volume-efv-example-calculation/
B25: greywater needs filtration
B26: blackwater needs onsite sewage treatment
B34: Can be collected from | C34: Treatment | D34: can be used for
A35: Greywater | B35: Everything except toilets | C35: Filtration only | D35: Toilets or watering non-food plants | E35: Confirm that the blackwater treatment system meets local regulatory requirements
A36: Blackwater | B36: WCs and urinals | C36: Settlement, bacterial breakdown, filtration, aeration and chemical treatment | D36: Toilets or watering plants | E36: Confirm that the greywater treatment system meets local regulatory requirements
B41: Replace the following text:
B42: 'Rainwater: In accordance with BS8515 ‘intermediate approach’:
B43: 1. Collection area (m²)
B44: 2. Yield co-efficient (%)
B45: 3. Hydraulic filter efficiency (%)
B46: 4. Rainfall (average mm/year).
B47: Rainwater: In accordance with BS8515 ‘detailed approach’:
B48: 1. Daily rainfall collection (litres)'
B50: with
B52: 'Rainwater: In accordance with BS EN 16941‑1:2018‘basic approach’:
B53: 1. Horizontal projection of the collection area (m²)
B54: 2. Surface yield coefficient (%)
B55: 3. Hydraulic treatment efficiency coefficient (%)
B56: 4. Anual rainfall (mm/year).
B57: Rainwater: In accordance with BS EN 16941‑1:2018 ‘detailed approach’:
B58: 1. Daily rainfall collection (litres)'

Sheet Data extract (hidden)

Sheet Sheet2 (hidden)

Sheet Activity database from wat 01 (hidden)
A1: 1 | B1: 2 | C1: 3 | D1: 4 | E1: 5 | F1: 6 | G1: 7 | H1: 8 | I1: 9 | J1: 10 | K1: 11 | L1: 12 | M1: 13 | N1: 14 | O1: 15 | P1: 16 | Q1: 17 | R1: 18 | S1: 19 | T1: 20 | U1: 21 | V1: 22 | W1: 23 | X1: 24 | Y1: 25 | Z1: 26 | AA1: 27 | AB1: 28 | AC1: 29 | AD1: 30 | AE1: 31 | AF1: 32 | AG1: 33 | AH1: 34 | AI1: 35 | AJ1: 36 | AK1: 37 | AL1: 38 | AM1: 39 | AN1: 40 | AO1: 41 | AP1: 42 | AQ1: 43 | AR1: 44 | AT1: 1 | AU1: 2 | AV1: 3 | AW1: 4 | AX1: 5 | AY1: 6 | AZ1: 7 | BA1: 8
C2: Building occupation data | F2: User | G2: Gender ratio | I2: Component uses/person/day (unless stated differently for specific uses or activity areas) | AA2: Usage factors | AQ2: Adjustment factors | AT2: Microcomponent Performance Levels for BREEAM water consumption method benchmarking
A3: Building category and main activity area/function | B3: Description | C3: Occupant density (person/m2) | D3: No. days/yr building occupied | E3: default daily hrs of operation | F3: Type | G3: Ratio male users | H3: Ratio female users | I3: WC - male (urinals installed) | J3: WC - male (no urinals installed) | K3: WC - female | L3: Urinal | M3: Wash hand basin taps | N3: Shower use | O3: Shower use (bath present) | P3: Bath use (no shower present) | Q3: Bath use (shower present) | R3: Kitchen taps - kitchenette | S3: Kitchen taps - pre-rinse nozzle | T3: blank column | U3: Dishwasher | V3: Washing machine | W3: Waste disposal unit | X3: Fixed use - vessel filling | Y3: Fixed use - food preparation | Z3: Fixed use - kitchen cleaning | AA3: WC (factor of use | AB3: Urinals (factor of use) | AC3: Wash hand basin taps (mins/use) | AD3: Showers (no bath present) - mins/use | AE3: Showers (bath present) mins/use | AF3: Bath (No shower present) ratio | AG3: Bath (shower present) ratio | AH3: Kitchen taps - kitchenette mins/day | AI3: Kitchen taps - pre-rinse nozzle | AJ3: blank | AK3: Dishwasher | AL3: Washing machine | AM3: Waste dispoal unit | AN3: Fixed use - vessel filling | AO3: Fixed use - food preparation | AP3: Fixed use - kitchen cleaning | AQ3: Baths | AR3: Taps | AT3: Component | AU3: Baseline | AV3: Level 1 | AW3: Level 2 | AX3: Level 3 | AY3: Level 4 | AZ3: Level 5 | BA3: Unit | BC3: BREEAM credit benchmarks | BF3: Sources of data/information
A4: Office | B4: TCP Classification B1: Offices and workshop business (including those with a basic (category 1) laboratory area) | C4: - | D4: 253 | E4: 10 | F4: Staff | G4: 0.5 | H4: 0.5 | I4: 1 | J4: 4 | K4: 4 | L4: 3 | M4: 4 | N4: 0.03 | O4: N/A | P4: N/A | Q4: N/A | R4: - | S4: - | T4: - | U4: - | V4: N/A | W4: - | X4: 1.58 | Y4: - | Z4: - | AA4: 1 | AB4: 1 | AC4: 0.25 | AD4: 5.6 | AE4: 4.37 | AF4: 1 | AG4: 1 | AH4: - | AI4: - | AJ4: - | AK4: - | AL4: - | AM4: - | AN4: 1 | AO4: - | AP4: - | AQ4: 0.4 | AR4: 0.677 | AT4: WC - male (urinals installed) | AU4: 6 | AV4: 4.5 | AW4: 4 | AX4: 3.75 | AY4: 3.5 | AZ4: 3 | BA4: Effective flush volume (litres) | BC4: 0 | BD4: 0 credits | BF4: SD129: Certification and Listing of Low Flush WC appliances
A5: Office - Office areas | B5: Cellular or open plan office space, including staff kitchen where present/adjacent and reception areas. Exlcude meeting rooms, visitor waiting or circulation areas. | C5: 0.111 | R5: 1 | U5: 0.04 | AH5: 0.67 | AK5: 1 | AL5: N/A | AT5: WC - male (no urinals installed) | AU5: 6 | AV5: 4.5 | AW5: 4 | AX5: 3.75 | AY5: 3.5 | AZ5: 3 | BA5: Effective flush volume (litres) | BC5: 0.125 | BD5: 1 credit | BF5: Waterwise
A6: Office - Staff canteen dining area | B6: Seated dining areas that accompany a permanently staffed kitchen preparing food for consumption on the premises (excludes small un-staffed kitchen's used by office staff to re-heat food, make tea etc.) | C6: 0.0433 | S6: see usage factor | U6: see usage factor | V6: N/A | W6: see usage factor | Y6: 5849.00064 | Z6: 13810.99104 | AI6: 60 | AK6: 0.217 | AL6: N/A | AM6: 30 | AO6: 1 | AP6: 1 | AT6: WC - female | AU6: 6 | AV6: 4.5 | AW6: 4 | AX6: 3.75 | AY6: 3.5 | AZ6: 3 | BA6: Effective flush volume (litres) | BC6: 0.25 | BD6: 2 credits | BF6: Water efficient product labelling scheme
A7: Office - Small workshop / laboratory space | B7: Small scale workshop or category 1 laboratory area | C7: 0.068 | AT7: Wash hand basin taps | AU7: 10 | AV7: 8 | AW7: 6 | AX7: 5 | AY7: 4 | AZ7: 3 | BA7: Volume (litres/min) | BC7: 0.4 | BD7: 3 credits | BF7: Water Supply (water fittings) Regulations 1999: WC Suite Performance Specifications
A8: Office - Fitness suite/gym (with changing facility and showers) | B8: A fitness suite or gym that is part of the office building/development and used by the building's employees only. The gym will have its own changing facility with showers. | C8: 0 | N8: 0.154 | X8: 0.05 | AT8: Showers | AU8: 12 | AV8: 10 | AW8: 8 | AX8: 6 | AY8: 5 | AZ8: 3.5 | BA8: Volume (litres/min) | BC8: 0.5 | BD8: 4 credits | BF8: (Very early) Draft BS8542
A9: Industrial - 24hr x 7 day operation | B9: TCP Classification B2 to B8: general and specialist industrail and warehouse and storage units operating 24 hours a day 7 days a week. | C9: - | D9: 365 | E9: 24 | F9: Staff | G9: 0.5 | H9: 0.5 | I9: 1 | J9: 4 | K9: 4 | L9: 3 | M9: 4 | N9: 0.03 | O9: N/A | P9: N/A | Q9: N/A | R9: - | S9: - | T9: - | U9: - | V9: N/A | W9: - | X9: 1.58 | Y9: - | Z9: - | AA9: 1 | AB9: 1 | AC9: 0.25 | AD9: 5.6 | AE9: 4.37 | AF9: 1 | AG9: 1 | AH9: - | AI9: - | AJ9: - | AK9: - | AL9: - | AM9: - | AN9: 1 | AO9: - | AP9: - | AQ9: 0.4 | AR9: 0.677 | AT9: Baths | AU9: 200 | AV9: 180 | AW9: 160 | AX9: 140 | AY9: 120 | AZ9: 100 | BA9: Volume (litres) | BC9: 0.55 | BD9: 5 credits | BF9: SD174: Certification and Listing of Water Efficient Terminal Fittings (table 2.0)
A10: Industrial - typical business hours of operation | B10: TCP Classification B2 to B8: general and specialist industrial and warehouse and storage units operating 24 hours a day 7 days a week. | C10: - | D10: 253 | E10: 10 | F10: Staff | G10: 0.5 | H10: 0.5 | I10: 1 | J10: 4 | K10: 4 | L10: 3 | M10: 4 | N10: 0.03 | O10: N/A | P10: N/A | Q10: N/A | R10: - | S10: - | T10: - | U10: - | V10: N/A | W10: - | X10: 1.58 | Y10: - | Z10: - | AA10: 1 | AB10: 1 | AC10: 0.25 | AD10: 5.6 | AE10: 4.37 | AF10: 1 | AG10: 1 | AH10: - | AI10: - | AJ10: - | AK10: - | AL10: - | AM10: - | AN10: 1 | AO10: - | AP10: - | AQ10: 0.4 | AR10: 0.677 | AT10: Urinal (2 or more urinals) - Automatically operated flushing cistern | AU10: 7.5 | AV10: 6 | AW10: 3 | AX10: 1.5 | AY10: 0.75 | AZ10: 0 | BA10: Volume (litres/bowl/hour) | BC10: 0.65 | BD10: Exemplary level | BF10: CLG Water Calculation Method for New Dwelling
A11: Industrial - process area | B11: Main process based operational/manufacturing/workshop area | C11: 0.0224 | AT11: Urinal (1 urinal only) - Automatically operated flushing cistern | AU11: 10 | AV11: 8 | AW11: 4 | AX11: 2 | AY11: 1 | AZ11: 0 | BA11: Volume (litres/bowl/hour) | BC11: 0.55 | BD11: 5 credits | BF11: Conserving Water in Buildings - Environment Agency
A12: Industrial - Laboratory area | B12: Large or small category 1 laboratory area. | C12: 0.1069 | AT12: Urinal - Manual/automatic operated pressure flushing valve | AU12: 1.5 | AV12: - | AW12: - | AX12: - | AY12: - | AZ12: - | BA12: Volume (Litres/flush/bowl) | BF12: SD175 Certification and Listing of Water Efficient Baths
A13: Industrial - Warehouse storage | B13: Permanently or intermittently occupied warehouse storage areas. | C13: 0.0108 | AT13: Greywater/rainwater system | AU13: 0 | AV13: 0 | AW13: 0 | AX13: 0.25 | AY13: 0.5 | AZ13: 0.75 | BA13: % of WC/urinal flushing demand (generated by same level microcomponent specification) met by specified grey/rainwater system | BF13: BNWAT07: Baths - water efficiency performance tests Version 2.0
A14: Industrial - Office areas | B14: Cellular or open plan office space, including staff kitchen where present/adjacent and reception areas. Exlcude meeting rooms, visitor waiting or circulation areas. | C14: 0.0994 | R14: 1 | U14: 0.04 | AH14: 0.67 | AK14: 1 | AL14: N/A | AT14: Kitchen taps - kitchenette | AU14: 10 | AV14: 8 | AW14: 7 | AX14: 6 | AY14: 5 | AZ14: 5 | BA14: Volume (litres/min) | BF14: CLG Research to Assess the Costs and Benefits of Improvements to the Water Efficiency of New Non-household Buildings (BD2683), 2009.
A15: Industrial - Staff canteen dining area | B15: Seated dining areas that accompany a permanently staffed kitchen preparing food for consumption on the premises (excludes small un-staffed kitchen's used by office staff to re-heat food, make tea etc.) | C15: =0.0402 -> 0.0402 | S15: see usage factor | U15: see usage factor | V15: N/A | W15: see usage factor | Z15: 253.8228 | AI15: 60 | AK15: 0.201 | AL15: N/A | AM15: 30 | AO15: 1 | AP15: 1 | AT15: Kitchen taps - pre-rinse nozzle | AU15: 10.3 | AV15: 9 | AW15: 8.3 | AX15: 7.3 | AY15: 6.3 | AZ15: 6 | BA15: Volume (litres/min) | BF15: Waterwise 2007 Dishwasher rankings
A16: Industrial - Fitness suite/gym (with changing facility and showers) | B16: A fitness suite or gym that is part of the office building/development and used by the building's employees only. The gym will have its own changing facility with showers. | C16: 0 | N16: 0.154 | X16: 0.05 | AT16: Domestic sized dishwashers | AU16: 17 | AV16: 13 | AW16: 13 | AX16: 12 | AY16: 11 | AZ16: 10 | BA16: Volume (litres/cycle) | BF16: Waterwise 2007 Washing machine rankings
A17: Education - pre-school or primary school | B17: TCP Classification D1: non-residential pre-school and primary schools. | C17: - | D17: 195 | E17: 10 | F17: Pupils/staff | G17: 0.5 | H17: 0.5 | I17: 0.36 | J17: 2.1 | K17: 2.1 | L17: 1.74 | M17: 2.1 | N17: 0.0014 | O17: N/A | P17: N/A | Q17: N/A | R17: 0.05 | S17: - | T17: - | U17: - | V17: N/A | W17: - | X17: 1.98 | Y17: - | Z17: - | AA17: 1 | AB17: 1 | AC17: 0.25 | AD17: 5.6 | AE17: N/A | AF17: 1 | AG17: 1 | AH17: - | AI17: - | AJ17: - | AK17: - | AL17: - | AM17: - | AN17: 1 | AO17: - | AP17: - | AQ17: 0.4 | AR17: 0.677 | AT17: Domestic sized washing machines | AU17: 90 | AV17: 60 | AW17: 50 | AX17: 40 | AY17: 35 | AZ17: 30 | BA17: Volume (litres/use) | BF17: Water UK - Macerators, the impact on sewers http://www.water.org.uk/home/policy/positions/waste-macerators-position-paper
A18: Education - secondary school or academy | B18: TCP Classification D1: non-residential secondary schools, academies and all-age range schools | C18: - | D18: 195 | E18: 10 | F18: Pupils/staff | G18: 0.5 | H18: 0.5 | I18: 0.37 | J18: 2.13 | K18: 2.1 | L18: 1.76 | M18: 2.13 | N18: 0.002 | O18: N/A | P18: N/A | Q18: N/A | R18: 0.06 | S18: - | T18: - | U18: - | V18: N/A | W18: - | X18: 1.97 | Y18: - | Z18: - | AA18: 1 | AB18: 1 | AC18: 0.25 | AD18: 5.6 | AE18: 1.4 | AF18: 1 | AG18: 1 | AH18: - | AI18: - | AJ18: - | AK18: - | AL18: - | AM18: - | AN18: 1 | AO18: - | AP18: - | AQ18: 0.4 | AR18: 0.677 | AT18: =W3 -> Waste disposal unit | AU18: 17 | AV18: 17 | AW18: 0 | AX18: 0 | AY18: 0 | AZ18: 0 | BA18: Volume (litres/min) | BF18: Water Efficient Buildings, water and planning, guidance for planners http://www.water-efficient-buildings.org.uk/
A19: Education - sixth form or further education college | B19: TCP Classification D1: non-residential sixth form and further education colleges | C19: - | D19: 195 | E19: 10 | F19: Staff/students | G19: 0.5 | H19: 0.5 | I19: 1 | J19: 4 | K19: 4 | L19: 3 | M19: 4 | N19: 0.03 | O19: N/A | P19: N/A | Q19: N/A | R19: 0.051 | S19: - | T19: - | U19: - | V19: N/A | W19: - | X19: 1.58 | Y19: - | Z19: - | AA19: 1 | AB19: 1 | AC19: 0.25 | AD19: 5.6 | AE19: 4.37 | AF19: 1 | AG19: 1 | AH19: - | AI19: - | AJ19: - | AK19: - | AL19: - | AM19: - | AN19: 1 | AO19: - | AP19: - | AQ19: 0.4 | AR19: 0.677 | AT19: Commercial sized dishwashers | AU19: 8 | AV19: 7 | AW19: 6 | AX19: 5 | AY19: 4 | AZ19: 3 | BA19: Volume (litres/rack) | BF19: AECB Water Standards vol 2.
A20: Education - higher education college | B20: TCP Classification D1: non-residential higher education learning resource centres/teaching facility only. | C20: - | D20: 195 | E20: 10 | F20: Staff/students | G20: 0.5 | H20: 0.5 | I20: 1 | J20: 4 | K20: 4 | L20: 3 | M20: 4 | N20: 0.03 | O20: N/A | P20: N/A | Q20: N/A | R20: 0.061 | S20: - | T20: - | U20: - | V20: N/A | W20: - | X20: 1.58 | Y20: - | Z20: - | AA20: 1 | AB20: 1 | AC20: 0.25 | AD20: 5.6 | AE20: 4.37 | AF20: 1 | AG20: 1 | AH20: - | AI20: - | AJ20: - | AK20: - | AL20: - | AM20: - | AN20: 1 | AO20: - | AP20: - | AQ20: 0.4 | AR20: 0.677 | AT20: Commercial/Industrial sized washing machines | AU20: 14 | AV20: 12 | AW20: 10 | AX20: 7.5 | AY20: 5 | AZ20: 4.5 | BA20: Volume (litres/kg) | BF20: Enahnced Capital Allowance Water Technology List criteria
A21: Education - Classroom areas | B21: Include basic classroom areas only. Exclude halls, specialist practical classrooms, i.e. ICT, and learning resource/library areas. | C21: 0.532 | BF21: BNWAT22: Domestic water consumption in domestic and non-domestic properties
A22: Education - Staff office and adminstration areas | B22: Cellular or open plan office space, including staff rooms and staff kitchen where present/adjacent and reception areas (including library reception desk areas if present). Exlcudes meeting rooms, visitor waiting or circulation areas and other such spaces not permanently occupied. | C22: 0.103 | U22: 0.0026 | AH22: 0.67 | AK22: 1 | AL22: N/A | BF22: National Statistics, DfE: School Workforce in England, November 2010 (statistical first release)
A23: Education - Common room | B23: Student common room. | C23: 0.103 | BF23: Building Bulletin 99 (2nd Edition), Briefing Framework for Primary School Projects
A24: Education - dining area | B24: Seated dining areas that accompany a permanently staffed kitchen preparing food for consumption on the premises (excludes small un-staffed kitchen's used by staff to re-heat food, make tea etc.) | C24: See note | S24: see usage factor | U24: see usage factor | V24: N/A | W24: see usage factor | Y24: FALSE | Z24: 0 | AI24: 60 | AK24: 0.45 | AL24: N/A | AM24: 30 | AO24: 1 | AP24: 1 | BF24: Building Bulletin 98 (2nd Edition), Briefing Framework for Secondary School Projects
B25: Changing facility with showers to be used by pupils | C25: 0 | X25: 0.12 | BF25: The Building Regulations 2000 Approved Document B Fire Safety
A26: Education - Lecture theatre | B26: Lecture theatre with permanent seating and/or stage used by lecturers and/or for staged performances. | C26: 0.2183098592 | BF26: Employment Densities, a full guide, Arup Economics and Planning, 2001 (produced for English Partnerships and Regional Development Agencies)
A27: Education - Study area | B27: Study/write-up area in sixth form, further and/or Higer Education colleges. | C27: 0.625
A28: Education - Workshop | B28: Small scale workshop type space used for practical/vocational demonstrations/learning. | C28: 0.06325925926
A29: Education - Information Technology space | B29: Laboratory/room containing I.T equipment and used for teaching/research related to information technology | C29: 0.231
A30: Education - Laboratory | B30: Laboratory space for teaching/learning related to science based subjects. | C30: 0.10625
A31: Retail - Shop / retail unit(s) / retail warehouse | B31: TCP Classification A1 Shops: shop/retail unit(s)/retail warehouse(s). | C31: - | D31: 362 | E31: 8.5 | F31: - | G31: 0.3524300243 | H31: 0.6475699757 | I31: 0.1473406804 | J31: 0.8518405184 | K31: 0.8518405184 | L31: 0.7047949779 | M31: 0.8518405184 | N31: 0.00048600486 | O31: N/A | P31: N/A | Q31: N/A | R31: - | S31: - | T31: - | U31: - | V31: N/A | W31: - | X31: 0.02559625596 | Y31: - | Z31: - | AA31: 1 | AB31: 1 | AC31: 0.25 | AD31: 5.6 | AE31: 4.37 | AF31: 1 | AG31: 1 | AH31: - | AI31: - | AJ31: - | AK31: - | AL31: - | AM31: - | AN31: =AN32 -> 1 | AO31: - | AP31: - | AQ31: 0.4 | AR31: 0.677
C32: - | D32: - | E32: - | F32: Staff | G32: 0.5 | H32: 0.5 | I32: 1 | J32: 4 | K32: 4 | L32: 3 | M32: 4 | N32: 0.03 | O32: N/A | P32: N/A | Q32: N/A | R32: - | S32: - | T32: - | U32: - | V32: N/A | W32: - | X32: 1.58 | Y32: - | Z32: - | AA32: - | AB32: - | AC32: - | AD32: - | AE32: - | AF32: - | AG32: - | AH32: - | AI32: - | AJ32: - | AK32: - | AL32: - | AM32: - | AN32: 1 | AO32: - | AP32: - | AQ32: - | AR32: -
C33: - | D33: - | E33: - | F33: Customer | G33: 0.35 | H33: 0.65 | I33: 0.1333 | J33: 0.8 | K33: 0.8 | L33: 0.667 | M33: 0.8 | N33: - | O33: N/A | P33: N/A | Q33: N/A | R33: - | S33: - | T33: - | U33: - | V33: N/A | W33: - | X33: - | Y33: - | Z33: - | AA33: - | AB33: - | AC33: - | AD33: - | AE33: - | AF33: - | AG33: - | AH33: - | AI33: - | AJ33: - | AK33: - | AL33: - | AM33: - | AN33: - | AO33: - | AP33: - | AQ33: - | AR33: -
A34: Retail - Supermarket | B34: TCP Classification A1 Shops: supermarket | C34: - | D34: 362 | E34: 13 | F34: - | G34: 0.3524300243 | H34: 0.6475699757 | I34: 0.1473406804 | J34: 0.8518405184 | K34: 0.8518405184 | L34: 0.7047949779 | M34: 0.8518405184 | N34: 0.00048600486 | O34: N/A | P34: N/A | Q34: N/A | R34: - | S34: - | T34: - | U34: - | V34: N/A | W34: - | X34: 0.02559625596 | Y34: - | Z34: - | AA34: 1 | AB34: 1 | AC34: 0.25 | AD34: 5.6 | AE34: 4.37 | AF34: 1 | AG34: 1 | AH34: - | AI34: - | AJ34: - | AK34: - | AL34: - | AM34: - | AN34: =AN35 -> 1 | AO34: - | AP34: - | AQ34: 0.4 | AR34: 0.677
C35: - | D35: - | E35: - | F35: Staff | G35: 0.5 | H35: 0.5 | I35: 1 | J35: 4 | K35: 4 | L35: 3 | M35: 4 | N35: 0.03 | O35: N/A | P35: N/A | Q35: N/A | R35: - | S35: - | T35: - | U35: - | V35: N/A | W35: - | X35: 1.58 | Y35: - | Z35: - | AA35: - | AB35: - | AC35: - | AD35: - | AE35: - | AF35: - | AG35: - | AH35: - | AI35: - | AJ35: - | AK35: - | AL35: - | AM35: - | AN35: 1 | AO35: - | AP35: - | AQ35: - | AR35: -
C36: - | D36: - | E36: - | F36: Customers | G36: 0.35 | H36: 0.65 | I36: 0.1333 | J36: 0.8 | K36: 0.8 | L36: 0.667 | M36: 0.8 | N36: - | O36: N/A | P36: N/A | Q36: N/A | R36: - | S36: - | T36: - | U36: - | V36: N/A | W36: - | X36: - | Y36: - | Z36: - | AA36: - | AB36: - | AC36: - | AD36: - | AE36: - | AF36: - | AG36: - | AH36: - | AI36: - | AJ36: - | AK36: - | AL36: - | AM36: - | AN36: - | AO36: - | AP36: - | AQ36: - | AR36: -
A37: Retail - Service provider | B37: TCP Classification A2: Financial and professional services - Financial services such as banks and building societies, professional services (other than health and medical services) including estate and employment agencies and betting offices. | C37: - | D37: 304 | E37: 8 | F37: - | G37: 0.3524300243 | H37: 0.6475699757 | I37: 0.1473406804 | J37: 0.8518405184 | K37: 0.8518405184 | L37: 0.7047949779 | M37: 0.8518405184 | N37: 0.00048600486 | O37: N/A | P37: N/A | Q37: N/A | R37: - | S37: - | T37: - | U37: - | V37: N/A | W37: - | X37: 0.02559625596 | Y37: - | Z37: - | AA37: 1 | AB37: 1 | AC37: 0.25 | AD37: 5.6 | AE37: 4.37 | AF37: 1 | AG37: 1 | AH37: - | AI37: - | AJ37: - | AK37: - | AL37: - | AM37: - | AN37: =AN38 -> 1 | AO37: - | AP37: - | AQ37: 0.4 | AR37: 0.677
C38: - | D38: - | E38: - | F38: Staff | G38: 0.5 | H38: 0.5 | I38: 1 | J38: 4 | K38: 4 | L38: 3 | M38: 4 | N38: 0.03 | O38: N/A | P38: N/A | Q38: N/A | R38: - | S38: - | T38: - | U38: - | V38: N/A | W38: - | X38: 1.58 | Y38: - | Z38: - | AA38: - | AB38: - | AC38: - | AD38: - | AE38: - | AF38: - | AG38: - | AH38: - | AI38: - | AJ38: - | AK38: - | AL38: - | AM38: - | AN38: 1 | AO38: - | AP38: - | AQ38: - | AR38: -
C39: - | D39: - | E39: - | F39: Customer | G39: 0.35 | H39: 0.65 | I39: 0.1333 | J39: 0.8 | K39: 0.8 | L39: 0.667 | M39: 0.8 | N39: - | O39: N/A | P39: N/A | Q39: N/A | R39: - | S39: - | T39: - | U39: - | V39: N/A | W39: - | X39: - | Y39: - | Z39: - | AA39: - | AB39: - | AC39: - | AD39: - | AE39: - | AF39: - | AG39: - | AH39: - | AI39: - | AJ39: - | AK39: - | AL39: - | AM39: - | AN39: - | AO39: - | AP39: - | AQ39: - | AR39: -
A40: Retail - Shopping centre/complex | B40: TCP Classification A1 - A2: mixture of shops, professional services. | C40: - | D40: 362 | E40: 9 | F40: - | G40: 0.3524300243 | H40: 0.6475699757 | I40: 0.1473406804 | J40: 0.8518405184 | K40: 0.8518405184 | L40: 0.7047949779 | M40: 0.8518405184 | N40: 0.00048600486 | O40: N/A | P40: N/A | Q40: N/A | R40: - | S40: - | T40: - | U40: - | V40: N/A | W40: - | X40: 0.02559625596 | Y40: - | Z40: - | AA40: 1 | AB40: 1 | AC40: 0.25 | AD40: 5.6 | AE40: 4.37 | AF40: 1 | AG40: 1 | AH40: - | AI40: - | AJ40: - | AK40: - | AL40: - | AM40: - | AN40: =AN41 -> 1 | AO40: - | AP40: - | AQ40: 0.4 | AR40: 0.677
C41: - | D41: - | E41: - | F41: Staff | G41: 0.5 | H41: 0.5 | I41: 1 | J41: 4 | K41: 4 | L41: 3 | M41: 4 | N41: 0.03 | O41: N/A | P41: N/A | Q41: N/A | R41: - | S41: - | T41: - | U41: - | V41: N/A | W41: - | X41: 1.58 | Y41: - | Z41: - | AA41: - | AB41: - | AC41: - | AD41: - | AE41: - | AF41: - | AG41: - | AH41: - | AI41: - | AJ41: - | AK41: - | AL41: - | AM41: - | AN41: 1 | AO41: - | AP41: - | AQ41: - | AR41: -
C42: - | D42: - | E42: - | F42: Customer | G42: 0.35 | H42: 0.65 | I42: 0.1333 | J42: 0.8 | K42: 0.8 | L42: 0.667 | M42: 0.8 | N42: - | O42: N/A | P42: N/A | Q42: N/A | R42: - | S42: - | T42: - | U42: - | V42: N/A | W42: - | X42: - | Y42: - | Z42: - | AA42: - | AB42: - | AC42: - | AD42: - | AE42: - | AF42: - | AG42: - | AH42: - | AI42: - | AJ42: - | AK42: - | AL42: - | AM42: - | AN42: - | AO42: - | AP42: - | AQ42: - | AR42: -
A43: Retail - sales areas for display of bulky items | B43: A retail sales/display area trading predominantly in bulky items, e.g. furniture, floor coverings, cycles, prams, large domestic appliances or other bulky goods, or trading on a wholesale self-selection basis. | C43: 0.143
A44: Retail - sales areas for display of non bulky items and/or customer service area. | B44: A general sales/display areas in department stores, supermarkets, shops and/or customer service waiting and/or collection areas e.g. in banks, post office, bookmakers etc. | C44: 0.5
A45: Retail - concourse/shopping mall | B45: The central (shared) area within a shopping centre used for access by shoppers (typically a covered area containing one or more of benches, cafes, escalators etc.) | C45: 1.43
A46: Retail - Staff office area and staffroom | B46: Staff office space and staffroom, often located in 'back of house' areas. | C46: 0.09514285714 | R46: 0.016200162 | U46: 0.0006480064801 | AH46: 0.67 | AK46: 1 | AL46: N/A
A47: Retail - Staff canteen dining area | B47: Seated areas in a staff canteen that accompany a food preparation areas where food and drink is consumed by staff on the premises. | C47: 0.0497 | S47: see usage factor | U47: see usage factor | V47: N/A | W47: see usage factor | Y47: see note | Z47: See note | AI47: 60 | AK47: 0.248 | AL47: N/A | AM47: 30 | AO47: 1 | AP47: 1
A48: Retail - Goods-in and storage area | B48: Internal areas for receiving and storing goods. | C48: 0.011
A49: Retail - Workshop | B49: A workshop / vehicle servicing area within a car showroom or general workshop in other type of retail development. | C49: 0.068
A50: Restaurants and cafés | B50: TCP Classification A3 Restaurants and cafés - For the sale of food and drink for consumption on the premises - restaurants, snack bars and cafes. | AN50: 1
A51: Restaurants and cafés - Eating and drinking area | B51: Seated areas that accompany a food preparation areas where food and drink is consumed by customers on the premises (includes customer service/counter areas) | C51: 0.2 | AN51: 1
A52: Restaurants and cafés - Food preparation area | B52: Kitchen areas in cafes/restaurants contained within the development used to prepare food for customers | C52: 0.108 | AA52: 1 | AB52: 1 | AD52: 5.6 | AE52: 4.37 | AF52: 1 | AG52: 1 | AH52: 0.44 | AN52: 1
A53: Restaurants and cafés - Office area | B53: Generic office space used by staff | C53: 0.109 | AN53: 1
A55: Should we have fixed use in the baseline for waste disposal, showers and pre-rinse taps regardless of whether they're specified in actual building. | Y55: Should litres/meal be adjusted to account for fact not three courses?
A57: A4 Drinking establishments | AA57: 1 | AB57: 1 | AD57: 5.6 | AE57: 4.37 | AF57: 1 | AG57: 1 | AH57: 0.44 | AN57: 1
A58: A5 Hot food takeaways | AA58: 1 | AB58: 1 | AD58: 5.6 | AE58: 4.37 | AF58: 1 | AG58: 1 | AH58: 0.44 | AN58: 1
A59: B1 Business - Workshop/light industry
AN60: 1
A61: B2 General industrial - process/manufacturing unit | AA61: 1 | AB61: 1 | AD61: 5.6 | AE61: 4.37 | AF61: 1 | AG61: 1 | AN61: 1
A62: B8 Storage or distribution - Warehouse unit | AA62: 1 | AB62: 1 | AD62: 5.6 | AE62: 4.37 | AF62: 1 | AG62: 1 | AN62: 1
A63: Hotels | C63: Occupant density (person/room) | V63: kg/ room/ night
A64: Hotel - Bedroom | C64: 1 | V64: 3.6
A65: Hotel - Staff | C65: 0.5 | V65: 0
A66: Hotel - restaurant
A67: C1 Boarding and guest houses | AA67: 1 | AB67: 1 | AD67: 5.6 | AE67: 4.37 | AF67: 1 | AG67: 1 | AN67: 1
A68: Hospital | AA68: 1 | AB68: 1 | AD68: 5.6 | AE68: 4.37 | AF68: 1 | AG68: 1 | AN68: 1
A69: Care home | AA69: 1 | AB69: 1 | AD69: 5.6 | AE69: 4.37 | AF69: 1 | AG69: 1 | AN69: 1
A70: Sheltered accommodation | AA70: 1 | AB70: 1 | AD70: 5.6 | AE70: 4.37 | AF70: 1 | AG70: 1 | AN70: 1
A71: Hall of residence | AA71: 1 | AB71: 1 | AD71: 5.6 | AE71: 4.37 | AF71: 1 | AG71: 1 | AN71: 1
A72: Prison houseblock | AA72: 1 | AB72: 1 | AD72: 5.6 | AE72: 4.37 | AF72: 1 | AG72: 1 | AN72: 1
A73: C2A Secure Residential Institution - Secure local authority accommodation | AA73: 1 | AB73: 1 | AD73: 5.6 | AE73: 4.37 | AF73: 1 | AG73: 1 | AN73: 1
A74: C2A Secure Residential Institution - Military barracks | AA74: 1 | AB74: 1 | AD74: 5.6 | AE74: 4.37 | AF74: 1 | AG74: 1 | AN74: 1
A75: D1 Non-residential Institutions - Library | AA75: 1 | AB75: 1 | AD75: 5.6 | AE75: 4.37 | AF75: 1 | AG75: 1 | AN75: 1
A76: D1 Non-residential Institutions - Museum or Gallery | AA76: 1 | AB76: 1 | AD76: 5.6 | AE76: 4.37 | AF76: 1 | AG76: 1 | AN76: 1
A77: D1 Non-residential Institutions - Community centre, day centre or place of worship | AA77: 1 | AB77: 1 | AD77: 5.6 | AE77: 4.37 | AF77: 1 | AG77: 1 | AN77: 1
A78: D1 Non-residential Institutions - Primary Health Care Building | AA78: 1 | AB78: 1 | AD78: 5.6 | AE78: 4.37 | AF78: 1 | AG78: 1 | AN78: 1
A79: D1 Non-residential Institutions - Creche | AA79: 1 | AB79: 1 | AD79: 5.6 | AE79: 4.37 | AF79: 1 | AG79: 1 | AN79: 1
A80: D1 Non-residential Institutions - Crown and County Courts | AA80: 1 | AB80: 1 | AD80: 5.6 | AE80: 4.37 | AF80: 1 | AG80: 1 | AN80: 1
A81: D1 Non-residential Institutions - School | AA81: 1 | AB81: 1 | AD81: 5.6 | AE81: 4.37 | AF81: 1 | AG81: 1 | AN81: 1
A82: D1 Non-residential Institutions - Further/ Higher education building or training centre | AA82: 1 | AB82: 1 | AD82: 5.6 | AE82: 4.37 | AF82: 1 | AG82: 1 | AN82: 1
A83: D2 General Assembly and Leisure - Theatre or cinema | AA83: 1 | AB83: 1 | AD83: 5.6 | AE83: 4.37 | AF83: 1 | AG83: 1 | AN83: 1
A84: D2 General Assembly and Leisure - leisure centre/gym | AA84: 1 | AB84: 1 | AD84: 5.6 | AE84: 4.37 | AF84: 1 | AG84: 1 | AN84: 1
A85: D2 General Assembly and Leisure -Swimming pool | AA85: 1 | AB85: 1 | AD85: 5.6 | AE85: 4.37 | AF85: 1 | AG85: 1 | AN85: 1
A86: D2 General Assembly and Leisure - Night Club or dance hall | AA86: 1 | AB86: 1 | AD86: 5.6 | AE86: 4.37 | AF86: 1 | AG86: 1 | AN86: 1
A87: Residential spaces | AA87: 1 | AB87: 1 | AD87: 5.6 | AE87: 4.37 | AF87: 1 | AG87: 1 | AN87: 1
A88: Other - Bus/train stations | AA88: 1 | AB88: 1 | AD88: 5.6 | AE88: 4.37 | AF88: 1 | AG88: 1 | AN88: 1
A89: Other - Emergency services | AA89: 1 | AB89: 1 | AD89: 5.6 | AE89: 4.37 | AF89: 1 | AG89: 1 | AN89: 1
A90: Other - Telephone exchanges | AA90: 1 | AB90: 1 | AD90: 5.6 | AE90: 4.37 | AF90: 1 | AG90: 1 | AN90: 1
A91: Other - Car Parks 24 hrs | AA91: 1 | AB91: 1 | AD91: 5.6 | AE91: 4.37 | AF91: 1 | AG91: 1 | AN91: 1
A92: Other - Stand alone utility block | AA92: 1 | AB92: 1 | AD92: 5.6 | AE92: 4.37 | AF92: 1 | AG92: 1 | AN92: 1
A93: Other - Petrol stations | AA93: 1 | AB93: 1 | AD93: 5.6 | AE93: 4.37 | AF93: 1 | AG93: 1 | AN93: 1
A94: Other - Hostel | AA94: 1 | AB94: 1 | AD94: 5.6 | AE94: 4.37 | AF94: 1 | AG94: 1 | AN94: 1
A95: Other - motor vehicle showroom | AA95: 1 | AB95: 1 | AD95: 5.6 | AE95: 4.37 | AF95: 1 | AG95: 1 | AN95: 1
A96: Other - Launderette | AA96: 1 | AB96: 1 | AD96: 5.6 | AE96: 4.37 | AF96: 1 | AG96: 1 | AN96: 1
B105: Microcomponent Performance Levels for BREEAM water consumption method benchmarking
A106: EU tax minimum requirements | B106: Component | C106: Baseline | D106: Level 1 | E106: Level 2 | F106: Level 3 | G106: Level 4 | H106: Level 5 | I106: Unit
A107: =+C107 -> 6 | B107: WC - male (urinals installed) | C107: 6 | D107: 4.5 | E107: 4 | F107: 3.75 | G107: 3.5 | H107: 3 | I107: Effective flush volume (litres)
A108: 6 | B108: WC - male (no urinals installed) | C108: 6 | D108: 4.5 | E108: 4 | F108: 3.75 | G108: 3.5 | H108: 3 | I108: Effective flush volume (litres)
A109: 6 | B109: WC - female | C109: 6 | D109: 4.5 | E109: 4 | F109: 3.75 | G109: 3.5 | H109: 3 | I109: Effective flush volume (litres)
A110: 10 | B110: Wash hand basin taps | C110: 10 | D110: 8 | E110: 6 | F110: 5 | G110: 4 | H110: 3 | I110: Volume (litres/min)
A111: 12 | B111: Showers | C111: 12 | D111: 10 | E111: 8 | F111: 6 | G111: 5 | H111: 3.5 | I111: Volume (litres/min)
A112: 200 | B112: Baths | C112: 200 | D112: 180 | E112: 160 | F112: 140 | G112: 120 | H112: 100 | I112: Volume (litres)
A113: 7.5 | B113: Urinal (2 or more urinals) - Automatically operated flushing cistern | C113: 7.5 | D113: 6 | E113: 3 | F113: 1.5 | G113: 0.75 | H113: 0 | I113: Volume (litres/bowl/hour)
A114: 10 | B114: Urinal (1 urinal only) - Automatically operated flushing cistern | C114: 10 | D114: 8 | E114: 4 | F114: 2 | G114: 1 | H114: 0 | I114: Volume (litres/bowl/hour)
A115: 1.5 | B115: Urinal - Manual/automatic operated pressure flushing valve | C115: 1.5 | D115: - | E115: - | F115: - | G115: - | H115: - | I115: Volume (Litres/flush/bowl)
A116: 0 | B116: Greywater/rainwater system | C116: 0 | D116: 0 | E116: 0 | F116: 0.25 | G116: 0.5 | H116: 0.75 | I116: % of WC/urinal flushing demand (generated by same level microcomponent specification) met by specified grey/rainwater system
A117: 10 | B117: Kitchen taps - kitchenette | C117: 10 | D117: 8 | E117: 7 | F117: 6 | G117: 5 | H117: 5 | I117: Volume (litres/min)
A118: 10.3 | B118: Kitchen taps - pre-rinse nozzle | C118: 10.3 | D118: 9 | E118: 8.3 | F118: 7.3 | G118: 6.3 | H118: 6 | I118: Volume (litres/min)
A119: 17 | B119: Domestic sized dishwashers | C119: 17 | D119: 13 | E119: 13 | F119: 12 | G119: 11 | H119: 10 | I119: Volume (litres/cycle)
A120: 90 | B120: Domestic sized washing machines | C120: 90 | D120: 60 | E120: 50 | F120: 40 | G120: 35 | H120: 30 | I120: Volume (litres/use)
A121: 17 | B121: Waste disposal unit (commercial kitchens only) | C121: 17 | D121: 17 | E121: 0 | F121: 0 | G121: 0 | H121: 0 | I121: Volume (litres/min)
A122: 8 | B122: Commercial sized dishwashers | C122: 8 | D122: 7 | E122: 6 | F122: 5 | G122: 4 | H122: 3 | I122: Volume (litres/rack)
A123: 14 | B123: Commercial/Industrial sized washing machines | C123: 14 | D123: 12 | E123: 10 | F123: 7.5 | G123: 5 | H123: 4.5 | I123: Volume (litres/kg)
C126: =AVERAGE(,C107:C109,C113:C115) -> 5.285714286 | D126: 4.583333333 | E126: 3.166666667 | F126: 2.458333333 | G126: 2.041666667 | H126: 1.5
D127: =+(D126-D116/2)/$C$126 -> 0.8671171171 | E127: =+(E126-E116/2)/$C$126 -> 0.5990990991 | F127: =+(F126-F116/2)/$C$126 -> 0.4414414414 | G127: =+(G126-G116/2)/$C$126 -> 0.338963964 | H127: =+(H126-H116/2)/$C$126 -> 0.2128378378
C128: % reduction | D128: =1-D127 -> 0.1328828829 | E128: =1-E127 -> 0.4009009009 | F128: =1-F127 -> 0.5585585586 | G128: =1-G127 -> 0.661036036 | H128: =1-H127 -> 0.7871621622
C129: % reduction | D129: 0.15 | E129: 0.3 | F129: 0.45 | G129: 0.6 | H129: 0.75

Sheet logic tree (hidden)
F2: Asset Water Caclulator
F7: Has the building type been selected? | G7: Building type determines annual usage rates for each component
E8: N | G8: Y
G9: Have installed water using components been selected? | H9: Components present used to determine baseline and building water consumption | P9: Baseline water consumption | T9: Building water consumption
F10: N | H10: Y | P10: Determined by - building type - water using components present - baseline water consumption values (fixed values) | T10: Determined by - building type - water consumption of installed components Minus - grey water use - rainwater use
H11: Are there no water using components in the building?
F12: Filter out credits | G12: N | I12: Y
I13: For each water using component selected
I14: Has number of different types been specified
H15: N | J15: Y
J16: For each component type | R16: % improvement over baseline | U16: Reporting metrics
J17: Has the number of items and water consumption been specified | K17: Performance of of installed items determines building water consumption | R17: Number of credits | U17: -m3 per year -m3/m2 per year -litres/person/day
I18: N | K18: Y
K19: Do you want to check against EU water criteria?
J20: N | L20: Y | M20: EU taxonomy output
K21: Does the building use any recycled grey water?
J22: N | L22: Y
L23: For each water using component
L24: Has the % of components from which grey water has been collected been specified | M24: Determines grey water consumption
K25: N | M25: Y
K26: Does the building use any rainwater?
J27: N | L27: Y
L28: Has the rainwater system been measured using Standard A?
K29: N | M29: Y
K30: Has the rainwater system been measured using Standard B? | M30: Have outputs from Standard A been entered?
N31: Determines rainwater consumption
N32: Y
J33: N | L33: Y
L34: Have outputs from Standard B been entered? | M34: Determines rainwater consumption
K35: N | M35: Y

Sheet Sheet1 (hidden)
A1: 1 | B1: 2 | C1: 3 | D1: 4 | E1: 5 | F1: 6 | G1: 7 | H1: 8 | I1: 9 | J1: 10 | K1: 11 | L1: 12 | M1: 13 | N1: 14 | O1: 15 | P1: 16 | Q1: 17 | R1: 18 | S1: 19 | T1: 20 | U1: 21 | V1: 22 | W1: 23 | X1: 24 | Y1: 25 | Z1: 26 | AA1: 27 | AB1: 28 | AC1: 29 | AD1: 30 | AE1: 31 | AF1: 32 | AG1: 33 | AH1: 34 | AI1: 35 | AJ1: 36 | AK1: 37 | AL1: 38 | AM1: 39 | AN1: 40 | AO1: 41 | AP1: 42 | AQ1: 43 | AR1: 44 | AT1: 1 | AU1: 2 | AV1: 3 | AW1: 4 | AX1: 5 | AY1: 6 | AZ1: 7 | BA1: 8
C2: Building occupation data | F2: User | G2: Gender ratio | I2: Component uses/person/day (unless stated differently for specific uses or activity areas) | AA2: Usage factors | AQ2: Adjustment factors | AT2: Microcomponent Performance Levels for BREEAM water consumption method benchmarking
A3: Building category and main activity area/function | B3: Description | C3: Occupant density (person/m2) | D3: No. days/yr building occupied | E3: default daily hrs of operation | F3: Type | G3: Ratio male users | H3: Ratio female users | I3: WC - male (urinals installed) | J3: WC - male (no urinals installed) | K3: WC - female | L3: Urinal | M3: Wash hand basin taps | N3: Shower use | O3: Shower use (bath present) | P3: Bath use (no shower present) | Q3: Bath use (shower present) | R3: Kitchen taps - kitchenette | S3: Kitchen taps - pre-rinse nozzle | T3: blank column | U3: Dishwasher | V3: Washing machine | W3: Waste disposal unit | X3: Fixed use - vessel filling | Y3: Fixed use - food preparation | Z3: Fixed use - kitchen cleaning | AA3: WC (factor of use | AB3: Urinals (factor of use) | AC3: Wash hand basin taps (mins/use) | AD3: Showers (no bath present) - mins/use | AE3: Showers (bath present) mins/use | AF3: Bath (No shower present) ratio | AG3: Bath (shower present) ratio | AH3: Kitchen taps - kitchenette mins/day | AI3: Kitchen taps - pre-rinse nozzle | AJ3: blank | AK3: Dishwasher | AL3: Washing machine | AM3: Waste dispoal unit | AN3: Fixed use - vessel filling | AO3: Fixed use - food preparation | AP3: Fixed use - kitchen cleaning | AQ3: Baths | AR3: Taps | AT3: Component | AU3: Baseline | AV3: Level 1 | AW3: Level 2 | AX3: Level 3 | AY3: Level 4 | AZ3: Level 5 | BA3: Unit | BC3: BREEAM credit benchmarks | BF3: Sources of data/information
A4: Office | B4: TCP Classification B1: Offices and workshop business (including those with a basic (category 1) laboratory area) | C4: - | D4: 253 | E4: 10 | F4: Staff | G4: 0.5 | H4: 0.5 | I4: 1 | J4: 4 | K4: 4 | L4: 3 | M4: 4 | N4: 0.03 | O4: N/A | P4: N/A | Q4: N/A | R4: - | S4: - | T4: - | U4: - | V4: N/A | W4: - | X4: 1.58 | Y4: - | Z4: - | AA4: 1 | AB4: 1 | AC4: 0.25 | AD4: 5.6 | AE4: 4.37 | AF4: 1 | AG4: 1 | AH4: - | AI4: - | AJ4: - | AK4: - | AL4: - | AM4: - | AN4: 1 | AO4: - | AP4: - | AQ4: 0.4 | AR4: 0.677 | AT4: WC - male (urinals installed) | AU4: 6 | AV4: 4.5 | AW4: 4 | AX4: 3.75 | AY4: 3.5 | AZ4: 3 | BA4: Effective flush volume (litres) | BC4: 0 | BD4: 0 credits | BF4: SD129: Certification and Listing of Low Flush WC appliances
A5: Office - Office areas | B5: Cellular or open plan office space, including staff kitchen where present/adjacent and reception areas. Exlcude meeting rooms, visitor waiting or circulation areas. | C5: 0.111 | R5: 1 | U5: 0.04 | AH5: 0.67 | AK5: 1 | AL5: N/A | AT5: WC - male (no urinals installed) | AU5: 6 | AV5: 4.5 | AW5: 4 | AX5: 3.75 | AY5: 3.5 | AZ5: 3 | BA5: Effective flush volume (litres) | BC5: 0.125 | BD5: 1 credit | BF5: Waterwise
A6: Office - Staff canteen dining area | B6: Seated dining areas that accompany a permanently staffed kitchen preparing food for consumption on the premises (excludes small un-staffed kitchen's used by office staff to re-heat food, make tea etc.) | C6: 0.0433 | S6: see usage factor | U6: see usage factor | V6: N/A | W6: see usage factor | Y6: 5849.00064 | Z6: 13810.99104 | AI6: 60 | AK6: 0.217 | AL6: N/A | AM6: 30 | AO6: 1 | AP6: 1 | AT6: WC - female | AU6: 6 | AV6: 4.5 | AW6: 4 | AX6: 3.75 | AY6: 3.5 | AZ6: 3 | BA6: Effective flush volume (litres) | BC6: 0.25 | BD6: 2 credits | BF6: Water efficient product labelling scheme
A7: Office - Small workshop / laboratory space | B7: Small scale workshop or category 1 laboratory area | C7: 0.068 | AT7: Wash hand basin taps | AU7: 10 | AV7: 8 | AW7: 6 | AX7: 5 | AY7: 4 | AZ7: 3 | BA7: Volume (litres/min) | BC7: 0.4 | BD7: 3 credits | BF7: Water Supply (water fittings) Regulations 1999: WC Suite Performance Specifications
A8: Office - Fitness suite/gym (with changing facility and showers) | B8: A fitness suite or gym that is part of the office building/development and used by the building's employees only. The gym will have its own changing facility with showers. | C8: 0 | N8: 0.154 | X8: 0.05 | AT8: Showers | AU8: 12 | AV8: 10 | AW8: 8 | AX8: 6 | AY8: 5 | AZ8: 3.5 | BA8: Volume (litres/min) | BC8: 0.5 | BD8: 4 credits | BF8: (Very early) Draft BS8542
A9: Industrial - 24hr x 7 day operation | B9: TCP Classification B2 to B8: general and specialist industrail and warehouse and storage units operating 24 hours a day 7 days a week. | C9: - | D9: 365 | E9: 24 | F9: Staff | G9: 0.5 | H9: 0.5 | I9: 1 | J9: 4 | K9: 4 | L9: 3 | M9: 4 | N9: 0.03 | O9: N/A | P9: N/A | Q9: N/A | R9: - | S9: - | T9: - | U9: - | V9: N/A | W9: - | X9: 1.58 | Y9: - | Z9: - | AA9: 1 | AB9: 1 | AC9: 0.25 | AD9: 5.6 | AE9: 4.37 | AF9: 1 | AG9: 1 | AH9: - | AI9: - | AJ9: - | AK9: - | AL9: - | AM9: - | AN9: 1 | AO9: - | AP9: - | AQ9: 0.4 | AR9: 0.677 | AT9: Baths | AU9: 200 | AV9: 180 | AW9: 160 | AX9: 140 | AY9: 120 | AZ9: 100 | BA9: Volume (litres) | BC9: 0.55 | BD9: 5 credits | BF9: SD174: Certification and Listing of Water Efficient Terminal Fittings (table 2.0)
A10: Industrial - typical business hours of operation | B10: TCP Classification B2 to B8: general and specialist industrial and warehouse and storage units operating 24 hours a day 7 days a week. | C10: - | D10: 253 | E10: 10 | F10: Staff | G10: 0.5 | H10: 0.5 | I10: 1 | J10: 4 | K10: 4 | L10: 3 | M10: 4 | N10: 0.03 | O10: N/A | P10: N/A | Q10: N/A | R10: - | S10: - | T10: - | U10: - | V10: N/A | W10: - | X10: 1.58 | Y10: - | Z10: - | AA10: 1 | AB10: 1 | AC10: 0.25 | AD10: 5.6 | AE10: 4.37 | AF10: 1 | AG10: 1 | AH10: - | AI10: - | AJ10: - | AK10: - | AL10: - | AM10: - | AN10: 1 | AO10: - | AP10: - | AQ10: 0.4 | AR10: 0.677 | AT10: Urinal (2 or more urinals) - Automatically operated flushing cistern | AU10: 7.5 | AV10: 6 | AW10: 3 | AX10: 1.5 | AY10: 0.75 | AZ10: 0 | BA10: Volume (litres/bowl/hour) | BC10: 0.65 | BD10: Exemplary level | BF10: CLG Water Calculation Method for New Dwelling
A11: Industrial - process area | B11: Main process based operational/manufacturing/workshop area | C11: 0.0224 | AT11: Urinal (1 urinal only) - Automatically operated flushing cistern | AU11: 10 | AV11: 8 | AW11: 4 | AX11: 2 | AY11: 1 | AZ11: 0 | BA11: Volume (litres/bowl/hour) | BC11: 0.55 | BD11: 5 credits | BF11: Conserving Water in Buildings - Environment Agency
A12: Industrial - Laboratory area | B12: Large or small category 1 laboratory area. | C12: 0.1069 | AT12: Urinal - Manual/automatic operated pressure flushing valve | AU12: 1.5 | AV12: - | AW12: - | AX12: - | AY12: - | AZ12: - | BA12: Volume (Litres/flush/bowl) | BF12: SD175 Certification and Listing of Water Efficient Baths
A13: Industrial - Warehouse storage | B13: Permanently or intermittently occupied warehouse storage areas. | C13: 0.0108 | AT13: Greywater/rainwater system | AU13: 0 | AV13: 0 | AW13: 0 | AX13: 0.25 | AY13: 0.5 | AZ13: 0.75 | BA13: % of WC/urinal flushing demand (generated by same level microcomponent specification) met by specified grey/rainwater system | BF13: BNWAT07: Baths - water efficiency performance tests Version 2.0
A14: Industrial - Office areas | B14: Cellular or open plan office space, including staff kitchen where present/adjacent and reception areas. Exlcude meeting rooms, visitor waiting or circulation areas. | C14: 0.0994 | R14: 1 | U14: 0.04 | AH14: 0.67 | AK14: 1 | AL14: N/A | AT14: Kitchen taps - kitchenette | AU14: 10 | AV14: 8 | AW14: 7 | AX14: 6 | AY14: 5 | AZ14: 5 | BA14: Volume (litres/min) | BF14: CLG Research to Assess the Costs and Benefits of Improvements to the Water Efficiency of New Non-household Buildings (BD2683), 2009.
A15: Industrial - Staff canteen dining area | B15: Seated dining areas that accompany a permanently staffed kitchen preparing food for consumption on the premises (excludes small un-staffed kitchen's used by office staff to re-heat food, make tea etc.) | C15: =0.0402 -> 0.0402 | S15: see usage factor | U15: see usage factor | V15: N/A | W15: see usage factor | Z15: 253.8228 | AI15: 60 | AK15: 0.201 | AL15: N/A | AM15: 30 | AO15: 1 | AP15: 1 | AT15: Kitchen taps - pre-rinse nozzle | AU15: 10.3 | AV15: 9 | AW15: 8.3 | AX15: 7.3 | AY15: 6.3 | AZ15: 6 | BA15: Volume (litres/min) | BF15: Waterwise 2007 Dishwasher rankings
A16: Industrial - Fitness suite/gym (with changing facility and showers) | B16: A fitness suite or gym that is part of the office building/development and used by the building's employees only. The gym will have its own changing facility with showers. | C16: 0 | N16: 0.154 | X16: 0.05 | AT16: Domestic sized dishwashers | AU16: 17 | AV16: 13 | AW16: 13 | AX16: 12 | AY16: 11 | AZ16: 10 | BA16: Volume (litres/cycle) | BF16: Waterwise 2007 Washing machine rankings
A17: Education - pre-school or primary school | B17: TCP Classification D1: non-residential pre-school and primary schools. | C17: - | D17: 195 | E17: 10 | F17: Pupils/staff | G17: 0.5 | H17: 0.5 | I17: 0.36 | J17: 2.1 | K17: 2.1 | L17: 1.74 | M17: 2.1 | N17: 0.0014 | O17: N/A | P17: N/A | Q17: N/A | R17: 0.05 | S17: - | T17: - | U17: - | V17: N/A | W17: - | X17: 1.98 | Y17: - | Z17: - | AA17: 1 | AB17: 1 | AC17: 0.25 | AD17: 5.6 | AE17: N/A | AF17: 1 | AG17: 1 | AH17: - | AI17: - | AJ17: - | AK17: - | AL17: - | AM17: - | AN17: 1 | AO17: - | AP17: - | AQ17: 0.4 | AR17: 0.677 | AT17: Domestic sized washing machines | AU17: 90 | AV17: 60 | AW17: 50 | AX17: 40 | AY17: 35 | AZ17: 30 | BA17: Volume (litres/use) | BF17: Water UK - Macerators, the impact on sewers http://www.water.org.uk/home/policy/positions/waste-macerators-position-paper
A18: Education - secondary school or academy | B18: TCP Classification D1: non-residential secondary schools, academies and all-age range schools | C18: - | D18: 195 | E18: 10 | F18: Pupils/staff | G18: 0.5 | H18: 0.5 | I18: 0.37 | J18: 2.13 | K18: 2.1 | L18: 1.76 | M18: 2.13 | N18: 0.002 | O18: N/A | P18: N/A | Q18: N/A | R18: 0.06 | S18: - | T18: - | U18: - | V18: N/A | W18: - | X18: 1.97 | Y18: - | Z18: - | AA18: 1 | AB18: 1 | AC18: 0.25 | AD18: 5.6 | AE18: 1.4 | AF18: 1 | AG18: 1 | AH18: - | AI18: - | AJ18: - | AK18: - | AL18: - | AM18: - | AN18: 1 | AO18: - | AP18: - | AQ18: 0.4 | AR18: 0.677 | AT18: =W3 -> Waste disposal unit | AU18: 17 | AV18: 17 | AW18: 0 | AX18: 0 | AY18: 0 | AZ18: 0 | BA18: Volume (litres/min) | BF18: Water Efficient Buildings, water and planning, guidance for planners http://www.water-efficient-buildings.org.uk/
A19: Education - sixth form or further education college | B19: TCP Classification D1: non-residential sixth form and further education colleges | C19: - | D19: 195 | E19: 10 | F19: Staff/students | G19: 0.5 | H19: 0.5 | I19: 1 | J19: 4 | K19: 4 | L19: 3 | M19: 4 | N19: 0.03 | O19: N/A | P19: N/A | Q19: N/A | R19: 0.051 | S19: - | T19: - | U19: - | V19: N/A | W19: - | X19: 1.58 | Y19: - | Z19: - | AA19: 1 | AB19: 1 | AC19: 0.25 | AD19: 5.6 | AE19: 4.37 | AF19: 1 | AG19: 1 | AH19: - | AI19: - | AJ19: - | AK19: - | AL19: - | AM19: - | AN19: 1 | AO19: - | AP19: - | AQ19: 0.4 | AR19: 0.677 | AT19: Commercial sized dishwashers | AU19: 8 | AV19: 7 | AW19: 6 | AX19: 5 | AY19: 4 | AZ19: 3 | BA19: Volume (litres/rack) | BF19: AECB Water Standards vol 2.
A20: Education - higher education college | B20: TCP Classification D1: non-residential higher education learning resource centres/teaching facility only. | C20: - | D20: 195 | E20: 10 | F20: Staff/students | G20: 0.5 | H20: 0.5 | I20: 1 | J20: 4 | K20: 4 | L20: 3 | M20: 4 | N20: 0.03 | O20: N/A | P20: N/A | Q20: N/A | R20: 0.061 | S20: - | T20: - | U20: - | V20: N/A | W20: - | X20: 1.58 | Y20: - | Z20: - | AA20: 1 | AB20: 1 | AC20: 0.25 | AD20: 5.6 | AE20: 4.37 | AF20: 1 | AG20: 1 | AH20: - | AI20: - | AJ20: - | AK20: - | AL20: - | AM20: - | AN20: 1 | AO20: - | AP20: - | AQ20: 0.4 | AR20: 0.677 | AT20: Commercial/Industrial sized washing machines | AU20: 14 | AV20: 12 | AW20: 10 | AX20: 7.5 | AY20: 5 | AZ20: 4.5 | BA20: Volume (litres/kg) | BF20: Enahnced Capital Allowance Water Technology List criteria
A21: Education - Classroom areas | B21: Include basic classroom areas only. Exclude halls, specialist practical classrooms, i.e. ICT, and learning resource/library areas. | C21: 0.532 | BF21: BNWAT22: Domestic water consumption in domestic and non-domestic properties
A22: Education - Staff office and adminstration areas | B22: Cellular or open plan office space, including staff rooms and staff kitchen where present/adjacent and reception areas (including library reception desk areas if present). Exlcudes meeting rooms, visitor waiting or circulation areas and other such spaces not permanently occupied. | C22: 0.103 | U22: 0.0026 | AH22: 0.67 | AK22: 1 | AL22: N/A | BF22: National Statistics, DfE: School Workforce in England, November 2010 (statistical first release)
A23: Education - Common room | B23: Student common room. | C23: 0.103 | BF23: Building Bulletin 99 (2nd Edition), Briefing Framework for Primary School Projects
A24: Education - dining area | B24: Seated dining areas that accompany a permanently staffed kitchen preparing food for consumption on the premises (excludes small un-staffed kitchen's used by staff to re-heat food, make tea etc.) | C24: See note | S24: see usage factor | U24: see usage factor | V24: N/A | W24: see usage factor | Y24: FALSE | Z24: 0 | AI24: 60 | AK24: 0.45 | AL24: N/A | AM24: 30 | AO24: 1 | AP24: 1 | BF24: Building Bulletin 98 (2nd Edition), Briefing Framework for Secondary School Projects
A25: Education - Changing facilities with showers | B25: Changing facility with showers to be used by pupils | C25: 0 | X25: 0.12 | BF25: The Building Regulations 2000 Approved Document B Fire Safety
A26: Education - Lecture theatre | B26: Lecture theatre with permanent seating and/or stage used by lecturers and/or for staged performances. | C26: 0.2183098592 | BF26: Employment Densities, a full guide, Arup Economics and Planning, 2001 (produced for English Partnerships and Regional Development Agencies)
A27: Education - Study area | B27: Study/write-up area in sixth form, further and/or Higer Education colleges. | C27: 0.625
A28: Education - Workshop | B28: Small scale workshop type space used for practical/vocational demonstrations/learning. | C28: 0.06325925926
A29: Education - Information Technology space | B29: Laboratory/room containing I.T equipment and used for teaching/research related to information technology | C29: 0.231
A30: Education - Laboratory | B30: Laboratory space for teaching/learning related to science based subjects. | C30: 0.10625
A31: Retail - Shop / retail unit(s) / retail warehouse | B31: TCP Classification A1 Shops: shop/retail unit(s)/retail warehouse(s). | C31: - | D31: 362 | E31: 8.5 | F31: - | G31: 0.3524300243 | H31: 0.6475699757 | I31: 0.1473406804 | J31: 0.8518405184 | K31: 0.8518405184 | L31: 0.7047949779 | M31: 0.8518405184 | N31: 0.00048600486 | O31: N/A | P31: N/A | Q31: N/A | R31: - | S31: - | T31: - | U31: - | V31: N/A | W31: - | X31: 0.02559625596 | Y31: - | Z31: - | AA31: 1 | AB31: 1 | AC31: 0.25 | AD31: 5.6 | AE31: 4.37 | AF31: 1 | AG31: 1 | AH31: - | AI31: - | AJ31: - | AK31: - | AL31: - | AM31: - | AN31: =AN32 -> 1 | AO31: - | AP31: - | AQ31: 0.4 | AR31: 0.677
C32: - | D32: - | E32: - | F32: Staff | G32: 0.5 | H32: 0.5 | I32: 1 | J32: 4 | K32: 4 | L32: 3 | M32: 4 | N32: 0.03 | O32: N/A | P32: N/A | Q32: N/A | R32: - | S32: - | T32: - | U32: - | V32: N/A | W32: - | X32: 1.58 | Y32: - | Z32: - | AA32: - | AB32: - | AC32: - | AD32: - | AE32: - | AF32: - | AG32: - | AH32: - | AI32: - | AJ32: - | AK32: - | AL32: - | AM32: - | AN32: 1 | AO32: - | AP32: - | AQ32: - | AR32: -
C33: - | D33: - | E33: - | F33: Customer | G33: 0.35 | H33: 0.65 | I33: 0.1333 | J33: 0.8 | K33: 0.8 | L33: 0.667 | M33: 0.8 | N33: - | O33: N/A | P33: N/A | Q33: N/A | R33: - | S33: - | T33: - | U33: - | V33: N/A | W33: - | X33: - | Y33: - | Z33: - | AA33: - | AB33: - | AC33: - | AD33: - | AE33: - | AF33: - | AG33: - | AH33: - | AI33: - | AJ33: - | AK33: - | AL33: - | AM33: - | AN33: - | AO33: - | AP33: - | AQ33: - | AR33: -
A34: Retail - Supermarket | B34: TCP Classification A1 Shops: supermarket | C34: - | D34: 362 | E34: 13 | F34: - | G34: 0.3524300243 | H34: 0.6475699757 | I34: 0.1473406804 | J34: 0.8518405184 | K34: 0.8518405184 | L34: 0.7047949779 | M34: 0.8518405184 | N34: 0.00048600486 | O34: N/A | P34: N/A | Q34: N/A | R34: - | S34: - | T34: - | U34: - | V34: N/A | W34: - | X34: 0.02559625596 | Y34: - | Z34: - | AA34: 1 | AB34: 1 | AC34: 0.25 | AD34: 5.6 | AE34: 4.37 | AF34: 1 | AG34: 1 | AH34: - | AI34: - | AJ34: - | AK34: - | AL34: - | AM34: - | AN34: =AN35 -> 1 | AO34: - | AP34: - | AQ34: 0.4 | AR34: 0.677
C35: - | D35: - | E35: - | F35: Staff | G35: 0.5 | H35: 0.5 | I35: 1 | J35: 4 | K35: 4 | L35: 3 | M35: 4 | N35: 0.03 | O35: N/A | P35: N/A | Q35: N/A | R35: - | S35: - | T35: - | U35: - | V35: N/A | W35: - | X35: 1.58 | Y35: - | Z35: - | AA35: - | AB35: - | AC35: - | AD35: - | AE35: - | AF35: - | AG35: - | AH35: - | AI35: - | AJ35: - | AK35: - | AL35: - | AM35: - | AN35: 1 | AO35: - | AP35: - | AQ35: - | AR35: -
C36: - | D36: - | E36: - | F36: Customers | G36: 0.35 | H36: 0.65 | I36: 0.1333 | J36: 0.8 | K36: 0.8 | L36: 0.667 | M36: 0.8 | N36: - | O36: N/A | P36: N/A | Q36: N/A | R36: - | S36: - | T36: - | U36: - | V36: N/A | W36: - | X36: - | Y36: - | Z36: - | AA36: - | AB36: - | AC36: - | AD36: - | AE36: - | AF36: - | AG36: - | AH36: - | AI36: - | AJ36: - | AK36: - | AL36: - | AM36: - | AN36: - | AO36: - | AP36: - | AQ36: - | AR36: -
A37: Retail - Service provider | B37: TCP Classification A2: Financial and professional services - Financial services such as banks and building societies, professional services (other than health and medical services) including estate and employment agencies and betting offices. | C37: - | D37: 304 | E37: 8 | F37: - | G37: 0.3524300243 | H37: 0.6475699757 | I37: 0.1473406804 | J37: 0.8518405184 | K37: 0.8518405184 | L37: 0.7047949779 | M37: 0.8518405184 | N37: 0.00048600486 | O37: N/A | P37: N/A | Q37: N/A | R37: - | S37: - | T37: - | U37: - | V37: N/A | W37: - | X37: 0.02559625596 | Y37: - | Z37: - | AA37: 1 | AB37: 1 | AC37: 0.25 | AD37: 5.6 | AE37: 4.37 | AF37: 1 | AG37: 1 | AH37: - | AI37: - | AJ37: - | AK37: - | AL37: - | AM37: - | AN37: =AN38 -> 1 | AO37: - | AP37: - | AQ37: 0.4 | AR37: 0.677
C38: - | D38: - | E38: - | F38: Staff | G38: 0.5 | H38: 0.5 | I38: 1 | J38: 4 | K38: 4 | L38: 3 | M38: 4 | N38: 0.03 | O38: N/A | P38: N/A | Q38: N/A | R38: - | S38: - | T38: - | U38: - | V38: N/A | W38: - | X38: 1.58 | Y38: - | Z38: - | AA38: - | AB38: - | AC38: - | AD38: - | AE38: - | AF38: - | AG38: - | AH38: - | AI38: - | AJ38: - | AK38: - | AL38: - | AM38: - | AN38: 1 | AO38: - | AP38: - | AQ38: - | AR38: -
C39: - | D39: - | E39: - | F39: Customer | G39: 0.35 | H39: 0.65 | I39: 0.1333 | J39: 0.8 | K39: 0.8 | L39: 0.667 | M39: 0.8 | N39: - | O39: N/A | P39: N/A | Q39: N/A | R39: - | S39: - | T39: - | U39: - | V39: N/A | W39: - | X39: - | Y39: - | Z39: - | AA39: - | AB39: - | AC39: - | AD39: - | AE39: - | AF39: - | AG39: - | AH39: - | AI39: - | AJ39: - | AK39: - | AL39: - | AM39: - | AN39: - | AO39: - | AP39: - | AQ39: - | AR39: -
A40: Retail - Shopping centre/complex | B40: TCP Classification A1 - A2: mixture of shops, professional services. | C40: - | D40: 362 | E40: 9 | F40: - | G40: 0.3524300243 | H40: 0.6475699757 | I40: 0.1473406804 | J40: 0.8518405184 | K40: 0.8518405184 | L40: 0.7047949779 | M40: 0.8518405184 | N40: 0.00048600486 | O40: N/A | P40: N/A | Q40: N/A | R40: - | S40: - | T40: - | U40: - | V40: N/A | W40: - | X40: 0.02559625596 | Y40: - | Z40: - | AA40: 1 | AB40: 1 | AC40: 0.25 | AD40: 5.6 | AE40: 4.37 | AF40: 1 | AG40: 1 | AH40: - | AI40: - | AJ40: - | AK40: - | AL40: - | AM40: - | AN40: =AN41 -> 1 | AO40: - | AP40: - | AQ40: 0.4 | AR40: 0.677
C41: - | D41: - | E41: - | F41: Staff | G41: 0.5 | H41: 0.5 | I41: 1 | J41: 4 | K41: 4 | L41: 3 | M41: 4 | N41: 0.03 | O41: N/A | P41: N/A | Q41: N/A | R41: - | S41: - | T41: - | U41: - | V41: N/A | W41: - | X41: 1.58 | Y41: - | Z41: - | AA41: - | AB41: - | AC41: - | AD41: - | AE41: - | AF41: - | AG41: - | AH41: - | AI41: - | AJ41: - | AK41: - | AL41: - | AM41: - | AN41: 1 | AO41: - | AP41: - | AQ41: - | AR41: -
C42: - | D42: - | E42: - | F42: Customer | G42: 0.35 | H42: 0.65 | I42: 0.1333 | J42: 0.8 | K42: 0.8 | L42: 0.667 | M42: 0.8 | N42: - | O42: N/A | P42: N/A | Q42: N/A | R42: - | S42: - | T42: - | U42: - | V42: N/A | W42: - | X42: - | Y42: - | Z42: - | AA42: - | AB42: - | AC42: - | AD42: - | AE42: - | AF42: - | AG42: - | AH42: - | AI42: - | AJ42: - | AK42: - | AL42: - | AM42: - | AN42: - | AO42: - | AP42: - | AQ42: - | AR42: -
A43: Retail - sales areas for display of bulky items | B43: A retail sales/display area trading predominantly in bulky items, e.g. furniture, floor coverings, cycles, prams, large domestic appliances or other bulky goods, or trading on a wholesale self-selection basis. | C43: 0.143
A44: Retail - sales areas for display of non bulky items and/or customer service area. | B44: A general sales/display areas in department stores, supermarkets, shops and/or customer service waiting and/or collection areas e.g. in banks, post office, bookmakers etc. | C44: 0.5
A45: Retail - concourse/shopping mall | B45: The central (shared) area within a shopping centre used for access by shoppers (typically a covered area containing one or more of benches, cafes, escalators etc.) | C45: 1.43
A46: Retail - Staff office area and staffroom | B46: Staff office space and staffroom, often located in 'back of house' areas. | C46: 0.09514285714 | R46: 0.016200162 | U46: 0.0006480064801 | AH46: 0.67 | AK46: 1 | AL46: N/A
A47: Retail - Staff canteen dining area | B47: Seated areas in a staff canteen that accompany a food preparation areas where food and drink is consumed by staff on the premises. | C47: 0.0497 | S47: see usage factor | U47: see usage factor | V47: N/A | W47: see usage factor | Y47: see note | Z47: 0 | AI47: 60 | AK47: 0.248 | AL47: N/A | AM47: 30 | AO47: 1 | AP47: 1
A48: Retail - Goods-in and storage area | B48: Internal areas for receiving and storing goods. | C48: 0.011
A49: Retail - Workshop | B49: A workshop / vehicle servicing area within a car showroom or general workshop in other type of retail development. | C49: 0.068
A50: Restaurants and cafés | B50: TCP Classification A3 Restaurants and cafés - For the sale of food and drink for consumption on the premises - restaurants, snack bars and cafes. | AN50: 1
A51: Restaurants and cafés - Eating and drinking area | B51: Seated areas that accompany a food preparation areas where food and drink is consumed by customers on the premises (includes customer service/counter areas) | C51: 0.2 | AN51: 1
A52: Restaurants and cafés - Food preparation area | B52: Kitchen areas in cafes/restaurants contained within the development used to prepare food for customers | C52: 0.108 | AA52: 1 | AB52: 1 | AD52: 5.6 | AE52: 4.37 | AF52: 1 | AG52: 1 | AH52: 0.44 | AN52: 1
A53: Restaurants and cafés - Office area | B53: Generic office space used by staff | C53: 0.109 | AN53: 1
A55: Should we have fixed use in the baseline for waste disposal, showers and pre-rinse taps regardless of whether they're specified in actual building. | Y55: Should litres/meal be adjusted to account for fact not three courses?
A57: A4 Drinking establishments | AA57: 1 | AB57: 1 | AD57: 5.6 | AE57: 4.37 | AF57: 1 | AG57: 1 | AH57: 0.44 | AN57: 1
A58: A5 Hot food takeaways | AA58: 1 | AB58: 1 | AD58: 5.6 | AE58: 4.37 | AF58: 1 | AG58: 1 | AH58: 0.44 | AN58: 1
A59: B1 Business - Workshop/light industry
AN60: 1
A61: B2 General industrial - process/manufacturing unit | AA61: 1 | AB61: 1 | AD61: 5.6 | AE61: 4.37 | AF61: 1 | AG61: 1 | AN61: 1
A62: B8 Storage or distribution - Warehouse unit | AA62: 1 | AB62: 1 | AD62: 5.6 | AE62: 4.37 | AF62: 1 | AG62: 1 | AN62: 1
A63: Hotels | C63: Occupant density (person/room) | V63: kg/ room/ night
A64: Hotel - Bedroom | C64: 1 | V64: 3.6
A65: Hotel - Staff | C65: 0.5 | V65: 0
A66: Hotel - restaurant
A67: C1 Boarding and guest houses | AA67: 1 | AB67: 1 | AD67: 5.6 | AE67: 4.37 | AF67: 1 | AG67: 1 | AN67: 1
A68: Hospital | AA68: 1 | AB68: 1 | AD68: 5.6 | AE68: 4.37 | AF68: 1 | AG68: 1 | AN68: 1
A69: Care home | AA69: 1 | AB69: 1 | AD69: 5.6 | AE69: 4.37 | AF69: 1 | AG69: 1 | AN69: 1
A70: Sheltered accommodation | AA70: 1 | AB70: 1 | AD70: 5.6 | AE70: 4.37 | AF70: 1 | AG70: 1 | AN70: 1
A71: Hall of residence | AA71: 1 | AB71: 1 | AD71: 5.6 | AE71: 4.37 | AF71: 1 | AG71: 1 | AN71: 1
A72: Prison houseblock | AA72: 1 | AB72: 1 | AD72: 5.6 | AE72: 4.37 | AF72: 1 | AG72: 1 | AN72: 1
A73: C2A Secure Residential Institution - Secure local authority accommodation | AA73: 1 | AB73: 1 | AD73: 5.6 | AE73: 4.37 | AF73: 1 | AG73: 1 | AN73: 1
A74: C2A Secure Residential Institution - Military barracks | AA74: 1 | AB74: 1 | AD74: 5.6 | AE74: 4.37 | AF74: 1 | AG74: 1 | AN74: 1
A75: D1 Non-residential Institutions - Library | AA75: 1 | AB75: 1 | AD75: 5.6 | AE75: 4.37 | AF75: 1 | AG75: 1 | AN75: 1
A76: D1 Non-residential Institutions - Museum or Gallery | AA76: 1 | AB76: 1 | AD76: 5.6 | AE76: 4.37 | AF76: 1 | AG76: 1 | AN76: 1
A77: D1 Non-residential Institutions - Community centre, day centre or place of worship | AA77: 1 | AB77: 1 | AD77: 5.6 | AE77: 4.37 | AF77: 1 | AG77: 1 | AN77: 1
A78: D1 Non-residential Institutions - Primary Health Care Building | AA78: 1 | AB78: 1 | AD78: 5.6 | AE78: 4.37 | AF78: 1 | AG78: 1 | AN78: 1
A79: D1 Non-residential Institutions - Creche | AA79: 1 | AB79: 1 | AD79: 5.6 | AE79: 4.37 | AF79: 1 | AG79: 1 | AN79: 1
A80: D1 Non-residential Institutions - Crown and County Courts | AA80: 1 | AB80: 1 | AD80: 5.6 | AE80: 4.37 | AF80: 1 | AG80: 1 | AN80: 1
A81: D1 Non-residential Institutions - School | AA81: 1 | AB81: 1 | AD81: 5.6 | AE81: 4.37 | AF81: 1 | AG81: 1 | AN81: 1
A82: D1 Non-residential Institutions - Further/ Higher education building or training centre | AA82: 1 | AB82: 1 | AD82: 5.6 | AE82: 4.37 | AF82: 1 | AG82: 1 | AN82: 1
A83: D2 General Assembly and Leisure - Theatre or cinema | AA83: 1 | AB83: 1 | AD83: 5.6 | AE83: 4.37 | AF83: 1 | AG83: 1 | AN83: 1
A84: D2 General Assembly and Leisure - leisure centre/gym | AA84: 1 | AB84: 1 | AD84: 5.6 | AE84: 4.37 | AF84: 1 | AG84: 1 | AN84: 1
A85: D2 General Assembly and Leisure -Swimming pool | AA85: 1 | AB85: 1 | AD85: 5.6 | AE85: 4.37 | AF85: 1 | AG85: 1 | AN85: 1
A86: D2 General Assembly and Leisure - Night Club or dance hall | AA86: 1 | AB86: 1 | AD86: 5.6 | AE86: 4.37 | AF86: 1 | AG86: 1 | AN86: 1
A87: Residential spaces | AA87: 1 | AB87: 1 | AD87: 5.6 | AE87: 4.37 | AF87: 1 | AG87: 1 | AN87: 1
A88: Other - Bus/train stations | AA88: 1 | AB88: 1 | AD88: 5.6 | AE88: 4.37 | AF88: 1 | AG88: 1 | AN88: 1
A89: Other - Emergency services | AA89: 1 | AB89: 1 | AD89: 5.6 | AE89: 4.37 | AF89: 1 | AG89: 1 | AN89: 1
A90: Other - Telephone exchanges | AA90: 1 | AB90: 1 | AD90: 5.6 | AE90: 4.37 | AF90: 1 | AG90: 1 | AN90: 1
A91: Other - Car Parks 24 hrs | AA91: 1 | AB91: 1 | AD91: 5.6 | AE91: 4.37 | AF91: 1 | AG91: 1 | AN91: 1
A92: Other - Stand alone utility block | AA92: 1 | AB92: 1 | AD92: 5.6 | AE92: 4.37 | AF92: 1 | AG92: 1 | AN92: 1
A93: Other - Petrol stations | AA93: 1 | AB93: 1 | AD93: 5.6 | AE93: 4.37 | AF93: 1 | AG93: 1 | AN93: 1
A94: Other - Hostel | AA94: 1 | AB94: 1 | AD94: 5.6 | AE94: 4.37 | AF94: 1 | AG94: 1 | AN94: 1
A95: Other - motor vehicle showroom | AA95: 1 | AB95: 1 | AD95: 5.6 | AE95: 4.37 | AF95: 1 | AG95: 1 | AN95: 1
A96: Other - Launderette | AA96: 1 | AB96: 1 | AD96: 5.6 | AE96: 4.37 | AF96: 1 | AG96: 1 | AN96: 1
